Workbook

Sheet Main
B10: 2018-12-26
B12: Sheet No. | C12: Template Name | D12: Summary
B13: 1 | C13: Future Intra | D13: For Intraday trading in F&O segment
B14: 2 | C14: Cash Intra | D14: For Intraday trading in cash market segment
B15: 3 | C15: Mid-cap Intra | D15: For Intraday trading in Mid-cap stocks
B16: 4 | C16: Bulk Deals | D16: Reveals Bulk Deals carried on NSE & BSE
B17: 5 | C17: Call Tracker

Sheet Future Intra
M5: Back to Main Page
A6: FOR INTRA DAY TRADING | L6: =Main!B10 -> 2018-12-26
A9: Sr.no | B9: Sector | C9: Scrip | D9: CLOSE RATE | E9: Pivot Point | F9: Supports | I9: Resistances
B10: Sector | D10: Point | E10: Point | F10: S1 | G10: S2 | H10: S3 | I10: R1 | J10: R2 | K10: R3 | L10: HIGH | M10: LOW | N10: OI | O10: % Change in OI
A11: 1 | B11: Index | C11: BANKNIFTY | D11: 26791.20 | E11: 26836.97 | F11: 26691.33 | G11: 26591.47 | H11: 26445.83 | I11: 26936.83 | J11: 27082.47 | K11: 27182.33 | L11: 26982.6 | M11: 26737.1 | N11: 1820380 | O11: 1.80%
A12: 2 | B12: Index | C12: NIFTY | D12: 10681.90 | E12: 10710.70 | F12: 10631.45 | G12: 10581.00 | H12: 10501.75 | I12: 10761.15 | J12: 10840.40 | K12: 10890.85 | L12: 10789.95 | M12: 10660.25 | N12: 25837575 | O12: 1.96%
A13: 3 | B13: Index | C13: NIFTYIT | D13: 14259.00 | E13: 14291.33 | F13: 14192.67 | G13: 14126.33 | H13: 14027.67 | I13: 14357.67 | J13: 14456.33 | K13: 14522.67 | L13: 14390 | M13: 14225 | N13: 22250 | O13: -7.48%
A14: 4 | B14: Index | C14: NIFTYMID50 | D14: 4813.20 | E14: 1604.40 | F14: 3208.80 | G14: 1604.40 | H14: 3208.80 | I14: 3208.80 | J14: 1604.40 | K14: 3208.80 | L14: 0 | M14: 0 | N14: 591580 | O14: 0.00%
A15: 5 | B15: Cement | C15: ACC | D15: 1450.10 | E15: 1460.58 | F15: 1433.57 | G15: 1417.03 | H15: 1390.02 | I15: 1477.12 | J15: 1504.13 | K15: 1520.67 | L15: 1487.6 | M15: 1444.05 | N15: 1474400 | O15: 3.13%
A16: 6 | B16: Others | C16: ADANIENT | D16: 158.85 | E16: 158.72 | F16: 156.68 | G16: 154.52 | H16: 152.48 | I16: 160.88 | J16: 162.92 | K16: 165.08 | L16: 160.75 | M16: 156.55 | N16: 39880000 | O16: -3.34%
A17: 7 | B17: Others | C17: ADANIPORTS | D17: 361.60 | E17: 362.73 | F17: 358.17 | G17: 354.73 | H17: 350.17 | I17: 366.17 | J17: 370.73 | K17: 374.17 | L17: 367.3 | M17: 359.3 | N17: 24305000 | O17: -0.01%
A18: 8 | B18: Power | C18: ADANIPOWER | D18: 50.60 | E18: 50.65 | F18: 49.65 | G18: 48.70 | H18: 47.70 | I18: 51.60 | J18: 52.60 | K18: 53.55 | L18: 51.65 | M18: 49.7 | N18: 173500000 | O18: 0.29%
A19: 9 | B19: Pharma | C19: AJANTPHARM | D19: 1136.45 | E19: 1130.32 | F19: 1112.13 | G19: 1087.82 | H19: 1069.63 | I19: 1154.63 | J19: 1172.82 | K19: 1197.13 | L19: 1148.5 | M19: 1106 | N19: 546000 | O19: -0.36%
A20: 10 | B20: Banking | C20: ALBK | D20: 45.90 | E20: 45.90 | F20: 45.20 | G20: 44.50 | H20: 43.80 | I20: 46.60 | J20: 47.30 | K20: 48.00 | L20: 46.6 | M20: 45.2 | N20: 20284000 | O20: -9.74%
A21: 11 | B21: Automobile | C21: AMARAJABAT | D21: 745.05 | E21: 745.87 | F21: 740.43 | G21: 735.82 | H21: 730.38 | I21: 750.48 | J21: 755.92 | K21: 760.53 | L21: 751.3 | M21: 741.25 | N21: 1148700 | O21: -2.67%
A22: 12 | B22: Cement | C22: AMBUJACEM | D22: 213.70 | E22: 215.23 | F22: 211.67 | G22: 209.63 | H22: 206.07 | I22: 217.27 | J22: 220.83 | K22: 222.87 | L22: 218.8 | M22: 213.2 | N22: 17362500 | O22: -0.01%
A23: 13 | B23: Others | C23: APOLLOHOSP | D23: 1266.25 | E23: 1257.73 | F23: 1241.52 | G23: 1216.78 | H23: 1200.57 | I23: 1282.47 | J23: 1298.68 | K23: 1323.42 | L23: 1273.95 | M23: 1233 | N23: 957000 | O23: 3.18%
A24: 14 | B24: Automobile | C24: APOLLOTYRE | D24: 229.40 | E24: 229.48 | F24: 225.57 | G24: 221.73 | H24: 217.82 | I24: 233.32 | J24: 237.23 | K24: 241.07 | L24: 233.4 | M24: 225.65 | N24: 10119000 | O24: -0.03%
A25: 15 | B25: Textile | C25: ARVIND | D25: 98.90 | E25: 98.78 | F25: 97.97 | G25: 97.03 | H25: 96.22 | I25: 99.72 | J25: 100.53 | K25: 101.47 | L25: 99.6 | M25: 97.85 | N25: 7216000 | O25: -0.74%
A26: 16 | B26: Automobile | C26: ASHOKLEY | D26: 104.55 | E26: 104.55 | F26: 103.75 | G26: 102.95 | H26: 102.15 | I26: 105.35 | J26: 106.15 | K26: 106.95 | L26: 105.35 | M26: 103.75 | N26: 62008000 | O26: -1.62%
A27: 17 | B27: FMCG | C27: ASIANPAINT | D27: 1361.25 | E27: 1369.27 | F27: 1347.68 | G27: 1334.12 | H27: 1312.53 | I27: 1382.83 | J27: 1404.42 | K27: 1417.98 | L27: 1390.85 | M27: 1355.7 | N27: 5694600 | O27: 1.77%
A28: 18 | B28: Pharma | C28: AUROPHARMA | D28: 716.95 | E28: 723.93 | F28: 707.17 | G28: 697.38 | H28: 680.62 | I28: 733.72 | J28: 750.48 | K28: 760.27 | L28: 740.7 | M28: 714.15 | N28: 24489000 | O28: 8.17%
A29: 19 | B29: Banking | C29: AXISBANK | D29: 616.35 | E29: 619.63 | F29: 611.27 | G29: 606.18 | H29: 597.82 | I29: 624.72 | J29: 633.08 | K29: 638.17 | L29: 628 | M29: 614.55 | N29: 39699600 | O29: 5.89%
A30: 20 | B30: Automobile | C30: BAJAJ-AUTO | D30: 2730.65 | E30: 2758.50 | F30: 2691.50 | G30: 2652.35 | H30: 2585.35 | I30: 2797.65 | J30: 2864.65 | K30: 2903.80 | L30: 2825.5 | M30: 2719.35 | N30: 2278250 | O30: 0.83%
A31: 21 | B31: Others | C31: BAJAJFINSV | D31: 6279.25 | E31: 6312.33 | F31: 6232.67 | G31: 6186.08 | H31: 6106.42 | I31: 6358.92 | J31: 6438.58 | K31: 6485.17 | L31: 6392 | M31: 6265.75 | N31: 660625 | O31: 0.36%
A32: 22 | B32: Finance | C32: BAJFINANCE | D32: 2571.25 | E32: 2578.32 | F32: 2549.63 | G32: 2528.02 | H32: 2499.33 | I32: 2599.93 | J32: 2628.62 | K32: 2650.23 | L32: 2607 | M32: 2556.7 | N32: 6034750 | O32: -0.45%
A33: 23 | B33: Others | C33: BALKRISIND | D33: 911.55 | E33: 914.43 | F33: 901.22 | G33: 890.88 | H33: 877.67 | I33: 924.77 | J33: 937.98 | K33: 948.32 | L33: 927.65 | M33: 904.1 | N33: 3039200 | O33: 1.12%
A34: 24 | B34: Banking | C34: BANKBARODA | D34: 115.70 | E34: 115.80 | F34: 114.50 | G34: 113.30 | H34: 112.00 | I34: 117.00 | J34: 118.30 | K34: 119.50 | L34: 117.1 | M34: 114.6 | N34: 67504000 | O34: 0.99%
A35: 25 | B35: Banking | C35: BANKINDIA | D35: 101.15 | E35: 99.98 | F35: 97.77 | G35: 94.38 | H35: 92.17 | I35: 103.37 | J35: 105.58 | K35: 108.97 | L35: 102.2 | M35: 96.6 | N35: 26280000 | O35: -0.05%
A36: 26 | B36: FMCG | C36: BATAINDIA | D36: 1104.15 | E36: 1108.03 | F36: 1093.32 | G36: 1082.48 | H36: 1067.77 | I36: 1118.87 | J36: 1133.58 | K36: 1144.42 | L36: 1122.75 | M36: 1097.2 | N36: 2438700 | O36: 1.58%
A37: 27 | B37: Capital_Goods | C37: BEL | D37: 88.00 | E37: 88.18 | F37: 86.97 | G37: 85.93 | H37: 84.72 | I37: 89.22 | J37: 90.43 | K37: 91.47 | L37: 89.4 | M37: 87.15 | N37: 44130900 | O37: 0.53%
A38: 28 | B38: Infrastructure | C38: BEML | D38: 871.85 | E38: 885.45 | F38: 852.90 | G38: 833.95 | H38: 801.40 | I38: 904.40 | J38: 936.95 | K38: 955.90 | L38: 918 | M38: 866.5 | N38: 1743500 | O38: 5.29%
A39: 29 | B39: Others | C39: BERGEPAINT | D39: 324.45 | E39: 326.68 | F39: 319.97 | G39: 315.48 | H39: 308.77 | I39: 331.17 | J39: 337.88 | K39: 342.37 | L39: 333.4 | M39: 322.2 | N39: 2384800 | O39: -8.98%
A40: 30 | B40: Finance | C40: BHARATFIN | D40: 985.25 | E40: 990.92 | F40: 975.68 | G40: 966.12 | H40: 950.88 | I40: 1000.48 | J40: 1015.72 | K40: 1025.28 | L40: 1006.15 | M40: 981.35 | N40: 5562000 | O40: 2.27%
A41: 31 | B41: Automobile | C41: BHARATFORG | D41: 502.80 | E41: 500.42 | F41: 494.03 | G41: 485.27 | H41: 478.88 | I41: 509.18 | J41: 515.57 | K41: 524.33 | L41: 506.8 | M41: 491.65 | N41: 11166000 | O41: -0.06%
A42: 32 | B42: Telecom | C42: BHARTIARTL | D42: 309.20 | E42: 308.58 | F42: 304.82 | G42: 300.43 | H42: 296.67 | I42: 312.97 | J42: 316.73 | K42: 321.12 | L42: 312.35 | M42: 304.2 | N42: 43637300 | O42: 3.35%
A43: 33 | B43: Capital_Goods | C43: BHEL | D43: 71.25 | E43: 71.32 | F43: 69.53 | G43: 67.82 | H43: 66.03 | I43: 73.03 | J43: 74.82 | K43: 76.53 | L43: 73.1 | M43: 69.6 | N43: 63922500 | O43: 4.19%
A44: 34 | B44: Pharma | C44: BIOCON | D44: 610.30 | E44: 613.48 | F44: 604.32 | G44: 598.33 | H44: 589.17 | I44: 619.47 | J44: 628.63 | K44: 634.62 | L44: 622.65 | M44: 607.5 | N44: 5890500 | O44: -0.88%
A45: 35 | B45: Automobile | C45: BOSCHLTD | D45: 19475.30 | E45: 19612.98 | F45: 19282.32 | G45: 19089.33 | H45: 18758.67 | I45: 19805.97 | J45: 20136.63 | K45: 20329.62 | L45: 19943.65 | M45: 19420 | N45: 160410 | O45: 8.28%
A46: 36 | B46: Oil_Gas | C46: BPCL | D46: 366.20 | E46: 369.13 | F46: 361.77 | G46: 357.33 | H46: 349.97 | I46: 373.57 | J46: 380.93 | K46: 385.37 | L46: 376.5 | M46: 364.7 | N46: 16999200 | O46: -1.32%
A47: 37 | B47: FMCG | C47: BRITANNIA | D47: 3101.30 | E47: 3113.63 | F47: 3072.17 | G47: 3043.03 | H47: 3001.57 | I47: 3142.77 | J47: 3184.23 | K47: 3213.37 | L47: 3155.1 | M47: 3084.5 | N47: 2840200 | O47: 3.10%
A48: 38 | B48: Pharma | C48: CADILAHC | D48: 341.75 | E48: 342.40 | F48: 339.90 | G48: 338.05 | H48: 335.55 | I48: 344.25 | J48: 346.75 | K48: 348.60 | L48: 344.9 | M48: 340.55 | N48: 9297600 | O48: -0.84%
A49: 39 | B49: Banking | C49: CANBK | D49: 267.00 | E49: 266.90 | F49: 262.90 | G49: 258.80 | H49: 254.80 | I49: 271.00 | J49: 275.00 | K49: 279.10 | L49: 270.9 | M49: 262.8 | N49: 11486000 | O49: -1.12%
A50: 40 | B50: Others | C50: CANFINHOME | D50: 276.80 | E50: 278.98 | F50: 273.17 | G50: 269.53 | H50: 263.72 | I50: 282.62 | J50: 288.43 | K50: 292.07 | L50: 284.8 | M50: 275.35 | N50: 5147800 | O50: 1.14%
A51: 41 | B51: Finance | C51: CAPF | D51: 594.05 | E51: 596.22 | F51: 587.83 | G51: 581.62 | H51: 573.23 | I51: 602.43 | J51: 610.82 | K51: 617.03 | L51: 604.6 | M51: 590 | N51: 5007300 | O51: -7.53%
A52: 42 | B52: Oil_Gas | C52: CASTROLIND | D52: 151.40 | E52: 151.92 | F52: 150.18 | G52: 148.97 | H52: 147.23 | I52: 153.13 | J52: 154.87 | K52: 156.08 | L52: 153.65 | M52: 150.7 | N52: 7199600 | O52: 3.29%
A53: 43 | B53: Automobile | C53: CEATLTD | D53: 1263.95 | E53: 1277.68 | F53: 1244.37 | G53: 1224.78 | H53: 1191.47 | I53: 1297.27 | J53: 1330.58 | K53: 1350.17 | L53: 1311 | M53: 1258.1 | N53: 909300 | O53: -2.70%
A54: 44 | B54: Textile | C54: CENTURYTEX | D54: 898.55 | E54: 902.05 | F54: 892.60 | G54: 886.65 | H54: 877.20 | I54: 908.00 | J54: 917.45 | K54: 923.40 | L54: 911.5 | M54: 896.1 | N54: 4586000 | O54: 2.72%
A55: 45 | B55: Power | C55: CESC | D55: 670.95 | E55: 676.80 | F55: 661.40 | G55: 651.85 | H55: 636.45 | I55: 686.35 | J55: 701.75 | K55: 711.30 | L55: 692.2 | M55: 667.25 | N55: 1868350 | O55: 6.22%
A56: 46 | B56: Power | C56: CGPOWER | D56: 44.25 | E56: 44.02 | F56: 42.68 | G56: 41.12 | H56: 39.78 | I56: 45.58 | J56: 46.92 | K56: 48.48 | L56: 45.35 | M56: 42.45 | N56: 48348000 | O56: -2.99%
A57: 47 | B57: Others | C57: CHENNPETRO | D57: 278.80 | E57: 280.48 | F57: 276.17 | G57: 273.53 | H57: 269.22 | I57: 283.12 | J57: 287.43 | K57: 290.07 | L57: 284.8 | M57: 277.85 | N57: 1351500 | O57: 18.02%
A58: 48 | B58: Others | C58: CHOLAFIN | D58: 1227.60 | E58: 1228.55 | F58: 1203.05 | G58: 1178.50 | H58: 1153.00 | I58: 1253.10 | J58: 1278.60 | K58: 1303.15 | L58: 1254.05 | M58: 1204 | N58: 1234000 | O58: 3.01%
A59: 49 | B59: Pharma | C59: CIPLA | D59: 518.90 | E59: 518.12 | F59: 514.83 | G59: 510.77 | H59: 507.48 | I59: 522.18 | J59: 525.47 | K59: 529.53 | L59: 521.4 | M59: 514.05 | N59: 8247000 | O59: -3.03%
A60: 50 | B60: Others | C60: COALINDIA | D60: 248.45 | E60: 249.47 | F60: 245.93 | G60: 243.42 | H60: 239.88 | I60: 251.98 | J60: 255.52 | K60: 258.03 | L60: 253 | M60: 246.95 | N60: 32551200 | O60: -4.13%
A61: 51 | B61: FMCG | C61: COLPAL | D61: 1311.70 | E61: 1317.97 | F61: 1301.03 | G61: 1290.37 | H61: 1273.43 | I61: 1328.63 | J61: 1345.57 | K61: 1356.23 | L61: 1334.9 | M61: 1307.3 | N61: 1731800 | O61: 4.26%
A62: 52 | B62: Others | C62: CONCOR | D62: 649.70 | E62: 651.85 | F62: 644.95 | G62: 640.20 | H62: 633.30 | I62: 656.60 | J62: 663.50 | K62: 668.25 | L62: 658.75 | M62: 647.1 | N62: 3998750 | O62: 2.89%
A63: 53 | B63: Capital_Goods | C63: CUMMINSIND | D63: 789.70 | E63: 791.07 | F63: 777.63 | G63: 765.57 | H63: 752.13 | I63: 803.13 | J63: 816.57 | K63: 828.63 | L63: 804.5 | M63: 779 | N63: 2033500 | O63: -1.86%
A64: 54 | B64: FMCG | C64: DABUR | D64: 427.30 | E64: 431.57 | F64: 421.33 | G64: 415.37 | H64: 405.13 | I64: 437.53 | J64: 447.77 | K64: 453.73 | L64: 441.8 | M64: 425.6 | N64: 11028750 | O64: -2.91%
A65: 55 | B65: Banking | C65: DCBBANK | D65: 164.65 | E65: 164.67 | F65: 162.33 | G65: 160.02 | H65: 157.68 | I65: 166.98 | J65: 169.32 | K65: 171.63 | L65: 167 | M65: 162.35 | N65: 4621500 | O65: -8.39%
A66: 56 | B66: Finance | C66: DHFL | D66: 235.40 | E66: 237.68 | F66: 230.57 | G66: 225.73 | H66: 218.62 | I66: 242.52 | J66: 249.63 | K66: 254.47 | L66: 244.8 | M66: 232.85 | N66: 21192000 | O66: -2.75%
A67: 57 | B67: Media | C67: DISHTV | D67: 36.95 | E67: 37.47 | F67: 35.98 | G67: 35.02 | H67: 33.53 | I67: 38.43 | J67: 39.92 | K67: 40.88 | L67: 38.95 | M67: 36.5 | N67: 63776000 | O67: 6.51%
A68: 58 | B68: Pharma | C68: DIVISLAB | D68: 1451.15 | E68: 1460.53 | F68: 1427.27 | G68: 1403.38 | H68: 1370.12 | I68: 1484.42 | J68: 1517.68 | K68: 1541.57 | L68: 1493.8 | M68: 1436.65 | N68: 3799200 | O68: 6.68%
A69: 59 | B69: Realty | C69: DLF | D69: 178.70 | E69: 180.83 | F69: 175.12 | G69: 171.53 | H69: 165.82 | I69: 184.42 | J69: 190.13 | K69: 193.72 | L69: 186.55 | M69: 177.25 | N69: 26010500 | O69: -3.09%
A70: 60 | B70: Pharma | C70: DRREDDY | D70: 2605.60 | E70: 2601.17 | F70: 2582.33 | G70: 2559.07 | H70: 2540.23 | I70: 2624.43 | J70: 2643.27 | K70: 2666.53 | L70: 2620 | M70: 2577.9 | N70: 3844750 | O70: -1.88%
A71: 61 | B71: Automobile | C71: EICHERMOT | D71: 23224.85 | E71: 23313.35 | F71: 23071.60 | G71: 22918.35 | H71: 22676.60 | I71: 23466.60 | J71: 23708.35 | K71: 23861.60 | L71: 23555.1 | M71: 23160.1 | N71: 283200 | O71: 12.07%
A72: 62 | B72: Infrastructure | C72: ENGINERSIN | D72: 125.90 | E72: 125.62 | F72: 121.93 | G72: 117.97 | H72: 114.28 | I72: 129.58 | J72: 133.27 | K72: 137.23 | L72: 129.3 | M72: 121.65 | N72: 9210700 | O72: 21.29%
A73: 63 | B73: Finance | C73: EQUITAS | D73: 124.25 | E73: 123.32 | F73: 121.68 | G73: 119.12 | H73: 117.48 | I73: 125.88 | J73: 127.52 | K73: 130.08 | L73: 124.95 | M73: 120.75 | N73: 9408000 | O73: 0.13%
A74: 64 | B74: Automobile | C74: ESCORTS | D74: 672.05 | E74: 677.00 | F74: 664.20 | G74: 656.35 | H74: 643.55 | I74: 684.85 | J74: 697.65 | K74: 705.50 | L74: 689.8 | M74: 669.15 | N74: 4638700 | O74: -0.14%
A75: 65 | B75: Automobile | C75: EXIDEIND | D75: 258.45 | E75: 260.25 | F75: 254.85 | G75: 251.25 | H75: 245.85 | I75: 263.85 | J75: 269.25 | K75: 272.85 | L75: 265.65 | M75: 256.65 | N75: 6108000 | O75: 15.07%
A76: 66 | B76: Banking | C76: FEDERALBNK | D76: 94.10 | E76: 94.15 | F76: 92.65 | G76: 91.20 | H76: 89.70 | I76: 95.60 | J76: 97.10 | K76: 98.55 | L76: 95.65 | M76: 92.7 | N76: 43771000 | O76: 6.96%
A77: 67 | B77: Oil_Gas | C77: GAIL | D77: 347.65 | E77: 345.82 | F77: 341.93 | G77: 336.22 | H77: 332.33 | I77: 351.53 | J77: 355.42 | K77: 361.13 | L77: 349.7 | M77: 340.1 | N77: 21965412 | O77: 6.42%
A78: 68 | B78: Pharma | C78: GLENMARK | D78: 678.90 | E78: 676.15 | F78: 669.35 | G78: 659.80 | H78: 653.00 | I78: 685.70 | J78: 692.50 | K78: 702.05 | L78: 682.95 | M78: 666.6 | N78: 3949000 | O78: 4.66%
A79: 69 | B79: Infrastructure | C79: GMRINFRA | D79: 15.80 | E79: 15.73 | F79: 15.52 | G79: 15.23 | H79: 15.02 | I79: 16.02 | J79: 16.23 | K79: 16.52 | L79: 15.95 | M79: 15.45 | N79: 192555000 | O79: -5.19%
A80: 70 | B80: Others | C80: GODFRYPHLP | D80: 845.25 | E80: 847.47 | F80: 828.78 | G80: 812.32 | H80: 793.63 | I80: 863.93 | J80: 882.62 | K80: 899.08 | L80: 866.15 | M80: 831 | N80: 614600 | O80: 8.13%
A81: 71 | B81: FMCG | C81: GODREJCP | D81: 804.40 | E81: 808.43 | F81: 795.92 | G81: 787.43 | H81: 774.92 | I81: 816.92 | J81: 829.43 | K81: 837.92 | L81: 820.95 | M81: 799.95 | N81: 4899600 | O81: 5.57%
A82: 72 | B82: FMCG | C82: GODREJIND | D82: 515.75 | E82: 518.47 | F82: 511.43 | G82: 507.12 | H82: 500.08 | I82: 522.78 | J82: 529.82 | K82: 534.13 | L82: 525.5 | M82: 514.15 | N82: 2437500 | O82: 13.56%
A83: 73 | B83: Cement | C83: GRASIM | D83: 810.35 | E83: 815.22 | F83: 801.83 | G83: 793.32 | H83: 779.93 | I83: 823.73 | J83: 837.12 | K83: 845.63 | L83: 828.6 | M83: 806.7 | N83: 10137000 | O83: 0.15%
A84: 74 | B84: Others | C84: GSFC | D84: 108.30 | E84: 109.22 | F84: 107.08 | G84: 105.87 | H84: 103.73 | I84: 110.43 | J84: 112.57 | K84: 113.78 | L84: 111.35 | M84: 108 | N84: 16062600 | O84: -1.88%
A85: 75 | B85: Others | C85: HAVELLS | D85: 669.45 | E85: 676.18 | F85: 660.62 | G85: 651.78 | H85: 636.22 | I85: 685.02 | J85: 700.58 | K85: 709.42 | L85: 691.75 | M85: 667.35 | N85: 5250000 | O85: -3.14%
A86: 76 | B86: Technology | C86: HCLTECH | D86: 939.65 | E86: 943.98 | F86: 933.27 | G86: 926.88 | H86: 916.17 | I86: 950.37 | J86: 961.08 | K86: 967.47 | L86: 954.7 | M86: 937.6 | N86: 10077200 | O86: 2.14%
A87: 77 | B87: Finance | C87: HDFC | D87: 1906.25 | E87: 1919.88 | F87: 1889.07 | G87: 1871.88 | H87: 1841.07 | I87: 1937.07 | J87: 1967.88 | K87: 1985.07 | L87: 1950.7 | M87: 1902.7 | N87: 27076500 | O87: 0.52%
A88: 78 | B88: Banking | C88: HDFCBANK | D88: 2087.45 | E88: 2093.97 | F88: 2077.08 | G88: 2066.72 | H88: 2049.83 | I88: 2104.33 | J88: 2121.22 | K88: 2131.58 | L88: 2110.85 | M88: 2083.6 | N88: 13897000 | O88: 2.75%
A89: 79 | B89: Automobile | C89: HEROMOTOCO | D89: 3174.85 | E89: 3211.50 | F89: 3121.00 | G89: 3067.15 | H89: 2976.65 | I89: 3265.35 | J89: 3355.85 | K89: 3409.70 | L89: 3302 | M89: 3157.65 | N89: 1356800 | O89: 0.38%
A90: 80 | B90: Technology | C90: HEXAWARE | D90: 314.45 | E90: 314.83 | F90: 310.82 | G90: 307.18 | H90: 303.17 | I90: 318.47 | J90: 322.48 | K90: 326.12 | L90: 318.85 | M90: 311.2 | N90: 3495000 | O90: 8.68%
A91: 81 | B91: Metals | C91: HINDALCO | D91: 218.25 | E91: 219.68 | F91: 215.97 | G91: 213.68 | H91: 209.97 | I91: 221.97 | J91: 225.68 | K91: 227.97 | L91: 223.4 | M91: 217.4 | N91: 30943500 | O91: 2.30%
A92: 82 | B92: Oil_Gas | C92: HINDPETRO | D92: 247.05 | E92: 249.00 | F92: 243.55 | G92: 240.05 | H92: 234.60 | I92: 252.50 | J92: 257.95 | K92: 261.45 | L92: 254.45 | M92: 245.5 | N92: 23704275 | O92: 2.91%
A93: 83 | B93: FMCG | C93: HINDUNILVR | D93: 1790.05 | E93: 1796.55 | F93: 1776.10 | G93: 1762.15 | H93: 1741.70 | I93: 1810.50 | J93: 1830.95 | K93: 1844.90 | L93: 1817 | M93: 1782.6 | N93: 10663200 | O93: 0.43%
A94: 84 | B94: Metals | C94: HINDZINC | D94: 270.40 | E94: 272.30 | F94: 267.15 | G94: 263.90 | H94: 258.75 | I94: 275.55 | J94: 280.70 | K94: 283.95 | L94: 277.45 | M94: 269.05 | N94: 6156800 | O94: 4.40%
A95: 85 | B95: Finance | C95: IBULHSGFIN | D95: 820.20 | E95: 822.23 | F95: 808.97 | G95: 797.73 | H95: 784.47 | I95: 833.47 | J95: 846.73 | K95: 857.97 | L95: 835.5 | M95: 811 | N95: 19021000 | O95: -0.97%
A96: 86 | B96: Banking | C96: ICICIBANK | D96: 353.50 | E96: 354.30 | F96: 351.35 | G96: 349.20 | H96: 346.25 | I96: 356.45 | J96: 359.40 | K96: 361.55 | L96: 357.25 | M96: 352.15 | N96: 87309750 | O96: 6.81%
A97: 87 | B97: Others | C97: ICICIPRULI | D97: 325.00 | E97: 326.88 | F97: 321.42 | G97: 317.83 | H97: 312.37 | I97: 330.47 | J97: 335.93 | K97: 339.52 | L97: 332.35 | M97: 323.3 | N97: 4040800 | O97: -5.97%
A98: 88 | B98: Banking | C98: IDBI | D98: 61.40 | E98: 61.52 | F98: 61.18 | G98: 60.97 | H98: 60.63 | I98: 61.73 | J98: 62.07 | K98: 62.28 | L98: 61.85 | M98: 61.3 | N98: 36870000 | O98: -4.26%
A99: 89 | B99: Telecom | C99: IDEA | D99: 37.40 | E99: 37.62 | F99: 37.03 | G99: 36.67 | H99: 36.08 | I99: 37.98 | J99: 38.57 | K99: 38.93 | L99: 38.2 | M99: 37.25 | N99: 163130000 | O99: 15.56%
A100: 90 | B100: Finance | C100: IDFC | D100: 43.25 | E100: 43.23 | F100: 42.42 | G100: 41.58 | H100: 40.77 | I100: 44.07 | J100: 44.88 | K100: 45.72 | L100: 44.05 | M100: 42.4 | N100: 130204800 | O100: 12.30%
A101: 91 | B101: Banking | C101: IDFCBANK | D101: 43.15 | E101: 43.48 | F101: 42.52 | G101: 41.88 | H101: 40.92 | I101: 44.12 | J101: 45.08 | K101: 45.72 | L101: 44.45 | M101: 42.85 | N101: 158552000 | O101: 3.75%
A102: 92 | B102: Finance | C102: IFCI | D102: 14.40 | E102: 14.42 | F102: 14.23 | G102: 14.07 | H102: 13.88 | I102: 14.58 | J102: 14.77 | K102: 14.93 | L102: 14.6 | M102: 14.25 | N102: 51105000 | O102: 0.89%
A103: 93 | B103: Oil_Gas | C103: IGL | D103: 264.40 | E103: 262.83 | F103: 258.57 | G103: 252.73 | H103: 248.47 | I103: 268.67 | J103: 272.93 | K103: 278.77 | L103: 267.1 | M103: 257 | N103: 6052750 | O103: 2.18%
A104: 94 | B104: Cement | C104: INDIACEM | D104: 92.00 | E104: 92.68 | F104: 90.52 | G104: 89.03 | H104: 86.87 | I104: 94.17 | J104: 96.33 | K104: 97.82 | L104: 94.85 | M104: 91.2 | N104: 18196000 | O104: 8.82%
A105: 95 | B105: Banking | C105: INDIANB | D105: 238.80 | E105: 239.43 | F105: 235.47 | G105: 232.13 | H105: 228.17 | I105: 242.77 | J105: 246.73 | K105: 250.07 | L105: 243.4 | M105: 236.1 | N105: 4618000 | O105: -1.95%
A106: 96 | B106: Others | C106: INDIGO | D106: 1163.60 | E106: 1162.63 | F106: 1149.37 | G106: 1135.13 | H106: 1121.87 | I106: 1176.87 | J106: 1190.13 | K106: 1204.37 | L106: 1175.9 | M106: 1148.4 | N106: 3136800 | O106: 0.15%
A107: 97 | B107: Banking | C107: INDUSINDBK | D107: 1565.45 | E107: 1573.03 | F107: 1551.12 | G107: 1536.78 | H107: 1514.87 | I107: 1587.37 | J107: 1609.28 | K107: 1623.62 | L107: 1594.95 | M107: 1558.7 | N107: 6352200 | O107: 2.76%
A108: 98 | B108: Technology | C108: INFIBEAM | D108: 47.35 | E108: 48.03 | F108: 46.32 | G108: 45.28 | H108: 43.57 | I108: 49.07 | J108: 50.78 | K108: 51.82 | L108: 49.75 | M108: 47 | N108: 14276000 | O108: -4.57%
A109: 99 | B109: Telecom | C109: INFRATEL | D109: 262.95 | E109: 261.73 | F109: 251.87 | G109: 240.78 | H109: 230.92 | I109: 272.82 | J109: 282.68 | K109: 293.77 | L109: 271.6 | M109: 250.65 | N109: 11141500 | O109: 12.17%
A110: 100 | B110: Technology | C110: INFY | D110: 649.15 | E110: 652.15 | F110: 645.20 | G110: 641.25 | H110: 634.30 | I110: 656.10 | J110: 663.05 | K110: 667.00 | L110: 659.1 | M110: 648.2 | N110: 49933200 | O110: 2.73%
A111: 101 | B111: Oil_Gas | C111: IOC | D111: 135.40 | E111: 137.03 | F111: 133.07 | G111: 130.73 | H111: 126.77 | I111: 139.37 | J111: 143.33 | K111: 145.67 | L111: 141 | M111: 134.7 | N111: 74863500 | O111: 1.47%
A112: 102 | B112: Infrastructure | C112: IRB | D112: 160.25 | E112: 162.52 | F112: 156.58 | G112: 152.92 | H112: 146.98 | I112: 166.18 | J112: 172.12 | K112: 175.78 | L112: 168.45 | M112: 158.85 | N112: 7868600 | O112: -4.08%
A113: 103 | B113: FMCG | C113: ITC | D113: 276.60 | E113: 277.67 | F113: 274.68 | G113: 272.77 | H113: 269.78 | I113: 279.58 | J113: 282.57 | K113: 284.48 | L113: 280.65 | M113: 275.75 | N113: 79039200 | O113: -0.21%
A114: 104 | B114: Others | C114: JETAIRWAYS | D114: 240.30 | E114: 240.80 | F114: 233.10 | G114: 225.90 | H114: 218.20 | I114: 248.00 | J114: 255.70 | K114: 262.90 | L114: 248.5 | M114: 233.6 | N114: 5427400 | O114: -5.09%
A115: 105 | B115: Metals | C115: JINDALSTEL | D115: 158.90 | E115: 160.43 | F115: 156.37 | G115: 153.83 | H115: 149.77 | I115: 162.97 | J115: 167.03 | K115: 169.57 | L115: 164.5 | M115: 157.9 | N115: 27263250 | O115: 4.39%
A116: 106 | B116: Others | C116: JISLJALEQS | D116: 67.75 | E116: 68.07 | F116: 66.78 | G116: 65.82 | H116: 64.53 | I116: 69.03 | J116: 70.32 | K116: 71.28 | L116: 69.35 | M116: 67.1 | N116: 36927000 | O116: 2.75%
A117: 107 | B117: Realty | C117: JPASSOCIAT | D117: 7.20 | E117: 7.37 | F117: 6.93 | G117: 6.67 | H117: 6.23 | I117: 7.63 | J117: 8.07 | K117: 8.33 | L117: 7.8 | M117: 7.1 | N117: 123725000 | O117: 6.36%
A118: 108 | B118: Metals | C118: JSWSTEEL | D118: 292.75 | E118: 297.60 | F118: 286.45 | G118: 280.15 | H118: 269.00 | I118: 303.90 | J118: 315.05 | K118: 321.35 | L118: 308.75 | M118: 291.3 | N118: 50191500 | O118: 3.81%
A119: 109 | B119: Others | C119: JUBLFOOD | D119: 1224.20 | E119: 1255.83 | F119: 1186.67 | G119: 1149.13 | H119: 1079.97 | I119: 1293.37 | J119: 1362.53 | K119: 1400.07 | L119: 1325 | M119: 1218.3 | N119: 2488000 | O119: 17.50%
A120: 110 | B120: Others | C120: JUSTDIAL | D120: 478.30 | E120: 480.17 | F120: 473.08 | G120: 467.87 | H120: 460.78 | I120: 485.38 | J120: 492.47 | K120: 497.68 | L120: 487.25 | M120: 474.95 | N120: 2648800 | O120: -6.94%
A121: 111 | B121: Others | C121: KAJARIACER | D121: 482.15 | E121: 486.47 | F121: 476.53 | G121: 470.92 | H121: 460.98 | I121: 492.08 | J121: 502.02 | K121: 507.63 | L121: 496.4 | M121: 480.85 | N121: 2698100 | O121: -0.71%
A122: 112 | B122: Banking | C122: KOTAKBANK | D122: 1242.00 | E122: 1238.27 | F122: 1228.08 | G122: 1214.17 | H122: 1203.98 | I122: 1252.18 | J122: 1262.37 | K122: 1276.28 | L122: 1248.45 | M122: 1224.35 | N122: 12886400 | O122: 3.07%
A123: 113 | B123: Technology | C123: KPIT | D123: 218.95 | E123: 220.48 | F123: 216.47 | G123: 213.98 | H123: 209.97 | I123: 222.97 | J123: 226.98 | K123: 229.47 | L123: 224.5 | M123: 218 | N123: 6027750 | O123: -2.62%
A124: 114 | B124: Others | C124: KSCL | D124: 575.40 | E124: 577.55 | F124: 570.60 | G124: 565.80 | H124: 558.85 | I124: 582.35 | J124: 589.30 | K124: 594.10 | L124: 584.5 | M124: 572.75 | N124: 1261500 | O124: -0.59%
A125: 115 | B125: Banking | C125: KTKBANK | D125: 108.45 | E125: 108.60 | F125: 107.35 | G125: 106.25 | H125: 105.00 | I125: 109.70 | J125: 110.95 | K125: 112.05 | L125: 109.85 | M125: 107.5 | N125: 16085400 | O125: -2.88%
A126: 116 | B126: Finance | C126: L&TFH | D126: 152.10 | E126: 151.92 | F126: 149.33 | G126: 146.57 | H126: 143.98 | I126: 154.68 | J126: 157.27 | K126: 160.03 | L126: 154.5 | M126: 149.15 | N126: 20142000 | O126: -0.31%
A127: 117 | B127: Finance | C127: LICHSGFIN | D127: 473.05 | E127: 473.03 | F127: 467.37 | G127: 461.68 | H127: 456.02 | I127: 478.72 | J127: 484.38 | K127: 490.07 | L127: 478.7 | M127: 467.35 | N127: 8752700 | O127: 0.54%
A128: 118 | B128: Capital_Goods | C128: LT | D128: 1406.60 | E128: 1412.62 | F128: 1395.68 | G128: 1384.77 | H128: 1367.83 | I128: 1423.53 | J128: 1440.47 | K128: 1451.38 | L128: 1429.55 | M128: 1401.7 | N128: 10645500 | O128: 0.56%
A129: 119 | B129: Pharma | C129: LUPIN | D129: 838.50 | E129: 849.42 | F129: 821.38 | G129: 804.27 | H129: 776.23 | I129: 866.53 | J129: 894.57 | K129: 911.68 | L129: 877.45 | M129: 832.3 | N129: 9798600 | O129: 7.04%
A130: 120 | B130: Automobile | C130: M&M | D130: 787.75 | E130: 785.15 | F130: 777.85 | G130: 767.95 | H130: 760.65 | I130: 795.05 | J130: 802.35 | K130: 812.25 | L130: 792.45 | M130: 775.25 | N130: 13311000 | O130: -0.67%
A131: 121 | B131: Finance | C131: M&MFIN | D131: 470.10 | E131: 470.52 | F131: 462.73 | G131: 455.37 | H131: 447.58 | I131: 477.88 | J131: 485.67 | K131: 493.03 | L131: 478.3 | M131: 463.15 | N131: 11568750 | O131: 0.67%
A132: 122 | B132: Others | C132: MANAPPURAM | D132: 89.25 | E132: 88.92 | F132: 87.73 | G132: 86.22 | H132: 85.03 | I132: 90.43 | J132: 91.62 | K132: 93.13 | L132: 90.1 | M132: 87.4 | N132: 13170000 | O132: -0.86%
A133: 123 | B133: FMCG | C133: MARICO | D133: 371.65 | E133: 375.32 | F133: 366.33 | G133: 361.02 | H133: 352.03 | I133: 380.63 | J133: 389.62 | K133: 394.93 | L133: 384.3 | M133: 370 | N133: 8671000 | O133: 0.45%
A134: 124 | B134: Automobile | C134: MARUTI | D134: 7538.25 | E134: 7544.08 | F134: 7479.22 | G134: 7420.18 | H134: 7355.32 | I134: 7603.12 | J134: 7667.98 | K134: 7727.02 | L134: 7608.95 | M134: 7485.05 | N134: 2269200 | O134: 0.33%
A135: 125 | B135: FMCG | C135: MCDOWELL-N | D135: 609.95 | E135: 615.52 | F135: 602.43 | G135: 594.92 | H135: 581.83 | I135: 623.03 | J135: 636.12 | K135: 643.63 | L135: 628.6 | M135: 608 | N135: 11306250 | O135: 2.19%
A136: 126 | B136: Others | C136: MCX | D136: 716.55 | E136: 720.02 | F136: 709.98 | G136: 703.42 | H136: 693.38 | I136: 726.58 | J136: 736.62 | K136: 743.18 | L136: 730.05 | M136: 713.45 | N136: 2559200 | O136: 1.84%
A137: 127 | B137: Finance | C137: MFSL | D137: 439.85 | E137: 441.70 | F137: 436.90 | G137: 433.95 | H137: 429.15 | I137: 444.65 | J137: 449.45 | K137: 452.40 | L137: 446.5 | M137: 438.75 | N137: 2664000 | O137: 12.80%
A138: 128 | B138: Others | C138: MGL | D138: 877.45 | E138: 880.95 | F138: 870.50 | G138: 863.55 | H138: 853.10 | I138: 887.90 | J138: 898.35 | K138: 905.30 | L138: 891.4 | M138: 874 | N138: 1055400 | O138: 3.59%
A139: 129 | B139: Technology | C139: MINDTREE | D139: 838.85 | E139: 843.83 | F139: 830.02 | G139: 821.18 | H139: 807.37 | I139: 852.67 | J139: 866.48 | K139: 875.32 | L139: 857.65 | M139: 835 | N139: 2602200 | O139: 0.12%
A140: 130 | B140: Automobile | C140: MOTHERSUMI | D140: 162.10 | E140: 164.67 | F140: 158.83 | G140: 155.57 | H140: 149.73 | I140: 167.93 | J140: 173.77 | K140: 177.03 | L140: 170.5 | M140: 161.4 | N140: 26139450 | O140: 1.29%
A141: 131 | B141: Automobile | C141: MRF | D141: 66081.75 | E141: 66421.13 | F141: 65462.27 | G141: 64842.78 | H141: 63883.92 | I141: 67040.62 | J141: 67999.48 | K141: 68618.97 | L141: 67380 | M141: 65801.65 | N141: 29980 | O141: -0.79%
A142: 132 | B142: Others | C142: MRPL | D142: 72.75 | E142: 73.57 | F142: 71.53 | G142: 70.32 | H142: 68.28 | I142: 74.78 | J142: 76.82 | K142: 78.03 | L142: 75.6 | M142: 72.35 | N142: 6632500 | O142: 5.02%
A143: 133 | B143: Finance | C143: MUTHOOTFIN | D143: 494.75 | E143: 494.68 | F143: 487.67 | G143: 480.58 | H143: 473.57 | I143: 501.77 | J143: 508.78 | K143: 515.87 | L143: 501.7 | M143: 487.6 | N143: 3351000 | O143: -1.24%
A144: 134 | B144: Others | C144: NATIONALUM | D144: 61.65 | E144: 61.93 | F144: 61.22 | G144: 60.78 | H144: 60.07 | I144: 62.37 | J144: 63.08 | K144: 63.52 | L144: 62.65 | M144: 61.5 | N144: 33456000 | O144: 1.75%
A145: 135 | B145: Others | C145: NBCC | D145: 54.30 | E145: 54.90 | F145: 53.45 | G145: 52.60 | H145: 51.15 | I145: 55.75 | J145: 57.20 | K145: 58.05 | L145: 56.35 | M145: 54.05 | N145: 37440000 | O145: 4.60%
A146: 136 | B146: Infrastructure | C146: NCC | D146: 83.05 | E146: 83.27 | F146: 81.03 | G146: 79.02 | H146: 76.78 | I146: 85.28 | J146: 87.52 | K146: 89.53 | L146: 85.5 | M146: 81.25 | N146: 49704000 | O146: -4.46%
A147: 137 | B147: Others | C147: NESTLEIND | D147: 10947.25 | E147: 11006.73 | F147: 10790.87 | G147: 10634.48 | H147: 10418.62 | I147: 11163.12 | J147: 11378.98 | K147: 11535.37 | L147: 11222.6 | M147: 10850.35 | N147: 303450 | O147: 3.21%
A148: 138 | B148: Power | C148: NHPC | D148: 26.00 | E148: 26.00 | F148: 25.85 | G148: 25.70 | H148: 25.55 | I148: 26.15 | J148: 26.30 | K148: 26.45 | L148: 26.15 | M148: 25.85 | N148: 24516000 | O148: 4.97%
A149: 139 | B149: Technology | C149: NIITTECH | D149: 1115.20 | E149: 1115.05 | F149: 1107.10 | G149: 1099.00 | H149: 1091.05 | I149: 1123.15 | J149: 1131.10 | K149: 1139.20 | L149: 1123 | M149: 1106.95 | N149: 1829250 | O149: -1.22%
A150: 140 | B150: Metals | C150: NMDC | D150: 94.60 | E150: 94.55 | F150: 93.15 | G150: 91.70 | H150: 90.30 | I150: 96.00 | J150: 97.40 | K150: 98.85 | L150: 95.95 | M150: 93.1 | N150: 22536000 | O150: 1.32%
A151: 141 | B151: Power | C151: NTPC | D151: 146.60 | E151: 147.77 | F151: 144.33 | G151: 142.07 | H151: 138.63 | I151: 150.03 | J151: 153.47 | K151: 155.73 | L151: 151.2 | M151: 145.5 | N151: 50864000 | O151: -2.51%
A152: 142 | B152: Technology | C152: OFSS | D152: 3651.75 | E152: 3672.57 | F152: 3626.18 | G152: 3600.62 | H152: 3554.23 | I152: 3698.13 | J152: 3744.52 | K152: 3770.08 | L152: 3718.95 | M152: 3647 | N152: 183150 | O152: 0.58%
A153: 143 | B153: Oil_Gas | C153: OIL | D153: 174.65 | E153: 175.50 | F153: 173.10 | G153: 171.55 | H153: 169.15 | I153: 177.05 | J153: 179.45 | K153: 181.00 | L153: 177.9 | M153: 173.95 | N153: 9156906 | O153: -0.59%
A154: 144 | B154: Oil_Gas | C154: ONGC | D154: 148.05 | E154: 148.33 | F154: 146.92 | G154: 145.78 | H154: 144.37 | I154: 149.47 | J154: 150.88 | K154: 152.02 | L154: 149.75 | M154: 147.2 | N154: 62921250 | O154: -1.27%
A155: 145 | B155: Banking | C155: ORIENTBANK | D155: 95.60 | E155: 94.75 | F155: 93.30 | G155: 91.00 | H155: 89.55 | I155: 97.05 | J155: 98.50 | K155: 100.80 | L155: 96.2 | M155: 92.45 | N155: 14901000 | O155: 4.56%
A156: 146 | B156: Textile | C156: PAGEIND | D156: 23883.80 | E156: 24160.15 | F156: 23440.30 | G156: 22996.80 | H156: 22276.95 | I156: 24603.65 | J156: 25323.50 | K156: 25767.00 | L156: 24880 | M156: 23716.65 | N156: 150350 | O156: 2.42%
A157: 147 | B157: Others | C157: PCJEWELLER | D157: 83.00 | E157: 82.67 | F157: 80.98 | G157: 78.97 | H157: 77.28 | I157: 84.68 | J157: 86.37 | K157: 88.38 | L157: 84.35 | M157: 80.65 | N157: 9679000 | O157: 3.05%
A158: 148 | B158: Pharma | C158: PEL | D158: 2304.10 | E158: 2313.37 | F158: 2286.33 | G158: 2268.57 | H158: 2241.53 | I158: 2331.13 | J158: 2358.17 | K158: 2375.93 | L158: 2340.4 | M158: 2295.6 | N158: 2887120 | O158: 0.12%
A159: 149 | B159: Oil_Gas | C159: PETRONET | D159: 223.15 | E159: 223.67 | F159: 220.88 | G159: 218.62 | H159: 215.83 | I159: 225.93 | J159: 228.72 | K159: 230.98 | L159: 226.45 | M159: 221.4 | N159: 13833000 | O159: 3.69%
A160: 150 | B160: Finance | C160: PFC | D160: 100.30 | E160: 100.05 | F160: 98.50 | G160: 96.70 | H160: 95.15 | I160: 101.85 | J160: 103.40 | K160: 105.20 | L160: 101.6 | M160: 98.25 | N160: 47128200 | O160: 7.68%
A161: 151 | B161: FMCG | C161: PIDILITIND | D161: 1121.50 | E161: 1128.08 | F161: 1108.57 | G161: 1095.63 | H161: 1076.12 | I161: 1141.02 | J161: 1160.53 | K161: 1173.47 | L161: 1147.6 | M161: 1115.15 | N161: 3655000 | O161: 18.92%
A162: 152 | B162: Banking | C162: PNB | D162: 76.95 | E162: 76.85 | F162: 76.10 | G162: 75.25 | H162: 74.50 | I162: 77.70 | J162: 78.45 | K162: 79.30 | L162: 77.6 | M162: 76 | N162: 117820500 | O162: 1.11%
A163: 153 | B163: Power | C163: POWERGRID | D163: 194.25 | E163: 195.12 | F163: 192.53 | G163: 190.82 | H163: 188.23 | I163: 196.83 | J163: 199.42 | K163: 201.13 | L163: 197.7 | M163: 193.4 | N163: 44032000 | O163: 0.83%
A164: 154 | B164: Power | C164: PTC | D164: 87.80 | E164: 87.52 | F164: 86.48 | G164: 85.17 | H164: 84.13 | I164: 88.83 | J164: 89.87 | K164: 91.18 | L164: 88.55 | M164: 86.2 | N164: 6904000 | O164: 4.61%
A165: 155 | B165: Others | C165: PVR | D165: 1544.20 | E165: 1562.27 | F165: 1516.93 | G165: 1489.67 | H165: 1444.33 | I165: 1589.53 | J165: 1634.87 | K165: 1662.13 | L165: 1607.6 | M165: 1535 | N165: 1476800 | O165: 4.23%
A166: 156 | B166: Cement | C166: RAMCOCEM | D166: 623.80 | E166: 625.93 | F166: 613.92 | G166: 604.03 | H166: 592.02 | I166: 635.82 | J166: 647.83 | K166: 657.72 | L166: 637.95 | M166: 616.05 | N166: 698400 | O166: -2.24%
A167: 157 | B167: Others | C167: RAYMOND | D167: 833.55 | E167: 841.53 | F167: 819.12 | G167: 804.68 | H167: 782.27 | I167: 855.97 | J167: 878.38 | K167: 892.82 | L167: 863.95 | M167: 827.1 | N167: 4086400 | O167: 0.61%
A168: 158 | B168: Banking | C168: RBLBANK | D168: 562.95 | E168: 563.35 | F168: 557.90 | G168: 552.85 | H168: 547.40 | I168: 568.40 | J168: 573.85 | K168: 578.90 | L168: 568.8 | M168: 558.3 | N168: 7485600 | O168: 1.35%
A169: 159 | B169: Telecom | C169: RCOM | D169: 14.20 | E169: 14.12 | F169: 13.78 | G169: 13.37 | H169: 13.03 | I169: 14.53 | J169: 14.87 | K169: 15.28 | L169: 14.45 | M169: 13.7 | N169: 100206000 | O169: 11.91%
A170: 160 | B170: Power | C170: RECLTD | D170: 113.60 | E170: 112.20 | F170: 110.40 | G170: 107.20 | H170: 105.40 | I170: 115.40 | J170: 117.20 | K170: 120.40 | L170: 114 | M170: 109 | N170: 47364000 | O170: -2.18%
A171: 161 | B171: Finance | C171: RELCAPITAL | D171: 216.20 | E171: 218.30 | F171: 213.30 | G171: 210.40 | H171: 205.40 | I171: 221.20 | J171: 226.20 | K171: 229.10 | L171: 223.3 | M171: 215.4 | N171: 12916500 | O171: 8.14%
A172: 162 | B172: Oil_Gas | C172: RELIANCE | D172: 1090.55 | E172: 1094.38 | F172: 1083.82 | G172: 1077.08 | H172: 1066.52 | I172: 1101.12 | J172: 1111.68 | K172: 1118.42 | L172: 1104.95 | M172: 1087.65 | N172: 48892000 | O172: 1.36%
A173: 163 | B173: Power | C173: RELINFRA | D173: 307.55 | E173: 307.97 | F173: 303.38 | G173: 299.22 | H173: 294.63 | I173: 312.13 | J173: 316.72 | K173: 320.88 | L173: 312.55 | M173: 303.8 | N173: 9974900 | O173: 0.31%
A174: 164 | B174: Others | C174: REPCOHOME | D174: 392.55 | E174: 388.35 | F174: 380.80 | G174: 369.05 | H174: 361.50 | I174: 400.10 | J174: 407.65 | K174: 419.40 | L174: 395.9 | M174: 376.6 | N174: 1825400 | O174: 2.77%
A175: 165 | B175: Power | C175: RPOWER | D175: 27.65 | E175: 27.88 | F175: 27.27 | G175: 26.88 | H175: 26.27 | I175: 28.27 | J175: 28.88 | K175: 29.27 | L175: 28.5 | M175: 27.5 | N175: 49433000 | O175: 2.29%
A176: 166 | B176: Metals | C176: SAIL | D176: 51.95 | E176: 52.23 | F176: 51.17 | G176: 50.38 | H176: 49.32 | I176: 53.02 | J176: 54.08 | K176: 54.87 | L176: 53.3 | M176: 51.45 | N176: 92208000 | O176: -1.35%
A177: 167 | B177: Banking | C177: SBIN | D177: 293.30 | E177: 293.08 | F177: 290.77 | G177: 288.23 | H177: 285.92 | I177: 295.62 | J177: 297.93 | K177: 300.47 | L177: 295.4 | M177: 290.55 | N177: 82779000 | O177: -0.07%
A178: 168 | B178: Cement | C178: SHREECEM | D178: 16774.70 | E178: 16893.18 | F178: 16622.57 | G178: 16470.43 | H178: 16199.82 | I178: 17045.32 | J178: 17315.93 | K178: 17468.07 | L178: 17163.8 | M178: 16741.05 | N178: 107650 | O178: 0.65%
A179: 169 | B179: Capital_Goods | C179: SIEMENS | D179: 994.85 | E179: 994.65 | F179: 983.60 | G179: 972.35 | H179: 961.30 | I179: 1005.90 | J179: 1016.95 | K179: 1028.20 | L179: 1005.7 | M179: 983.4 | N179: 2328650 | O179: 11.16%
A180: 170 | B180: Banking | C180: SOUTHBANK | D180: 15.30 | E180: 15.38 | F180: 15.12 | G180: 14.93 | H180: 14.67 | I180: 15.57 | J180: 15.83 | K180: 16.02 | L180: 15.65 | M180: 15.2 | N180: 158248275 | O180: 8.50%
A181: 171 | B181: Others | C181: SREINFRA | D181: 34.40 | E181: 34.62 | F181: 33.88 | G181: 33.37 | H181: 32.63 | I181: 35.13 | J181: 35.87 | K181: 36.38 | L181: 35.35 | M181: 34.1 | N181: 14866000 | O181: -3.55%
A182: 172 | B182: Textile | C182: SRF | D182: 1976.90 | E182: 2036.53 | F182: 1907.07 | G182: 1837.23 | H182: 1707.77 | I182: 2106.37 | J182: 2235.83 | K182: 2305.67 | L182: 2166 | M182: 1966.7 | N182: 803000 | O182: 27.16%
A183: 173 | B183: Finance | C183: SRTRANSFIN | D183: 1204.20 | E183: 1199.87 | F183: 1185.38 | G183: 1166.57 | H183: 1152.08 | I183: 1218.68 | J183: 1233.17 | K183: 1251.98 | L183: 1214.35 | M183: 1181.05 | N183: 3957000 | O183: 2.14%
A184: 174 | B184: Pharma | C184: STAR | D184: 458.00 | E184: 460.47 | F184: 451.28 | G184: 444.57 | H184: 435.38 | I184: 467.18 | J184: 476.37 | K184: 483.08 | L184: 469.65 | M184: 453.75 | N184: 3980400 | O184: -0.62%
A185: 175 | B185: Pharma | C185: SUNPHARMA | D185: 424.35 | E185: 427.03 | F185: 419.67 | G185: 414.98 | H185: 407.62 | I185: 431.72 | J185: 439.08 | K185: 443.77 | L185: 434.4 | M185: 422.35 | N185: 58914900 | O185: -0.62%
A186: 176 | B186: Media | C186: SUNTV | D186: 578.25 | E186: 584.63 | F186: 570.27 | G186: 562.28 | H186: 547.92 | I186: 592.62 | J186: 606.98 | K186: 614.97 | L186: 599 | M186: 576.65 | N186: 6907000 | O186: 1.63%
A187: 177 | B187: Power | C187: SUZLON | D187: 5.50 | E187: 5.50 | F187: 5.45 | G187: 5.40 | H187: 5.35 | I187: 5.55 | J187: 5.60 | K187: 5.65 | L187: 5.55 | M187: 5.45 | N187: 324516000 | O187: 5.79%
A188: 178 | B188: Banking | C188: SYNDIBANK | D188: 37.80 | E188: 37.73 | F188: 37.27 | G188: 36.73 | H188: 36.27 | I188: 38.27 | J188: 38.73 | K188: 39.27 | L188: 38.2 | M188: 37.2 | N188: 24063000 | O188: -6.98%
A189: 179 | B189: Fertilisers | C189: TATACHEM | D189: 710.90 | E189: 709.62 | F189: 701.28 | G189: 691.67 | H189: 683.33 | I189: 719.23 | J189: 727.57 | K189: 737.18 | L189: 717.95 | M189: 700 | N189: 3031500 | O189: 8.71%
A190: 180 | B190: Telecom | C190: TATACOMM | D190: 525.05 | E190: 526.90 | F190: 513.75 | G190: 502.45 | H190: 489.30 | I190: 538.20 | J190: 551.35 | K190: 562.65 | L190: 540.05 | M190: 515.6 | N190: 2793600 | O190: 7.79%
A191: 181 | B191: Technology | C191: TATAELXSI | D191: 991.30 | E191: 996.92 | F191: 982.38 | G191: 973.47 | H191: 958.93 | I191: 1005.83 | J191: 1020.37 | K191: 1029.28 | L191: 1011.45 | M191: 988 | N191: 1532000 | O191: -0.34%
A192: 182 | B192: FMCG | C192: TATAGLOBAL | D192: 217.80 | E192: 218.55 | F192: 214.25 | G192: 210.70 | H192: 206.40 | I192: 222.10 | J192: 226.40 | K192: 229.95 | L192: 222.85 | M192: 215 | N192: 15018750 | O192: 16.15%
A193: 183 | B193: Automobile | C193: TATAMOTORS | D193: 172.65 | E193: 174.17 | F193: 170.43 | G193: 168.22 | H193: 164.48 | I193: 176.38 | J193: 180.12 | K193: 182.33 | L193: 177.9 | M193: 171.95 | N193: 61042000 | O193: 1.40%
A194: 184 | B194: Automobile | C194: TATAMTRDVR | D194: 94.20 | E194: 94.97 | F194: 92.98 | G194: 91.77 | H194: 89.78 | I194: 96.18 | J194: 98.17 | K194: 99.38 | L194: 96.95 | M194: 93.75 | N194: 29467000 | O194: 5.46%
A195: 185 | B195: Power | C195: TATAPOWER | D195: 76.95 | E195: 77.30 | F195: 75.95 | G195: 74.95 | H195: 73.60 | I195: 78.30 | J195: 79.65 | K195: 80.65 | L195: 78.65 | M195: 76.3 | N195: 54000000 | O195: 7.86%
A196: 186 | B196: Metals | C196: TATASTEEL | D196: 514.45 | E196: 515.98 | F196: 510.52 | G196: 506.58 | H196: 501.12 | I196: 519.92 | J196: 525.38 | K196: 529.32 | L196: 521.45 | M196: 512.05 | N196: 33510624 | O196: -3.14%
A197: 187 | B197: Technology | C197: TCS | D197: 1920.60 | E197: 1921.63 | F197: 1900.52 | G197: 1880.43 | H197: 1859.32 | I197: 1941.72 | J197: 1962.83 | K197: 1982.92 | L197: 1942.75 | M197: 1901.55 | N197: 12644500 | O197: 0.97%
A198: 188 | B198: Technology | C198: TECHM | D198: 697.45 | E198: 698.40 | F198: 691.30 | G198: 685.15 | H198: 678.05 | I198: 704.55 | J198: 711.65 | K198: 717.80 | L198: 705.5 | M198: 692.25 | N198: 13726800 | O198: 3.74%
A199: 189 | B199: FMCG | C199: TITAN | D199: 881.95 | E199: 887.18 | F199: 870.57 | G199: 859.18 | H199: 842.57 | I199: 898.57 | J199: 915.18 | K199: 926.57 | L199: 903.8 | M199: 875.8 | N199: 15144000 | O199: 5.12%
A200: 190 | B200: Pharma | C200: TORNTPHARM | D200: 1772.40 | E200: 1774.08 | F200: 1755.32 | G200: 1738.23 | H200: 1719.47 | I200: 1791.17 | J200: 1809.93 | K200: 1827.02 | L200: 1792.85 | M200: 1757 | N200: 417000 | O200: 6.92%
A201: 191 | B201: Power | C201: TORNTPOWER | D201: 258.20 | E201: 259.07 | F201: 255.83 | G201: 253.47 | H201: 250.23 | I201: 261.43 | J201: 264.67 | K201: 267.03 | L201: 262.3 | M201: 256.7 | N201: 2205000 | O201: 1.24%
A202: 192 | B202: Media | C202: TV18BRDCST | D202: 36.20 | E202: 36.43 | F202: 35.82 | G202: 35.43 | H202: 34.82 | I202: 36.82 | J202: 37.43 | K202: 37.82 | L202: 37.05 | M202: 36.05 | N202: 55420000 | O202: -0.15%
A203: 193 | B203: Automobile | C203: TVSMOTOR | D203: 558.65 | E203: 563.20 | F203: 551.50 | G203: 544.35 | H203: 532.65 | I203: 570.35 | J203: 582.05 | K203: 589.20 | L203: 574.9 | M203: 556.05 | N203: 6470000 | O203: 1.16%
A204: 194 | B204: FMCG | C204: UBL | D204: 1348.60 | E204: 1352.07 | F204: 1329.58 | G204: 1310.57 | H204: 1288.08 | I204: 1371.08 | J204: 1393.57 | K204: 1412.58 | L204: 1374.55 | M204: 1333.05 | N204: 2405200 | O204: -2.00%
A205: 195 | B205: Finance | C205: UJJIVAN | D205: 273.00 | E205: 273.23 | F205: 267.97 | G205: 262.93 | H205: 257.67 | I205: 278.27 | J205: 283.53 | K205: 288.57 | L205: 278.5 | M205: 268.2 | N205: 4680000 | O205: -8.96%
A206: 196 | B206: Cement | C206: ULTRACEMCO | D206: 3925.65 | E206: 3953.83 | F206: 3890.82 | G206: 3855.98 | H206: 3792.97 | I206: 3988.67 | J206: 4051.68 | K206: 4086.52 | L206: 4016.85 | M206: 3919 | N206: 1879400 | O206: 0.21%
... 24 more rows

Sheet Cash Intra
M5: Back to Main Page
A6: FOR INTRA DAY TRADING | K6: =Main!B10 -> 2018-12-26
A8: Sr.no | B8: Scrip | C8: CLOSE RATE | D8: Pivot Point | E8: Supports | H8: Resistances
C9: Point | E9: S1 | F9: S2 | G9: S3 | H9: R1 | I9: R2 | J9: R3 | K9: HIGH | L9: LOW | M9: Total Trade Quanity in Lakhs
A10: 1 | B10: Nifty 50 | C10: 10663.5 | D10: 10698.35 | E10: 10614.40 | F10: 10565.30 | G10: 10481.35 | H10: 10747.45 | I10: 10831.40 | J10: 10880.50 | K10: 10782.3 | L10: 10649.25
A11: 2 | B11: Nifty Bank | C11: 26714.75 | D11: 26775.52 | E11: 26616.18 | F11: 26517.62 | G11: 26358.28 | H11: 26874.08 | I11: 27033.42 | J11: 27131.98 | K11: 26934.85 | L11: 26676.95
A12: 3 | B12: Nifty CPSE | C12: 2040.95 | D12: 2049.90 | E12: 2022.60 | F12: 2004.25 | G12: 1976.95 | H12: 2068.25 | I12: 2095.55 | J12: 2113.90 | K12: 2077.2 | L12: 2031.55
A13: 4 | B13: Nifty Infra | C13: 3105.15 | D13: 3115.30 | E13: 3087.65 | F13: 3070.15 | G13: 3042.50 | H13: 3132.80 | I13: 3160.45 | J13: 3177.95 | K13: 3142.95 | L13: 3097.8
A14: 5 | B14: Nifty IT | C14: 14247.75 | D14: 14272.20 | E14: 14172.65 | F14: 14097.55 | G14: 13998.00 | H14: 14347.30 | I14: 14446.85 | J14: 14521.95 | K14: 14371.75 | L14: 14197.1
A15: 6 | B15: Nifty PSE | C15: 3331.45 | D15: 3344.67 | E15: 3308.38 | F15: 3285.32 | G15: 3249.03 | H15: 3367.73 | I15: 3404.02 | J15: 3427.08 | K15: 3380.95 | L15: 3321.6
A16: 7 | B16: Nifty Midcap 50 | C16: 4815.9 | D16: 4826.90 | E16: 4792.00 | F16: 4768.10 | G16: 4733.20 | H16: 4850.80 | I16: 4885.70 | J16: 4909.60 | K16: 4861.8 | L16: 4803
A17: 8 | B17: ABB | C17: 1302.15 | D17: 1306.38 | E17: 1294.77 | F17: 1287.38 | G17: 1275.77 | H17: 1313.77 | I17: 1325.38 | J17: 1332.77 | K17: 1318 | L17: 1299 | M17: 0.66103
A18: 9 | B18: ACC | C18: 1447.65 | D18: 1457.65 | E18: 1429.35 | F18: 1411.05 | G18: 1382.75 | H18: 1475.95 | I18: 1504.25 | J18: 1522.55 | K18: 1485.95 | L18: 1439.35 | M18: 6.02271
A19: 10 | B19: AIAENG | C19: 1630.75 | D19: 1623.93 | E19: 1607.87 | F19: 1584.98 | G19: 1568.92 | H19: 1646.82 | I19: 1662.88 | J19: 1685.77 | K19: 1640 | L19: 1601.05 | M19: 0.05686
A20: 11 | B20: AUBANK | C20: 606.45 | D20: 617.07 | E20: 590.48 | F20: 574.52 | G20: 547.93 | H20: 633.03 | I20: 659.62 | J20: 675.58 | K20: 643.65 | L20: 601.1 | M20: 3.22978
A21: 12 | B21: ADANIENT | C21: 158.55 | D21: 158.65 | E21: 156.40 | F21: 154.25 | G21: 152.00 | H21: 160.80 | I21: 163.05 | J21: 165.20 | K21: 160.9 | L21: 156.5 | M21: 31.30614
A22: 13 | B22: ADANIPORTS | C22: 361.1 | D22: 362.05 | E22: 357.35 | F22: 353.60 | G22: 348.90 | H22: 365.80 | I22: 370.50 | J22: 374.25 | K22: 366.75 | L22: 358.3 | M22: 22.68806
A23: 14 | B23: ADANIPOWER | C23: 50.8 | D23: 50.53 | E23: 49.67 | F23: 48.53 | G23: 47.67 | H23: 51.67 | I23: 52.53 | J23: 53.67 | K23: 51.4 | L23: 49.4 | M23: 59.1635
A24: 15 | B24: ABFRL | C24: 206.75 | D24: 207.93 | E24: 204.07 | F24: 201.38 | G24: 197.52 | H24: 210.62 | I24: 214.48 | J24: 217.17 | K24: 211.8 | L24: 205.25 | M24: 12.65722
A25: 16 | B25: AJANTPHARM | C25: 1132.5 | D25: 1128.50 | E25: 1108.00 | F25: 1083.50 | G25: 1063.00 | H25: 1153.00 | I25: 1173.50 | J25: 1198.00 | K25: 1149 | L25: 1104 | M25: 3.55529
A26: 17 | B26: ALKEM | C26: 1855.15 | D26: 1856.70 | E26: 1843.40 | F26: 1831.65 | G26: 1818.35 | H26: 1868.45 | I26: 1881.75 | J26: 1893.50 | K26: 1870 | L26: 1844.95 | M26: 0.09778
A27: 18 | B27: AMARAJABAT | C27: 745.7 | D27: 745.67 | E27: 738.33 | F27: 730.97 | G27: 723.63 | H27: 753.03 | I27: 760.37 | J27: 767.73 | K27: 753 | L27: 738.3 | M27: 3.35615
A28: 19 | B28: AMBUJACEM | C28: 213.25 | D28: 215.13 | E28: 210.67 | F28: 208.08 | G28: 203.62 | H28: 217.72 | I28: 222.18 | J28: 224.77 | K28: 219.6 | L28: 212.55 | M28: 24.3101
A29: 20 | B29: APOLLOHOSP | C29: 1269.35 | D29: 1260.28 | E29: 1242.62 | F29: 1215.88 | G29: 1198.22 | H29: 1287.02 | I29: 1304.68 | J29: 1331.42 | K29: 1277.95 | L29: 1233.55 | M29: 3.8247
A30: 21 | B30: APOLLOTYRE | C30: 229.05 | D30: 229.28 | E30: 225.07 | F30: 221.08 | G30: 216.87 | H30: 233.27 | I30: 237.48 | J30: 241.47 | K30: 233.5 | L30: 225.3 | M30: 41.65981
A31: 22 | B31: ARVIND | C31: 98.55 | D31: 98.62 | E31: 97.73 | F31: 96.92 | G31: 96.03 | H31: 99.43 | I31: 100.32 | J31: 101.13 | K31: 99.5 | L31: 97.8 | M31: 18.94228
A32: 23 | B32: ASHOKLEY | C32: 104.6 | D32: 104.60 | E32: 103.75 | F32: 102.90 | G32: 102.05 | H32: 105.45 | I32: 106.30 | J32: 107.15 | K32: 105.45 | L32: 103.75 | M32: 96.63127
A33: 24 | B33: ASIANPAINT | C33: 1357.05 | D33: 1365.70 | E33: 1342.45 | F33: 1327.85 | G33: 1304.60 | H33: 1380.30 | I33: 1403.55 | J33: 1418.15 | K33: 1388.95 | L33: 1351.1 | M33: 16.49577
A34: 25 | B34: AUROPHARMA | C34: 715.4 | D34: 722.20 | E34: 705.75 | F34: 696.10 | G34: 679.65 | H34: 731.85 | I34: 748.30 | J34: 757.95 | K34: 738.65 | L34: 712.55 | M34: 38.076
A35: 26 | B35: DMART | C35: 1545.75 | D35: 1565.45 | E35: 1508.30 | F35: 1470.85 | G35: 1413.70 | H35: 1602.90 | I35: 1660.05 | J35: 1697.50 | K35: 1622.6 | L35: 1528 | M35: 6.47211
A36: 27 | B36: AXISBANK | C36: 615 | D36: 618.55 | E36: 609.95 | F36: 604.90 | G36: 596.30 | H36: 623.60 | I36: 632.20 | J36: 637.25 | K36: 627.15 | L36: 613.5 | M36: 61.91605
A37: 28 | B37: BAJAJ-AUTO | C37: 2724.65 | D37: 2757.73 | E37: 2682.77 | F37: 2640.88 | G37: 2565.92 | H37: 2799.62 | I37: 2874.58 | J37: 2916.47 | K37: 2832.7 | L37: 2715.85 | M37: 3.48337
A38: 29 | B38: BAJFINANCE | C38: 2564.9 | D38: 2574.25 | E38: 2543.65 | F38: 2522.40 | G38: 2491.80 | H38: 2595.50 | I38: 2626.10 | J38: 2647.35 | K38: 2604.85 | L38: 2553 | M38: 10.50017
A39: 30 | B39: BAJAJFINSV | C39: 6274.45 | D39: 6309.47 | E39: 6224.98 | F39: 6175.52 | G39: 6091.03 | H39: 6358.93 | I39: 6443.42 | J39: 6492.88 | K39: 6393.95 | L39: 6260 | M39: 1.32247
A40: 31 | B40: BALKRISIND | C40: 911.2 | D40: 913.72 | E40: 900.58 | F40: 889.97 | G40: 876.83 | H40: 924.33 | I40: 937.47 | J40: 948.08 | K40: 926.85 | L40: 903.1 | M40: 10.8212
A41: 32 | B41: BANKBARODA | C41: 115.4 | D41: 115.60 | E41: 114.40 | F41: 113.40 | G41: 112.20 | H41: 116.60 | I41: 117.80 | J41: 118.80 | K41: 116.8 | L41: 114.6 | M41: 105.67495
A42: 33 | B42: BANKINDIA | C42: 100.9 | D42: 99.83 | E42: 97.77 | F42: 94.63 | G42: 92.57 | H42: 102.97 | I42: 105.03 | J42: 108.17 | K42: 101.9 | L42: 96.7 | M42: 160.27081
A43: 34 | B43: BATAINDIA | C43: 1109 | D43: 1113.10 | E43: 1097.35 | F43: 1085.70 | G43: 1069.95 | H43: 1124.75 | I43: 1140.50 | J43: 1152.15 | K43: 1128.85 | L43: 1101.45 | M43: 11.5949
A44: 35 | B44: BERGEPAINT | C44: 323.5 | D44: 325.85 | E44: 318.90 | F44: 314.30 | G44: 307.35 | H44: 330.45 | I44: 337.40 | J44: 342.00 | K44: 332.8 | L44: 321.25 | M44: 11.38787
A45: 36 | B45: BEL | C45: 87.95 | D45: 88.17 | E45: 86.98 | F45: 86.02 | G45: 84.83 | H45: 89.13 | I45: 90.32 | J45: 91.28 | K45: 89.35 | L45: 87.2 | M45: 110.44751
A46: 37 | B46: BHARATFIN | C46: 983.85 | D46: 989.82 | E46: 973.43 | F46: 963.02 | G46: 946.63 | H46: 1000.23 | I46: 1016.62 | J46: 1027.03 | K46: 1006.2 | L46: 979.4 | M46: 10.03045
A47: 38 | B47: BHARATFORG | C47: 502.45 | D47: 500.00 | E47: 493.45 | F47: 484.45 | G47: 477.90 | H47: 509.00 | I47: 515.55 | J47: 524.55 | K47: 506.55 | L47: 491 | M47: 20.56723
A48: 39 | B48: BHEL | C48: 71.25 | D48: 71.25 | E48: 69.50 | F48: 67.75 | G48: 66.00 | H48: 73.00 | I48: 74.75 | J48: 76.50 | K48: 73 | L48: 69.5 | M48: 229.43907
A49: 40 | B49: BPCL | C49: 364.95 | D49: 368.42 | E49: 360.33 | F49: 355.72 | G49: 347.63 | H49: 373.03 | I49: 381.12 | J49: 385.73 | K49: 376.5 | L49: 363.8 | M49: 32.45626
A50: 41 | B50: BHARTIARTL | C50: 309.1 | D50: 308.55 | E50: 304.80 | F50: 300.50 | G50: 296.75 | H50: 312.85 | I50: 316.60 | J50: 320.90 | K50: 312.3 | L50: 304.25 | M50: 47.0966
A51: 42 | B51: INFRATEL | C51: 262.55 | D51: 263.23 | E51: 255.32 | F51: 248.08 | G51: 240.17 | H51: 270.47 | I51: 278.38 | J51: 285.62 | K51: 271.15 | L51: 256 | M51: 32.02904
A52: 43 | B52: BIOCON | C52: 610.75 | D52: 613.68 | E52: 605.07 | F52: 599.38 | G52: 590.77 | H52: 619.37 | I52: 627.98 | J52: 633.67 | K52: 622.3 | L52: 608 | M52: 13.63658
A53: 44 | B53: BOSCHLTD | C53: 19415.5 | D53: 19544.48 | E53: 19201.07 | F53: 18986.63 | G53: 18643.22 | H53: 19758.92 | I53: 20102.33 | J53: 20316.77 | K53: 19887.9 | L53: 19330.05 | M53: 0.14555
A54: 45 | B54: BRITANNIA | C54: 3100.55 | D54: 3113.23 | E54: 3069.47 | F54: 3038.38 | G54: 2994.62 | H54: 3144.32 | I54: 3188.08 | J54: 3219.17 | K54: 3157 | L54: 3082.15 | M54: 2.45822
A55: 46 | B55: CRISIL | C55: 1604.05 | D55: 1604.92 | E55: 1580.13 | F55: 1556.22 | G55: 1531.43 | H55: 1628.83 | I55: 1653.62 | J55: 1677.53 | K55: 1629.7 | L55: 1581 | M55: 0.02861
A56: 47 | B56: CADILAHC | C56: 341.65 | D56: 342.17 | E56: 339.88 | F56: 338.12 | G56: 335.83 | H56: 343.93 | I56: 346.22 | J56: 347.98 | K56: 344.45 | L56: 340.4 | M56: 4.99572
A57: 48 | B57: CANBK | C57: 266.35 | D57: 266.28 | E57: 262.57 | F57: 258.78 | G57: 255.07 | H57: 270.07 | I57: 273.78 | J57: 277.57 | K57: 270 | L57: 262.5 | M57: 43.64117
A58: 49 | B58: CASTROLIND | C58: 150.75 | D58: 151.38 | E58: 149.52 | F58: 148.28 | G58: 146.42 | H58: 152.62 | I58: 154.48 | J58: 155.72 | K58: 153.25 | L58: 150.15 | M58: 6.59132
A59: 50 | B59: CENTRALBK | C59: 35.15 | D59: 35.52 | E59: 34.63 | F59: 34.12 | G59: 33.23 | H59: 36.03 | I59: 36.92 | J59: 37.43 | K59: 36.4 | L59: 35 | M59: 5.66454
A60: 51 | B60: CENTURYTEX | C60: 896.45 | D60: 899.67 | E60: 890.43 | F60: 884.42 | G60: 875.18 | H60: 905.68 | I60: 914.92 | J60: 920.93 | K60: 908.9 | L60: 893.65 | M60: 4.05578
A61: 52 | B61: CHOLAFIN | C61: 1225.4 | D61: 1226.33 | E61: 1200.07 | F61: 1174.73 | G61: 1148.47 | H61: 1251.67 | I61: 1277.93 | J61: 1303.27 | K61: 1252.6 | L61: 1201 | M61: 2.38226
A62: 53 | B62: CIPLA | C62: 518.8 | D62: 517.53 | E62: 514.27 | F62: 509.73 | G62: 506.47 | H62: 522.07 | I62: 525.33 | J62: 529.87 | K62: 520.8 | L62: 513 | M62: 12.14348
A63: 54 | B63: COALINDIA | C63: 248.3 | D63: 249.73 | E63: 245.47 | F63: 242.63 | G63: 238.37 | H63: 252.57 | I63: 256.83 | J63: 259.67 | K63: 254 | L63: 246.9 | M63: 43.6819
A64: 55 | B64: COLPAL | C64: 1315.3 | D64: 1321.42 | E64: 1305.08 | F64: 1294.87 | G64: 1278.53 | H64: 1331.63 | I64: 1347.97 | J64: 1358.18 | K64: 1337.75 | L64: 1311.2 | M64: 3.97614
A65: 56 | B65: CONCOR | C65: 650.05 | D65: 652.03 | E65: 644.62 | F65: 639.18 | G65: 631.77 | H65: 657.47 | I65: 664.88 | J65: 670.32 | K65: 659.45 | L65: 646.6 | M65: 4.35059
A66: 57 | B66: COROMANDEL | C66: 445.2 | D66: 445.43 | E66: 441.87 | F66: 438.53 | G66: 434.97 | H66: 448.77 | I66: 452.33 | J66: 455.67 | K66: 449 | L66: 442.1 | M66: 1.90212
A67: 58 | B67: CROMPTON | C67: 224.25 | D67: 224.15 | E67: 221.30 | F67: 218.35 | G67: 215.50 | H67: 227.10 | I67: 229.95 | J67: 232.90 | K67: 227 | L67: 221.2 | M67: 1.13395
A68: 59 | B68: CUMMINSIND | C68: 790.15 | D68: 790.58 | E68: 777.07 | F68: 763.98 | G68: 750.47 | H68: 803.67 | I68: 817.18 | J68: 830.27 | K68: 804.1 | L68: 777.5 | M68: 2.71942
A69: 60 | B69: DLF | C69: 178.1 | D69: 180.50 | E69: 174.70 | F69: 171.30 | G69: 165.50 | H69: 183.90 | I69: 189.70 | J69: 193.10 | K69: 186.3 | L69: 177.1 | M69: 89.45739
A70: 61 | B70: DABUR | C70: 425.85 | D70: 430.68 | E70: 419.42 | F70: 412.98 | G70: 401.72 | H70: 437.12 | I70: 448.38 | J70: 454.82 | K70: 441.95 | L70: 424.25 | M70: 32.63009
A71: 62 | B71: DHFL | C71: 234.6 | D71: 237.23 | E71: 230.02 | F71: 225.43 | G71: 218.22 | H71: 241.82 | I71: 249.03 | J71: 253.62 | K71: 244.45 | L71: 232.65 | M71: 86.10047
A72: 63 | B72: DISHTV | C72: 36.7 | D72: 37.42 | E72: 35.63 | F72: 34.57 | G72: 32.78 | H72: 38.48 | I72: 40.27 | J72: 41.33 | K72: 39.2 | L72: 36.35 | M72: 58.33363
A73: 64 | B73: DIVISLAB | C73: 1447.15 | D73: 1456.90 | E73: 1423.80 | F73: 1400.45 | G73: 1367.35 | H73: 1480.25 | I73: 1513.35 | J73: 1536.70 | K73: 1490 | L73: 1433.55 | M73: 8.49081
A74: 65 | B74: LALPATHLAB | C74: 938.95 | D74: 944.13 | E74: 928.02 | F74: 917.08 | G74: 900.97 | H74: 955.07 | I74: 971.18 | J74: 982.12 | K74: 960.25 | L74: 933.2 | M74: 0.23725
A75: 66 | B75: DRREDDY | C75: 2599.8 | D75: 2600.37 | E75: 2577.63 | F75: 2555.47 | G75: 2532.73 | H75: 2622.53 | I75: 2645.27 | J75: 2667.43 | K75: 2623.1 | L75: 2578.2 | M75: 5.04639
A76: 67 | B76: EDELWEISS | C76: 184 | D76: 186.22 | E76: 180.43 | F76: 176.87 | G76: 171.08 | H76: 189.78 | I76: 195.57 | J76: 199.13 | K76: 192 | L76: 182.65 | M76: 8.23358
A77: 68 | B77: EICHERMOT | C77: 23210.7 | D77: 23301.63 | E77: 23028.27 | F77: 22845.83 | G77: 22572.47 | H77: 23484.07 | I77: 23757.43 | J77: 23939.87 | K77: 23575 | L77: 23119.2 | M77: 0.34687
A78: 69 | B78: EMAMILTD | C78: 401.85 | D78: 405.55 | E78: 396.35 | F78: 390.85 | G78: 381.65 | H78: 411.05 | I78: 420.25 | J78: 425.75 | K78: 414.75 | L78: 400.05 | M78: 4.9841
A79: 70 | B79: ENDURANCE | C79: 1160.6 | D79: 1161.87 | E79: 1143.73 | F79: 1126.87 | G79: 1108.73 | H79: 1178.73 | I79: 1196.87 | J79: 1213.73 | K79: 1180 | L79: 1145 | M79: 0.16863
A80: 71 | B80: ENGINERSIN | C80: 125.95 | D80: 125.85 | E80: 122.40 | F80: 118.85 | G80: 115.40 | H80: 129.40 | I80: 132.85 | J80: 136.40 | K80: 129.3 | L80: 122.3 | M80: 37.2347
A81: 72 | B81: EXIDEIND | C81: 257.4 | D81: 259.35 | E81: 253.70 | F81: 250.00 | G81: 244.35 | H81: 263.05 | I81: 268.70 | J81: 272.40 | K81: 265 | L81: 255.65 | M81: 14.00203
A82: 73 | B82: FEDERALBNK | C82: 93.8 | D82: 93.87 | E82: 92.43 | F82: 91.07 | G82: 89.63 | H82: 95.23 | I82: 96.67 | J82: 98.03 | K82: 95.3 | L82: 92.5 | M82: 127.17363
A83: 74 | B83: GAIL | C83: 347.7 | D83: 345.87 | E83: 341.68 | F83: 335.67 | G83: 331.48 | H83: 351.88 | I83: 356.07 | J83: 362.08 | K83: 350.05 | L83: 339.85 | M83: 34.72576
A84: 75 | B84: GMRINFRA | C84: 15.75 | D84: 15.72 | E84: 15.48 | F84: 15.22 | G84: 14.98 | H84: 15.98 | I84: 16.22 | J84: 16.48 | K84: 15.95 | L84: 15.45 | M84: 99.97982
A85: 76 | B85: GSKCONS | C85: 7523.4 | D85: 7567.60 | E85: 7460.80 | F85: 7398.20 | G85: 7291.40 | H85: 7630.20 | I85: 7737.00 | J85: 7799.60 | K85: 7674.4 | L85: 7505 | M85: 0.15127
A86: 77 | B86: GLAXO | C86: 1455.3 | D86: 1443.77 | E86: 1422.53 | F86: 1389.77 | G86: 1368.53 | H86: 1476.53 | I86: 1497.77 | J86: 1530.53 | K86: 1465 | L86: 1411 | M86: 0.12347
A87: 78 | B87: GLENMARK | C87: 677.05 | D87: 674.90 | E87: 668.20 | F87: 659.35 | G87: 652.65 | H87: 683.75 | I87: 690.45 | J87: 699.30 | K87: 681.6 | L87: 666.05 | M87: 5.24151
A88: 79 | B88: GODREJCP | C88: 802.55 | D88: 806.68 | E88: 795.87 | F88: 789.18 | G88: 778.37 | H88: 813.37 | I88: 824.18 | J88: 830.87 | K88: 817.5 | L88: 800 | M88: 3.90464
A89: 80 | B89: GODREJIND | C89: 515.5 | D89: 517.72 | E89: 509.98 | F89: 504.47 | G89: 496.73 | H89: 523.23 | I89: 530.97 | J89: 536.48 | K89: 525.45 | L89: 512.2 | M89: 3.06699
A90: 81 | B90: GRUH | C90: 317.3 | D90: 321.95 | E90: 310.50 | F90: 303.70 | G90: 292.25 | H90: 328.75 | I90: 340.20 | J90: 347.00 | K90: 333.4 | L90: 315.15 | M90: 6.47739
A91: 82 | B91: GPPL | C91: 103.5 | D91: 103.23 | E91: 102.32 | F91: 101.13 | G91: 100.22 | H91: 104.42 | I91: 105.33 | J91: 106.52 | K91: 104.15 | L91: 102.05 | M91: 0.75955
A92: 83 | B92: GSPL | C92: 175.65 | D92: 176.15 | E92: 174.60 | F92: 173.55 | G92: 172.00 | H92: 177.20 | I92: 178.75 | J92: 179.80 | K92: 177.7 | L92: 175.1 | M92: 0.40186
A93: 84 | B93: HCLTECH | C93: 937.85 | D93: 942.97 | E93: 930.03 | F93: 922.22 | G93: 909.28 | H93: 950.78 | I93: 963.72 | J93: 971.53 | K93: 955.9 | L93: 935.15 | M93: 14.70782
A94: 85 | B94: HDFCBANK | C94: 2080.65 | D94: 2087.33 | E94: 2070.67 | F94: 2060.68 | G94: 2044.02 | H94: 2097.32 | I94: 2113.98 | J94: 2123.97 | K94: 2104 | L94: 2077.35 | M94: 14.00372
A95: 86 | B95: HAVELLS | C95: 667.9 | D95: 674.97 | E95: 659.03 | F95: 650.17 | G95: 634.23 | H95: 683.83 | I95: 699.77 | J95: 708.63 | K95: 690.9 | L95: 666.1 | M95: 9.64046
A96: 87 | B96: HEROMOTOCO | C96: 3168.4 | D96: 3206.47 | E96: 3111.93 | F96: 3055.47 | G96: 2960.93 | H96: 3262.93 | I96: 3357.47 | J96: 3413.93 | K96: 3301 | L96: 3150 | M96: 6.55657
A97: 88 | B97: HEXAWARE | C97: 315 | D97: 315.25 | E97: 311.60 | F97: 308.20 | G97: 304.55 | H97: 318.65 | I97: 322.30 | J97: 325.70 | K97: 318.9 | L97: 311.85 | M97: 9.42066
A98: 89 | B98: HINDALCO | C98: 217.85 | D98: 219.60 | E98: 215.20 | F98: 212.55 | G98: 208.15 | H98: 222.25 | I98: 226.65 | J98: 229.30 | K98: 224 | L98: 216.95 | M98: 46.67022
A99: 90 | B99: HINDPETRO | C99: 246.3 | D99: 248.30 | E99: 242.75 | F99: 239.20 | G99: 233.65 | H99: 251.85 | I99: 257.40 | J99: 260.95 | K99: 253.85 | L99: 244.75 | M99: 61.72675
A100: 91 | B100: HINDUNILVR | C100: 1784.65 | D100: 1792.07 | E100: 1770.13 | F100: 1755.62 | G100: 1733.68 | H100: 1806.58 | I100: 1828.52 | J100: 1843.03 | K100: 1814 | L100: 1777.55 | M100: 10.23418
A101: 92 | B101: HINDZINC | C101: 270.05 | D101: 271.55 | E101: 266.60 | F101: 263.15 | G101: 258.20 | H101: 275.00 | I101: 279.95 | J101: 283.40 | K101: 276.5 | L101: 268.1 | M101: 5.34376
A102: 93 | B102: HUDCO | C102: 43.4 | D102: 43.68 | E102: 42.97 | F102: 42.53 | G102: 41.82 | H102: 44.12 | I102: 44.83 | J102: 45.27 | K102: 44.4 | L102: 43.25 | M102: 4.0375
A103: 94 | B103: HDFC | C103: 1902.15 | D103: 1918.38 | E103: 1881.77 | F103: 1861.38 | G103: 1824.77 | H103: 1938.77 | I103: 1975.38 | J103: 1995.77 | K103: 1955 | L103: 1898 | M103: 22.07727
A104: 95 | B104: ITC | C104: 276 | D104: 277.32 | E104: 273.93 | F104: 271.87 | G104: 268.48 | H104: 279.38 | I104: 282.77 | J104: 284.83 | K104: 280.7 | L104: 275.25 | M104: 85.40575
A105: 96 | B105: ICICIBANK | C105: 352.75 | D105: 353.78 | E105: 350.47 | F105: 348.18 | G105: 344.87 | H105: 356.07 | I105: 359.38 | J105: 361.67 | K105: 357.1 | L105: 351.5 | M105: 90.25217
A106: 97 | B106: ICICIPRULI | C106: 324.4 | D106: 326.35 | E106: 320.35 | F106: 316.30 | G106: 310.30 | H106: 330.40 | I106: 336.40 | J106: 340.45 | K106: 332.35 | L106: 322.3 | M106: 11.57794
A107: 98 | B107: IDBI | C107: 61.3 | D107: 61.48 | E107: 61.07 | F107: 60.83 | G107: 60.42 | H107: 61.72 | I107: 62.13 | J107: 62.37 | K107: 61.9 | L107: 61.25 | M107: 14.08726
A108: 99 | B108: IDFCBANK | C108: 43.1 | D108: 43.30 | E108: 42.60 | F108: 42.10 | G108: 41.40 | H108: 43.80 | I108: 44.50 | J108: 45.00 | K108: 44 | L108: 42.8 | M108: 196.99728
A109: 100 | B109: IDFC | C109: 43.2 | D109: 43.13 | E109: 42.37 | F109: 41.53 | G109: 40.77 | H109: 43.97 | I109: 44.73 | J109: 45.57 | K109: 43.9 | L109: 42.3 | M109: 30.47812
A110: 101 | B110: IRB | C110: 160.25 | D110: 162.45 | E110: 156.60 | F110: 152.95 | G110: 147.10 | H110: 166.10 | I110: 171.95 | J110: 175.60 | K110: 168.3 | L110: 158.8 | M110: 30.27346
A111: 102 | B111: IDEA | C111: 37.35 | D111: 37.60 | E111: 36.90 | F111: 36.45 | G111: 35.75 | H111: 38.05 | I111: 38.75 | J111: 39.20 | K111: 38.3 | L111: 37.15 | M111: 168.01259
A112: 103 | B112: IBULHSGFIN | C112: 819.25 | D112: 821.05 | E112: 807.65 | F112: 796.05 | G112: 782.65 | H112: 832.65 | I112: 846.05 | J112: 857.65 | K112: 834.45 | L112: 809.45 | M112: 63.41324
A113: 104 | B113: INDIANB | C113: 238.4 | D113: 238.93 | E113: 235.22 | F113: 232.03 | G113: 228.32 | H113: 242.12 | I113: 245.83 | J113: 249.02 | K113: 242.65 | L113: 235.75 | M113: 11.07636
A114: 105 | B114: INDHOTEL | C114: 146.05 | D114: 145.93 | E114: 144.47 | F114: 142.88 | G114: 141.42 | H114: 147.52 | I114: 148.98 | J114: 150.57 | K114: 147.4 | L114: 144.35 | M114: 3.30774
A115: 106 | B115: IOC | C115: 135.05 | D115: 136.75 | E115: 132.60 | F115: 130.15 | G115: 126.00 | H115: 139.20 | I115: 143.35 | J115: 145.80 | K115: 140.9 | L115: 134.3 | M115: 148.77792
A116: 107 | B116: IGL | C116: 264.35 | D116: 262.85 | E116: 258.60 | F116: 252.85 | G116: 248.60 | H116: 268.60 | I116: 272.85 | J116: 278.60 | K116: 267.1 | L116: 257.1 | M116: 13.6235
A117: 108 | B117: INDUSINDBK | C117: 1562.35 | D117: 1569.93 | E117: 1548.37 | F117: 1534.38 | G117: 1512.82 | H117: 1583.92 | I117: 1605.48 | J117: 1619.47 | K117: 1591.5 | L117: 1555.95 | M117: 7.57749
A118: 109 | B118: NAUKRI | C118: 1557.5 | D118: 1563.83 | E118: 1541.67 | F118: 1525.83 | G118: 1503.67 | H118: 1579.67 | I118: 1601.83 | J118: 1617.67 | K118: 1586 | L118: 1548 | M118: 0.37836
A119: 110 | B119: INFY | C119: 649 | D119: 651.80 | E119: 644.80 | F119: 640.60 | G119: 633.60 | H119: 656.00 | I119: 663.00 | J119: 667.20 | K119: 658.8 | L119: 647.6 | M119: 83.79825
A120: 111 | B120: INDIGO | C120: 1161.4 | D120: 1161.47 | E120: 1148.03 | F120: 1134.67 | G120: 1121.23 | H120: 1174.83 | I120: 1188.27 | J120: 1201.63 | K120: 1174.9 | L120: 1148.1 | M120: 7.14872
A121: 112 | B121: IPCALAB | C121: 801.85 | D121: 803.18 | E121: 786.77 | F121: 771.68 | G121: 755.27 | H121: 818.27 | I121: 834.68 | J121: 849.77 | K121: 819.6 | L121: 788.1 | M121: 1.18967
A122: 113 | B122: JSWENERGY | C122: 67.45 | D122: 68.57 | E122: 65.73 | F122: 64.02 | G122: 61.18 | H122: 70.28 | I122: 73.12 | J122: 74.83 | K122: 71.4 | L122: 66.85 | M122: 9.36872
A123: 114 | B123: JSWSTEEL | C123: 292.2 | D123: 297.23 | E123: 285.97 | F123: 279.73 | G123: 268.47 | H123: 303.47 | I123: 314.73 | J123: 320.97 | K123: 308.5 | L123: 291 | M123: 72.02626
A124: 115 | B124: JINDALSTEL | C124: 159.25 | D124: 160.60 | E124: 156.45 | F124: 153.65 | G124: 149.50 | H124: 163.40 | I124: 167.55 | J124: 170.35 | K124: 164.75 | L124: 157.8 | M124: 80.42316
A125: 116 | B125: JUBLFOOD | C125: 1218.95 | D125: 1252.52 | E125: 1180.28 | F125: 1141.62 | G125: 1069.38 | H125: 1291.18 | I125: 1363.42 | J125: 1402.08 | K125: 1324.75 | L125: 1213.85 | M125: 37.10907
A126: 117 | B126: JUBILANT | C126: 710.1 | D126: 710.03 | E126: 700.07 | F126: 690.03 | G126: 680.07 | H126: 720.07 | I126: 730.03 | J126: 740.07 | K126: 720 | L126: 700 | M126: 3.3509
A127: 118 | B127: KARURVYSYA | C127: 85.3 | D127: 85.50 | E127: 84.65 | F127: 84.00 | G127: 83.15 | H127: 86.15 | I127: 87.00 | J127: 87.65 | K127: 86.35 | L127: 84.85 | M127: 5.26836
A128: 119 | B128: KOTAKBANK | C128: 1238.5 | D128: 1234.32 | E128: 1225.18 | F128: 1211.87 | G128: 1202.73 | H128: 1247.63 | I128: 1256.77 | J128: 1270.08 | K128: 1243.45 | L128: 1221 | M128: 15.39829
A129: 120 | B129: L&TFH | C129: 152.85 | D129: 152.55 | E129: 149.60 | F129: 146.35 | G129: 143.40 | H129: 155.80 | I129: 158.75 | J129: 162.00 | K129: 155.5 | L129: 149.3 | M129: 52.7323
A130: 121 | B130: LICHSGFIN | C130: 472.15 | D130: 472.33 | E130: 467.17 | F130: 462.18 | G130: 457.02 | H130: 477.32 | I130: 482.48 | J130: 487.47 | K130: 477.5 | L130: 467.35 | M130: 10.73614
A131: 122 | B131: LT | C131: 1404.8 | D131: 1411.17 | E131: 1393.63 | F131: 1382.47 | G131: 1364.93 | H131: 1422.33 | I131: 1439.87 | J131: 1451.03 | K131: 1428.7 | L131: 1400 | M131: 13.90194
A132: 123 | B132: LUPIN | C132: 838.25 | D132: 849.10 | E132: 821.35 | F132: 804.45 | G132: 776.70 | H132: 866.00 | I132: 893.75 | J132: 910.65 | K132: 876.85 | L132: 832.2 | M132: 35.41535
A133: 124 | B133: MRF | C133: 66117.65 | D133: 66453.88 | E133: 65560.77 | F133: 65003.88 | G133: 64110.77 | H133: 67010.77 | I133: 67903.88 | J133: 68460.77 | K133: 67347 | L133: 65897 | M133: 0.05788
A134: 125 | B134: MGL | C134: 877.6 | D134: 881.22 | E134: 870.43 | F134: 863.27 | G134: 852.48 | H134: 888.38 | I134: 899.17 | J134: 906.33 | K134: 892 | L134: 874.05 | M134: 1.17816
A135: 126 | B135: M&MFIN | C135: 469.8 | D135: 470.35 | E135: 462.25 | F135: 454.70 | G135: 446.60 | H135: 477.90 | I135: 486.00 | J135: 493.55 | K135: 478.45 | L135: 462.8 | M135: 18.66244
A136: 127 | B136: M&M | C136: 788.65 | D136: 785.38 | E136: 778.27 | F136: 767.88 | G136: 760.77 | H136: 795.77 | I136: 802.88 | J136: 813.27 | K136: 792.5 | L136: 775 | M136: 20.34516
A137: 128 | B137: MANAPPURAM | C137: 89.15 | D137: 88.85 | E137: 87.70 | F137: 86.25 | G137: 85.10 | H137: 90.30 | I137: 91.45 | J137: 92.90 | K137: 90 | L137: 87.4 | M137: 20.89732
A138: 129 | B138: MRPL | C138: 72.8 | D138: 73.58 | E138: 71.52 | F138: 70.23 | G138: 68.17 | H138: 74.87 | I138: 76.93 | J138: 78.22 | K138: 75.65 | L138: 72.3 | M138: 17.3219
A139: 130 | B139: MARICO | C139: 370.5 | D139: 374.58 | E139: 364.77 | F139: 359.03 | G139: 349.22 | H139: 380.32 | I139: 390.13 | J139: 395.87 | K139: 384.4 | L139: 368.85 | M139: 14.7848
A140: 131 | B140: MARUTI | C140: 7529.15 | D140: 7531.60 | E140: 7467.55 | F140: 7405.95 | G140: 7341.90 | H140: 7593.20 | I140: 7657.25 | J140: 7718.85 | K140: 7595.65 | L140: 7470 | M140: 6.11297
A141: 132 | B141: MFSL | C141: 440.7 | D141: 441.90 | E141: 437.80 | F141: 434.90 | G141: 430.80 | H141: 444.80 | I141: 448.90 | J141: 451.80 | K141: 446 | L141: 439 | M141: 1.84198
A142: 133 | B142: MINDTREE | C142: 837.7 | D142: 842.92 | E142: 828.93 | F142: 820.17 | G142: 806.18 | H142: 851.68 | I142: 865.67 | J142: 874.43 | K142: 856.9 | L142: 834.15 | M142: 6.90775
A143: 134 | B143: MOTHERSUMI | C143: 161.55 | D143: 164.15 | E143: 158.30 | F143: 155.05 | G143: 149.20 | H143: 167.40 | I143: 173.25 | J143: 176.50 | K143: 170 | L143: 160.9 | M143: 62.29049
A144: 135 | B144: MPHASIS | C144: 1018.15 | D144: 1002.72 | E144: 978.43 | F144: 938.72 | G144: 914.43 | H144: 1042.43 | I144: 1066.72 | J144: 1106.43 | K144: 1027 | L144: 963 | M144: 4.53936
A145: 136 | B145: MUTHOOTFIN | C145: 494.35 | D145: 494.08 | E145: 486.62 | F145: 478.88 | G145: 471.42 | H145: 501.82 | I145: 509.28 | J145: 517.02 | K145: 501.55 | L145: 486.35 | M145: 13.5281
A146: 137 | B146: NATCOPHARM | C146: 693.95 | D146: 691.68 | E146: 682.37 | F146: 670.78 | G146: 661.47 | H146: 703.27 | I146: 712.58 | J146: 724.17 | K146: 701 | L146: 680.1 | M146: 1.0361
A147: 138 | B147: NBCC | C147: 54.15 | D147: 54.82 | E147: 53.28 | F147: 52.42 | G147: 50.88 | H147: 55.68 | I147: 57.22 | J147: 58.08 | K147: 56.35 | L147: 53.95 | M147: 88.13229
A148: 139 | B148: NHPC | C148: 25.95 | D148: 25.98 | E148: 25.82 | F148: 25.68 | G148: 25.52 | H148: 26.12 | I148: 26.28 | J148: 26.42 | K148: 26.15 | L148: 25.85 | M148: 48.20541
A149: 140 | B149: NMDC | C149: 94.7 | D149: 94.63 | E149: 93.27 | F149: 91.83 | G149: 90.47 | H149: 96.07 | I149: 97.43 | J149: 98.87 | K149: 96 | L149: 93.2 | M149: 21.73807
A150: 141 | B150: NTPC | C150: 146.4 | D150: 147.38 | E150: 144.22 | F150: 142.03 | G150: 138.87 | H150: 149.57 | I150: 152.73 | J150: 154.92 | K150: 150.55 | L150: 145.2 | M150: 70.88482
A151: 142 | B151: NATIONALUM | C151: 61.55 | D151: 61.88 | E151: 61.17 | F151: 60.78 | G151: 60.07 | H151: 62.27 | I151: 62.98 | J151: 63.37 | K151: 62.6 | L151: 61.5 | M151: 42.85997
A152: 143 | B152: OBEROIRLTY | C152: 452.3 | D152: 448.87 | E152: 440.93 | F152: 429.57 | G152: 421.63 | H152: 460.23 | I152: 468.17 | J152: 479.53 | K152: 456.8 | L152: 437.5 | M152: 1.65248
A153: 144 | B153: ONGC | C153: 147.9 | D153: 148.30 | E153: 146.90 | F153: 145.90 | G153: 144.50 | H153: 149.30 | I153: 150.70 | J153: 151.70 | K153: 149.7 | L153: 147.3 | M153: 82.00455
A154: 145 | B154: OIL | C154: 174.35 | D154: 175.50 | E154: 172.50 | F154: 170.65 | G154: 167.65 | H154: 177.35 | I154: 180.35 | J154: 182.20 | K154: 178.5 | L154: 173.65 | M154: 16.40609
A155: 146 | B155: OFSS | C155: 3661.3 | D155: 3666.25 | E155: 3615.20 | F155: 3569.10 | G155: 3518.05 | H155: 3712.35 | I155: 3763.40 | J155: 3809.50 | K155: 3717.3 | L155: 3620.15 | M155: 0.30876
A156: 147 | B156: PCJEWELLER | C156: 82.8 | D156: 82.53 | E156: 80.87 | F156: 78.93 | G156: 77.27 | H156: 84.47 | I156: 86.13 | J156: 88.07 | K156: 84.2 | L156: 80.6 | M156: 208.09058
A157: 148 | B157: PIIND | C157: 845.15 | D157: 843.38 | E157: 837.77 | F157: 830.38 | G157: 824.77 | H157: 850.77 | I157: 856.38 | J157: 863.77 | K157: 849 | L157: 836 | M157: 0.75409
A158: 149 | B158: PNBHOUSING | C158: 950.6 | D158: 954.67 | E158: 938.93 | F158: 927.27 | G158: 911.53 | H158: 966.33 | I158: 982.07 | J158: 993.73 | K158: 970.4 | L158: 943 | M158: 0.64612
A159: 150 | B159: PAGEIND | C159: 23799.05 | D159: 23955.05 | E159: 23485.10 | F159: 23171.15 | G159: 22701.20 | H159: 24269.00 | I159: 24738.95 | J159: 25052.90 | K159: 24425 | L159: 23641.1 | M159: 0.2539
A160: 151 | B160: PETRONET | C160: 222.95 | D160: 223.37 | E160: 220.73 | F160: 218.52 | G160: 215.88 | H160: 225.58 | I160: 228.22 | J160: 230.43 | K160: 226 | L160: 221.15 | M160: 17.90849
A161: 152 | B161: PIDILITIND | C161: 1118.9 | D161: 1126.03 | E161: 1105.47 | F161: 1092.03 | G161: 1071.47 | H161: 1139.47 | I161: 1160.03 | J161: 1173.47 | K161: 1146.6 | L161: 1112.6 | M161: 4.22796
A162: 153 | B162: PEL | C162: 2301.35 | D162: 2308.12 | E162: 2281.23 | F162: 2261.12 | G162: 2234.23 | H162: 2328.23 | I162: 2355.12 | J162: 2375.23 | K162: 2335 | L162: 2288 | M162: 4.1474
A163: 154 | B163: PFC | C163: 100.5 | D163: 100.18 | E163: 98.47 | F163: 96.43 | G163: 94.72 | H163: 102.22 | I163: 103.93 | J163: 105.97 | K163: 101.9 | L163: 98.15 | M163: 153.67729
A164: 155 | B164: POWERGRID | C164: 193.95 | D164: 194.98 | E164: 192.17 | F164: 190.38 | G164: 187.57 | H164: 196.77 | I164: 199.58 | J164: 201.37 | K164: 197.8 | L164: 193.2 | M164: 48.16937
A165: 156 | B165: PRESTIGE | C165: 204.1 | D165: 205.12 | E165: 200.28 | F165: 196.47 | G165: 191.63 | H165: 208.93 | I165: 213.77 | J165: 217.58 | K165: 209.95 | L165: 201.3 | M165: 0.34328
A166: 157 | B166: PGHH | C166: 9715.4 | D166: 9739.67 | E166: 9649.33 | F166: 9583.27 | G166: 9492.93 | H166: 9805.73 | I166: 9896.07 | J166: 9962.13 | K166: 9830 | L166: 9673.6 | M166: 0.20507
A167: 158 | B167: PNB | C167: 76.7 | D167: 76.63 | E167: 75.92 | F167: 75.13 | G167: 74.42 | H167: 77.42 | I167: 78.13 | J167: 78.92 | K167: 77.35 | L167: 75.85 | M167: 207.19115
A168: 159 | B168: RBLBANK | C168: 561.2 | D168: 561.87 | E168: 556.03 | F168: 550.87 | G168: 545.03 | H168: 567.03 | I168: 572.87 | J168: 578.03 | K168: 567.7 | L168: 556.7 | M168: 4.74576
A169: 160 | B169: RAJESHEXPO | C169: 570.3 | D169: 572.07 | E169: 564.23 | F169: 558.17 | G169: 550.33 | H169: 578.13 | I169: 585.97 | J169: 592.03 | K169: 579.9 | L169: 566 | M169: 0.92057
A170: 161 | B170: RELCAPITAL | C170: 215.7 | D170: 217.80 | E170: 212.90 | F170: 210.10 | G170: 205.20 | H170: 220.60 | I170: 225.50 | J170: 228.30 | K170: 222.7 | L170: 215 | M170: 55.46735
A171: 162 | B171: RCOM | C171: 14.15 | D171: 14.15 | E171: 13.75 | F171: 13.35 | G171: 12.95 | H171: 14.55 | I171: 14.95 | J171: 15.35 | K171: 14.55 | L171: 13.75 | M171: 953.56659
A172: 163 | B172: RELIANCE | C172: 1089.15 | D172: 1092.97 | E172: 1082.73 | F172: 1076.32 | G172: 1066.08 | H172: 1099.38 | I172: 1109.62 | J172: 1116.03 | K172: 1103.2 | L172: 1086.55 | M172: 41.44535
A173: 164 | B173: RELINFRA | C173: 307.5 | D173: 307.67 | E173: 303.63 | F173: 299.77 | G173: 295.73 | H173: 311.53 | I173: 315.57 | J173: 319.43 | K173: 311.7 | L173: 303.8 | M173: 34.81179
A174: 165 | B174: RPOWER | C174: 27.65 | D174: 27.88 | E174: 27.27 | F174: 26.88 | G174: 26.27 | H174: 28.27 | I174: 28.88 | J174: 29.27 | K174: 28.5 | L174: 27.5 | M174: 120.93058
A175: 166 | B175: RECLTD | C175: 113.75 | D175: 112.48 | E175: 110.07 | F175: 106.38 | G175: 103.97 | H175: 116.17 | I175: 118.58 | J175: 122.27 | K175: 114.9 | L175: 108.8 | M175: 224.56031
A176: 167 | B176: SRF | C176: 1972.35 | D176: 2031.38 | E176: 1900.97 | F176: 1829.58 | G176: 1699.17 | H176: 2102.77 | I176: 2233.18 | J176: 2304.57 | K176: 2161.8 | L176: 1960 | M176: 24.37373
A177: 168 | B177: SHREECEM | C177: 16754.6 | D177: 16905.18 | E177: 16570.42 | F177: 16386.23 | G177: 16051.47 | H177: 17089.37 | I177: 17424.13 | J177: 17608.32 | K177: 17239.95 | L177: 16721 | M177: 0.23036
A178: 169 | B178: SRTRANSFIN | C178: 1199.7 | D178: 1195.65 | E178: 1181.30 | F178: 1162.90 | G178: 1148.55 | H178: 1214.05 | I178: 1228.40 | J178: 1246.80 | K178: 1210 | L178: 1177.25 | M178: 11.11579
A179: 170 | B179: SIEMENS | C179: 995.9 | D179: 996.68 | E179: 983.42 | F179: 970.93 | G179: 957.67 | H179: 1009.17 | I179: 1022.43 | J179: 1034.92 | K179: 1009.95 | L179: 984.2 | M179: 5.64116
A180: 171 | B180: SBIN | C180: 293.05 | D180: 292.73 | E180: 290.47 | F180: 287.88 | G180: 285.62 | H180: 295.32 | I180: 297.58 | J180: 300.17 | K180: 295 | L180: 290.15 | M180: 120.48877
A181: 172 | B181: SAIL | C181: 51.95 | D181: 52.25 | E181: 51.20 | F181: 50.45 | G181: 49.40 | H181: 53.00 | I181: 54.05 | J181: 54.80 | K181: 53.3 | L181: 51.5 | M181: 101.75352
A182: 173 | B182: SPARC | C182: 203.85 | D182: 206.32 | E182: 199.73 | F182: 195.62 | G182: 189.03 | H182: 210.43 | I182: 217.02 | J182: 221.13 | K182: 212.9 | L182: 202.2 | M182: 3.82473
A183: 174 | B183: SUNPHARMA | C183: 424.35 | D183: 426.88 | E183: 419.77 | F183: 415.18 | G183: 408.07 | H183: 431.47 | I183: 438.58 | J183: 443.17 | K183: 434 | L183: 422.3 | M183: 70.52582
A184: 175 | B184: SUNTV | C184: 576.95 | D184: 583.68 | E184: 568.47 | F184: 559.98 | G184: 544.77 | H184: 592.17 | I184: 607.38 | J184: 615.87 | K184: 598.9 | L184: 575.2 | M184: 12.28147
A185: 176 | B185: SUZLON | C185: 5.5 | D185: 5.50 | E185: 5.45 | F185: 5.40 | G185: 5.35 | H185: 5.55 | I185: 5.60 | J185: 5.65 | K185: 5.55 | L185: 5.45 | M185: 171.64683
A186: 177 | B186: SYNDIBANK | C186: 37.65 | D186: 37.67 | E186: 37.23 | F186: 36.82 | G186: 36.38 | H186: 38.08 | I186: 38.52 | J186: 38.93 | K186: 38.1 | L186: 37.25 | M186: 36.99248
A187: 178 | B187: SYNGENE | C187: 560.75 | D187: 561.55 | E187: 554.30 | F187: 547.85 | G187: 540.60 | H187: 568.00 | I187: 575.25 | J187: 581.70 | K187: 568.8 | L187: 555.1 | M187: 0.63264
A188: 179 | B188: TV18BRDCST | C188: 36.25 | D188: 36.40 | E188: 35.90 | F188: 35.55 | G188: 35.05 | H188: 36.75 | I188: 37.25 | J188: 37.60 | K188: 36.9 | L188: 36.05 | M188: 25.4864
A189: 180 | B189: TVSMOTOR | C189: 558.5 | D189: 563.13 | E189: 550.97 | F189: 543.43 | G189: 531.27 | H189: 570.67 | I189: 582.83 | J189: 590.37 | K189: 575.3 | L189: 555.6 | M189: 10.63558
A190: 181 | B190: TATACHEM | C190: 710.15 | D190: 708.72 | E190: 700.43 | F190: 690.72 | G190: 682.43 | H190: 718.43 | I190: 726.72 | J190: 736.43 | K190: 717 | L190: 699 | M190: 3.73167
A191: 182 | B191: TATACOMM | C191: 525.25 | D191: 525.77 | E191: 513.53 | F191: 501.82 | G191: 489.58 | H191: 537.48 | I191: 549.72 | J191: 561.43 | K191: 538 | L191: 514.05 | M191: 3.00238
A192: 183 | B192: TCS | C192: 1918.5 | D192: 1920.80 | E192: 1902.70 | F192: 1886.90 | G192: 1868.80 | H192: 1936.60 | I192: 1954.70 | J192: 1970.50 | K192: 1938.9 | L192: 1905 | M192: 18.64116
A193: 184 | B193: TATAGLOBAL | C193: 219.05 | D193: 219.48 | E193: 214.97 | F193: 210.88 | G193: 206.37 | H193: 223.57 | I193: 228.08 | J193: 232.17 | K193: 224 | L193: 215.4 | M193: 58.0849
A194: 185 | B194: TATAMTRDVR | C194: 94.15 | D194: 94.90 | E194: 92.95 | F194: 91.75 | G194: 89.80 | H194: 96.10 | I194: 98.05 | J194: 99.25 | K194: 96.85 | L194: 93.7 | M194: 20.06362
A195: 186 | B195: TATAMOTORS | C195: 172.5 | D195: 173.95 | E195: 170.05 | F195: 167.60 | G195: 163.70 | H195: 176.40 | I195: 180.30 | J195: 182.75 | K195: 177.85 | L195: 171.5 | M195: 113.74468
A196: 187 | B196: TATAPOWER | C196: 76.8 | D196: 77.18 | E196: 75.72 | F196: 74.63 | G196: 73.17 | H196: 78.27 | I196: 79.73 | J196: 80.82 | K196: 78.65 | L196: 76.1 | M196: 51.32728
A197: 188 | B197: TATASTEEL | C197: 513.7 | D197: 515.47 | E197: 510.23 | F197: 506.77 | G197: 501.53 | H197: 518.93 | I197: 524.17 | J197: 527.63 | K197: 520.7 | L197: 512 | M197: 43.2944
A198: 189 | B198: TECHM | C198: 697.9 | D198: 697.80 | E198: 690.70 | F198: 683.50 | G198: 676.40 | H198: 705.00 | I198: 712.10 | J198: 719.30 | K198: 704.9 | L198: 690.6 | M198: 14.72565
A199: 190 | B199: RAMCOCEM | C199: 622.05 | D199: 624.22 | E199: 612.98 | F199: 603.92 | G199: 592.68 | H199: 633.28 | I199: 644.52 | J199: 653.58 | K199: 635.45 | L199: 615.15 | M199: 1.3529
A200: 191 | B200: TITAN | C200: 879.85 | D200: 885.55 | E200: 868.30 | F200: 856.75 | G200: 839.50 | H200: 897.10 | I200: 914.35 | J200: 925.90 | K200: 902.8 | L200: 874 | M200: 25.54749
A201: 192 | B201: TORNTPHARM | C201: 1769.6 | D201: 1775.75 | E201: 1754.50 | F201: 1739.40 | G201: 1718.15 | H201: 1790.85 | I201: 1812.10 | J201: 1827.20 | K201: 1797 | L201: 1760.65 | M201: 0.66751
A202: 193 | B202: TORNTPOWER | C202: 257.95 | D202: 258.75 | E202: 255.20 | F202: 252.45 | G202: 248.90 | H202: 261.50 | I202: 265.05 | J202: 267.80 | K202: 262.3 | L202: 256 | M202: 10.06585
A203: 194 | B203: UPL | C203: 736.45 | D203: 735.05 | E203: 722.40 | F203: 708.35 | G203: 695.70 | H203: 749.10 | I203: 761.75 | J203: 775.80 | K203: 747.7 | L203: 721 | M203: 17.86546
A204: 195 | B204: ULTRACEMCO | C204: 3917.15 | D204: 3944.35 | E204: 3877.80 | F204: 3838.45 | G204: 3771.90 | H204: 3983.70 | I204: 4050.25 | J204: 4089.60 | K204: 4010.9 | L204: 3905 | M204: 3.22548
A205: 196 | B205: UNIONBANK | C205: 83.05 | D205: 82.92 | E205: 81.93 | F205: 80.82 | G205: 79.83 | H205: 84.03 | I205: 85.02 | J205: 86.13 | K205: 83.9 | L205: 81.8 | M205: 77.68263
... 29 more rows

Sheet MidCap Intra
L5: Back To Main Page
A6: FOR INTRA DAY TRADING | K6: =Main!B10 -> 2018-12-26
A9: Sr.no | B9: Scrip | C9: CLOSE RATE | D9: Pivot Point | E9: Supports | H9: Resistances
C10: Point | E10: S1 | F10: S2 | G10: S3 | H10: R1 | I10: R2 | J10: R3 | K10: HIGH | L10: LOW | M10: Total Trade Quanity in Lakhs
A11: 1 | B11: 3MINDIA | C11: 21535.15 | D11: 21695.05 | E11: 21330.10 | F11: 21125.05 | G11: 20760.10 | H11: 21900.10 | I11: 22265.05 | J11: 22470.10 | K11: 22060 | L11: 21490 | M11: 0.01158
A12: 2 | B12: 8KMILES | C12: 152.35 | D12: 154.28 | E12: 149.17 | F12: 145.98 | G12: 140.87 | H12: 157.47 | I12: 162.58 | J12: 165.77 | K12: 159.4 | L12: 151.1 | M12: 1.67893
A13: 3 | B13: AARTIIND | C13: 1427.1 | D13: 1431.57 | E13: 1413.13 | F13: 1399.17 | G13: 1380.73 | H13: 1445.53 | I13: 1463.97 | J13: 1477.93 | K13: 1450 | L13: 1417.6 | M13: 0.30717
A14: 4 | B14: ABAN | C14: 74.2 | D14: 74.42 | E14: 72.93 | F14: 71.67 | G14: 70.18 | H14: 75.68 | I14: 77.17 | J14: 78.43 | K14: 75.9 | L14: 73.15 | M14: 4.49484
A15: 5 | B15: ABB | C15: 1302.15 | D15: 1306.38 | E15: 1294.77 | F15: 1287.38 | G15: 1275.77 | H15: 1313.77 | I15: 1325.38 | J15: 1332.77 | K15: 1318 | L15: 1299 | M15: 0.66103
A16: 6 | B16: ABCAPITAL | C16: 97.05 | D16: 97.48 | E16: 96.37 | F16: 95.68 | G16: 94.57 | H16: 98.17 | I16: 99.28 | J16: 99.97 | K16: 98.6 | L16: 96.8 | M16: 12.67199
A17: 7 | B17: ABFRL | C17: 206.75 | D17: 207.93 | E17: 204.07 | F17: 201.38 | G17: 197.52 | H17: 210.62 | I17: 214.48 | J17: 217.17 | K17: 211.8 | L17: 205.25 | M17: 12.65722
A18: 8 | B18: ACC | C18: 1447.65 | D18: 1457.65 | E18: 1429.35 | F18: 1411.05 | G18: 1382.75 | H18: 1475.95 | I18: 1504.25 | J18: 1522.55 | K18: 1485.95 | L18: 1439.35 | M18: 6.02271
A19: 9 | B19: ADANIPORTS | C19: 361.1 | D19: 362.05 | E19: 357.35 | F19: 353.60 | G19: 348.90 | H19: 365.80 | I19: 370.50 | J19: 374.25 | K19: 366.75 | L19: 358.3 | M19: 22.68806
A20: 10 | B20: ADANIPOWER | C20: 50.8 | D20: 50.53 | E20: 49.67 | F20: 48.53 | G20: 47.67 | H20: 51.67 | I20: 52.53 | J20: 53.67 | K20: 51.4 | L20: 49.4 | M20: 59.1635
A21: 11 | B21: ADANITRANS | C21: 200.05 | D21: 203.03 | E21: 196.27 | F21: 192.48 | G21: 185.72 | H21: 206.82 | I21: 213.58 | J21: 217.37 | K21: 209.8 | L21: 199.25 | M21: 1.32352
A22: 12 | B22: ADVENZYMES | C22: 179.25 | D22: 180.78 | E22: 177.17 | F22: 175.08 | G22: 171.47 | H22: 182.87 | I22: 186.48 | J22: 188.57 | K22: 184.4 | L22: 178.7 | M22: 0.48902
A23: 13 | B23: AEGISCHEM | C23: 187.85 | D23: 188.00 | E23: 186.00 | F23: 184.15 | G23: 182.15 | H23: 189.85 | I23: 191.85 | J23: 193.70 | K23: 190 | L23: 186.15 | M23: 0.95072
A24: 14 | B24: AIAENG | C24: 1630.75 | D24: 1623.93 | E24: 1607.87 | F24: 1584.98 | G24: 1568.92 | H24: 1646.82 | I24: 1662.88 | J24: 1685.77 | K24: 1640 | L24: 1601.05 | M24: 0.05686
A25: 15 | B25: AJANTPHARM | C25: 1132.5 | D25: 1128.50 | E25: 1108.00 | F25: 1083.50 | G25: 1063.00 | H25: 1153.00 | I25: 1173.50 | J25: 1198.00 | K25: 1149 | L25: 1104 | M25: 3.55529
A26: 16 | B26: AKZOINDIA | C26: 1600.45 | D26: 1615.15 | E26: 1580.30 | F26: 1560.15 | G26: 1525.30 | H26: 1635.30 | I26: 1670.15 | J26: 1690.30 | K26: 1650 | L26: 1595 | M26: 0.06241
A27: 17 | B27: ALBK | C27: 45.8 | D27: 45.85 | E27: 45.15 | F27: 44.50 | G27: 43.80 | H27: 46.50 | I27: 47.20 | J27: 47.85 | K27: 46.55 | L27: 45.2 | M27: 53.83002
A28: 18 | B28: ALKEM | C28: 1855.15 | D28: 1856.70 | E28: 1843.40 | F28: 1831.65 | G28: 1818.35 | H28: 1868.45 | I28: 1881.75 | J28: 1893.50 | K28: 1870 | L28: 1844.95 | M28: 0.09778
A29: 19 | B29: ALLCARGO | C29: 105.25 | D29: 107.33 | E29: 102.52 | F29: 99.78 | G29: 94.97 | H29: 110.07 | I29: 114.88 | J29: 117.62 | K29: 112.15 | L29: 104.6 | M29: 2.29323
A30: 20 | B30: AMARAJABAT | C30: 745.7 | D30: 745.67 | E30: 738.33 | F30: 730.97 | G30: 723.63 | H30: 753.03 | I30: 760.37 | J30: 767.73 | K30: 753 | L30: 738.3 | M30: 3.35615
A31: 21 | B31: AMBUJACEM | C31: 213.25 | D31: 215.13 | E31: 210.67 | F31: 208.08 | G31: 203.62 | H31: 217.72 | I31: 222.18 | J31: 224.77 | K31: 219.6 | L31: 212.55 | M31: 24.3101
A32: 22 | B32: ANDHRABANK | C32: 29.3 | D32: 29.30 | E32: 28.95 | F32: 28.60 | G32: 28.25 | H32: 29.65 | I32: 30.00 | J32: 30.35 | K32: 29.65 | L32: 28.95 | M32: 18.06274
A33: 23 | B33: APLAPOLLO | C33: 1142.25 | D33: 1146.42 | E33: 1115.83 | F33: 1089.42 | G33: 1058.83 | H33: 1172.83 | I33: 1203.42 | J33: 1229.83 | K33: 1177 | L33: 1120 | M33: 0.14346
A34: 24 | B34: APLLTD | C34: 573.5 | D34: 578.40 | E34: 565.90 | F34: 558.30 | G34: 545.80 | H34: 586.00 | I34: 598.50 | J34: 606.10 | K34: 590.9 | L34: 570.8 | M34: 0.24314
A35: 25 | B35: APOLLOHOSP | C35: 1269.35 | D35: 1260.28 | E35: 1242.62 | F35: 1215.88 | G35: 1198.22 | H35: 1287.02 | I35: 1304.68 | J35: 1331.42 | K35: 1277.95 | L35: 1233.55 | M35: 3.8247
A36: 26 | B36: APOLLOTYRE | C36: 229.05 | D36: 229.28 | E36: 225.07 | F36: 221.08 | G36: 216.87 | H36: 233.27 | I36: 237.48 | J36: 241.47 | K36: 233.5 | L36: 225.3 | M36: 41.65981
A37: 27 | B37: ARVIND | C37: 98.55 | D37: 98.62 | E37: 97.73 | F37: 96.92 | G37: 96.03 | H37: 99.43 | I37: 100.32 | J37: 101.13 | K37: 99.5 | L37: 97.8 | M37: 18.94228
A38: 28 | B38: ASAHIINDIA | C38: 246.4 | D38: 249.67 | E38: 241.33 | F38: 236.27 | G38: 227.93 | H38: 254.73 | I38: 263.07 | J38: 268.13 | K38: 258 | L38: 244.6 | M38: 0.13985
A39: 29 | B39: ASHOKA | C39: 124.65 | D39: 125.58 | E39: 122.67 | F39: 120.68 | G39: 117.77 | H39: 127.57 | I39: 130.48 | J39: 132.47 | K39: 128.5 | L39: 123.6 | M39: 0.70389
A40: 30 | B40: ASHOKLEY | C40: 104.6 | D40: 104.60 | E40: 103.75 | F40: 102.90 | G40: 102.05 | H40: 105.45 | I40: 106.30 | J40: 107.15 | K40: 105.45 | L40: 103.75 | M40: 96.63127
A41: 31 | B41: ASIANPAINT | C41: 1357.05 | D41: 1365.70 | E41: 1342.45 | F41: 1327.85 | G41: 1304.60 | H41: 1380.30 | I41: 1403.55 | J41: 1418.15 | K41: 1388.95 | L41: 1351.1 | M41: 16.49577
A42: 32 | B42: ASTRAL | C42: 1074.15 | D42: 1074.38 | E42: 1061.77 | F42: 1049.38 | G42: 1036.77 | H42: 1086.77 | I42: 1099.38 | J42: 1111.77 | K42: 1087 | L42: 1062 | M42: 0.26761
A43: 33 | B43: ATUL | C43: 3375.35 | D43: 3409.85 | E43: 3335.50 | F43: 3295.65 | G43: 3221.30 | H43: 3449.70 | I43: 3524.05 | J43: 3563.90 | K43: 3484.2 | L43: 3370 | M43: 0.09776
A44: 34 | B44: AUBANK | C44: 606.45 | D44: 617.07 | E44: 590.48 | F44: 574.52 | G44: 547.93 | H44: 633.03 | I44: 659.62 | J44: 675.58 | K44: 643.65 | L44: 601.1 | M44: 3.22978
A45: 35 | B45: AUROPHARMA | C45: 715.4 | D45: 722.20 | E45: 705.75 | F45: 696.10 | G45: 679.65 | H45: 731.85 | I45: 748.30 | J45: 757.95 | K45: 738.65 | L45: 712.55 | M45: 38.076
A46: 36 | B46: AVANTIFEED | C46: 377.95 | D46: 382.35 | E46: 370.90 | F46: 363.85 | G46: 352.40 | H46: 389.40 | I46: 400.85 | J46: 407.90 | K46: 393.8 | L46: 375.3 | M46: 2.73398
A47: 37 | B47: AXISBANK | C47: 615 | D47: 618.55 | E47: 609.95 | F47: 604.90 | G47: 596.30 | H47: 623.60 | I47: 632.20 | J47: 637.25 | K47: 627.15 | L47: 613.5 | M47: 61.91605
A48: 38 | B48: BAJAJ-AUTO | C48: 2724.65 | D48: 2757.73 | E48: 2682.77 | F48: 2640.88 | G48: 2565.92 | H48: 2799.62 | I48: 2874.58 | J48: 2916.47 | K48: 2832.7 | L48: 2715.85 | M48: 3.48337
A49: 39 | B49: BAJAJCORP | C49: 359.1 | D49: 360.98 | E49: 356.12 | F49: 353.13 | G49: 348.27 | H49: 363.97 | I49: 368.83 | J49: 371.82 | K49: 365.85 | L49: 358 | M49: 0.14932
A50: 40 | B50: BAJAJELEC | C50: 503.35 | D50: 505.12 | E50: 498.23 | F50: 493.12 | G50: 486.23 | H50: 510.23 | I50: 517.12 | J50: 522.23 | K50: 512 | L50: 500 | M50: 0.85639
A51: 41 | B51: BAJAJFINSV | C51: 6274.45 | D51: 6309.47 | E51: 6224.98 | F51: 6175.52 | G51: 6091.03 | H51: 6358.93 | I51: 6443.42 | J51: 6492.88 | K51: 6393.95 | L51: 6260 | M51: 1.32247
A52: 42 | B52: BAJAJHIND | C52: 8.9 | D52: 8.97 | E52: 8.78 | F52: 8.67 | G52: 8.48 | H52: 9.08 | I52: 9.27 | J52: 9.38 | K52: 9.15 | L52: 8.85 | M52: 16.86319
A53: 43 | B53: BAJAJHLDNG | C53: 2937.85 | D53: 2940.95 | E53: 2916.90 | F53: 2895.95 | G53: 2871.90 | H53: 2961.90 | I53: 2985.95 | J53: 3006.90 | K53: 2965 | L53: 2920 | M53: 0.48668
A54: 44 | B54: BAJFINANCE | C54: 2564.9 | D54: 2574.25 | E54: 2543.65 | F54: 2522.40 | G54: 2491.80 | H54: 2595.50 | I54: 2626.10 | J54: 2647.35 | K54: 2604.85 | L54: 2553 | M54: 10.50017
A55: 45 | B55: BALKRISIND | C55: 911.2 | D55: 913.72 | E55: 900.58 | F55: 889.97 | G55: 876.83 | H55: 924.33 | I55: 937.47 | J55: 948.08 | K55: 926.85 | L55: 903.1 | M55: 10.8212
A56: 46 | B56: BALLARPUR | C56: 5.5 | D56: 5.40 | E56: 5.25 | F56: 5.00 | G56: 4.85 | H56: 5.65 | I56: 5.80 | J56: 6.05 | K56: 5.55 | L56: 5.15 | M56: 4.10143
A57: 47 | B57: BALMLAWRIE | C57: 196.35 | D57: 197.28 | E57: 194.57 | F57: 192.78 | G57: 190.07 | H57: 199.07 | I57: 201.78 | J57: 203.57 | K57: 200 | L57: 195.5 | M57: 0.28207
A58: 48 | B58: BALRAMCHIN | C58: 102.3 | D58: 102.37 | E58: 100.43 | F58: 98.57 | G58: 96.63 | H58: 104.23 | I58: 106.17 | J58: 108.03 | K58: 104.3 | L58: 100.5 | M58: 25.70666
A59: 49 | B59: BANKBARODA | C59: 115.4 | D59: 115.60 | E59: 114.40 | F59: 113.40 | G59: 112.20 | H59: 116.60 | I59: 117.80 | J59: 118.80 | K59: 116.8 | L59: 114.6 | M59: 105.67495
A60: 50 | B60: BANKINDIA | C60: 100.9 | D60: 99.83 | E60: 97.77 | F60: 94.63 | G60: 92.57 | H60: 102.97 | I60: 105.03 | J60: 108.17 | K60: 101.9 | L60: 96.7 | M60: 160.27081
A61: 51 | B61: BASF | C61: 1586.5 | D61: 1583.50 | E61: 1567.00 | F61: 1547.50 | G61: 1531.00 | H61: 1603.00 | I61: 1619.50 | J61: 1639.00 | K61: 1600 | L61: 1564 | M61: 0.06589
A62: 52 | B62: BATAINDIA | C62: 1109 | D62: 1113.10 | E62: 1097.35 | F62: 1085.70 | G62: 1069.95 | H62: 1124.75 | I62: 1140.50 | J62: 1152.15 | K62: 1128.85 | L62: 1101.45 | M62: 11.5949
A63: 53 | B63: BBTC | C63: 1277.85 | D63: 1288.70 | E63: 1260.40 | F63: 1242.95 | G63: 1214.65 | H63: 1306.15 | I63: 1334.45 | J63: 1351.90 | K63: 1317 | L63: 1271.25 | M63: 0.54465
A64: 54 | B64: BEL | C64: 87.95 | D64: 88.17 | E64: 86.98 | F64: 86.02 | G64: 84.83 | H64: 89.13 | I64: 90.32 | J64: 91.28 | K64: 89.35 | L64: 87.2 | M64: 110.44751
A65: 55 | B65: BEML | C65: 869.85 | D65: 884.28 | E65: 849.77 | F65: 829.68 | G65: 795.17 | H65: 904.37 | I65: 938.88 | J65: 958.97 | K65: 918.8 | L65: 864.2 | M65: 70.22369
A66: 56 | B66: BERGEPAINT | C66: 323.5 | D66: 325.85 | E66: 318.90 | F66: 314.30 | G66: 307.35 | H66: 330.45 | I66: 337.40 | J66: 342.00 | K66: 332.8 | L66: 321.25 | M66: 11.38787
A67: 57 | B67: BFUTILITIE | C67: 204.65 | D67: 206.05 | E67: 201.90 | F67: 199.15 | G67: 195.00 | H67: 208.80 | I67: 212.95 | J67: 215.70 | K67: 210.2 | L67: 203.3 | M67: 1.37224
A68: 58 | B68: BGRENERGY | C68: 59.5 | D68: 60.20 | E68: 58.50 | F68: 57.50 | G68: 55.80 | H68: 61.20 | I68: 62.90 | J68: 63.90 | K68: 61.9 | L68: 59.2 | M68: 0.62805
A69: 59 | B69: BHARATFIN | C69: 983.85 | D69: 989.82 | E69: 973.43 | F69: 963.02 | G69: 946.63 | H69: 1000.23 | I69: 1016.62 | J69: 1027.03 | K69: 1006.2 | L69: 979.4 | M69: 10.03045
A70: 60 | B70: BHARATFORG | C70: 502.45 | D70: 500.00 | E70: 493.45 | F70: 484.45 | G70: 477.90 | H70: 509.00 | I70: 515.55 | J70: 524.55 | K70: 506.55 | L70: 491 | M70: 20.56723
A71: 61 | B71: BHARTIARTL | C71: 309.1 | D71: 308.55 | E71: 304.80 | F71: 300.50 | G71: 296.75 | H71: 312.85 | I71: 316.60 | J71: 320.90 | K71: 312.3 | L71: 304.25 | M71: 47.0966
A72: 62 | B72: BHEL | C72: 71.25 | D72: 71.25 | E72: 69.50 | F72: 67.75 | G72: 66.00 | H72: 73.00 | I72: 74.75 | J72: 76.50 | K72: 73 | L72: 69.5 | M72: 229.43907
A73: 63 | B73: BIOCON | C73: 610.75 | D73: 613.68 | E73: 605.07 | F73: 599.38 | G73: 590.77 | H73: 619.37 | I73: 627.98 | J73: 633.67 | K73: 622.3 | L73: 608 | M73: 13.63658
A74: 64 | B74: BIRLACORPN | C74: 601.25 | D74: 604.52 | E74: 596.93 | F74: 592.62 | G74: 585.03 | H74: 608.83 | I74: 616.42 | J74: 620.73 | K74: 612.1 | L74: 600.2 | M74: 0.1249
A75: 65 | B75: BLISSGVS | C75: 140.1 | D75: 141.55 | E75: 137.15 | F75: 134.20 | G75: 129.80 | H75: 144.50 | I75: 148.90 | J75: 151.85 | K75: 145.95 | L75: 138.6 | M75: 4.04601
A76: 66 | B76: BLUEDART | C76: 3121.85 | D76: 3134.83 | E76: 3094.72 | F76: 3067.58 | G76: 3027.47 | H76: 3161.97 | I76: 3202.08 | J76: 3229.22 | K76: 3174.95 | L76: 3107.7 | M76: 0.03971
A77: 67 | B77: BLUESTARCO | C77: 620.55 | D77: 620.78 | E77: 611.77 | F77: 602.98 | G77: 593.97 | H77: 629.57 | I77: 638.58 | J77: 647.37 | K77: 629.8 | L77: 612 | M77: 0.16408
A78: 68 | B78: BOMDYEING | C78: 109 | D78: 111.33 | E78: 106.17 | F78: 103.33 | G78: 98.17 | H78: 114.17 | I78: 119.33 | J78: 122.17 | K78: 116.5 | L78: 108.5 | M78: 9.41045
A79: 69 | B79: BOSCHLTD | C79: 19415.5 | D79: 19544.48 | E79: 19201.07 | F79: 18986.63 | G79: 18643.22 | H79: 19758.92 | I79: 20102.33 | J79: 20316.77 | K79: 19887.9 | L79: 19330.05 | M79: 0.14555
A80: 70 | B80: BPCL | C80: 364.95 | D80: 368.42 | E80: 360.33 | F80: 355.72 | G80: 347.63 | H80: 373.03 | I80: 381.12 | J80: 385.73 | K80: 376.5 | L80: 363.8 | M80: 32.45626
A81: 71 | B81: BRFL | C81: 9.6 | D81: 9.70 | E81: 9.40 | F81: 9.20 | G81: 8.90 | H81: 9.90 | I81: 10.20 | J81: 10.40 | K81: 10 | L81: 9.5 | M81: 2.97786
A82: 72 | B82: BRIGADE | C82: 207.2 | D82: 207.03 | E82: 202.27 | F82: 197.33 | G82: 192.57 | H82: 211.97 | I82: 216.73 | J82: 221.67 | K82: 211.8 | L82: 202.1 | M82: 0.36768
A83: 73 | B83: BRITANNIA | C83: 3100.55 | D83: 3113.23 | E83: 3069.47 | F83: 3038.38 | G83: 2994.62 | H83: 3144.32 | I83: 3188.08 | J83: 3219.17 | K83: 3157 | L83: 3082.15 | M83: 2.45822
A84: 74 | B84: BSE | C84: 590.5 | D84: 589.85 | E84: 585.65 | F84: 580.80 | G84: 576.60 | H84: 594.70 | I84: 598.90 | J84: 603.75 | K84: 594.05 | L84: 585 | M84: 0.56202
A85: 75 | B85: CADILAHC | C85: 341.65 | D85: 342.17 | E85: 339.88 | F85: 338.12 | G85: 335.83 | H85: 343.93 | I85: 346.22 | J85: 347.98 | K85: 344.45 | L85: 340.4 | M85: 4.99572
A86: 77 | B86: CANBK | C86: 266.35 | D86: 266.28 | E86: 262.57 | F86: 258.78 | G86: 255.07 | H86: 270.07 | I86: 273.78 | J86: 277.57 | K86: 270 | L86: 262.5 | M86: 43.64117
A87: 78 | B87: CANFINHOME | C87: 276.4 | D87: 278.77 | E87: 272.78 | F87: 269.17 | G87: 263.18 | H87: 282.38 | I87: 288.37 | J87: 291.98 | K87: 284.75 | L87: 275.15 | M87: 11.1317
A88: 79 | B88: CAPF | C88: 593.55 | D88: 595.20 | E88: 587.05 | F88: 580.55 | G88: 572.40 | H88: 601.70 | I88: 609.85 | J88: 616.35 | K88: 603.35 | L88: 588.7 | M88: 9.30057
A89: 80 | B89: CAPLIPOINT | C89: 382.8 | D89: 384.50 | E89: 380.00 | F89: 377.20 | G89: 372.70 | H89: 387.30 | I89: 391.80 | J89: 394.60 | K89: 389 | L89: 381.7 | M89: 0.13599
A90: 81 | B90: CARBORUNIV | C90: 356 | D90: 355.68 | E90: 352.62 | F90: 349.23 | G90: 346.17 | H90: 359.07 | I90: 362.13 | J90: 365.52 | K90: 358.75 | L90: 352.3 | M90: 0.98103
A91: 82 | B91: CARERATING | C91: 959.5 | D91: 967.08 | E91: 949.12 | F91: 938.73 | G91: 920.77 | H91: 977.47 | I91: 995.43 | J91: 1005.82 | K91: 985.05 | L91: 956.7 | M91: 0.42977
A92: 83 | B92: CASTROLIND | C92: 150.75 | D92: 151.38 | E92: 149.52 | F92: 148.28 | G92: 146.42 | H92: 152.62 | I92: 154.48 | J92: 155.72 | K92: 153.25 | L92: 150.15 | M92: 6.59132
A93: 84 | B93: CCL | C93: 273.05 | D93: 272.55 | E93: 270.15 | F93: 267.25 | G93: 264.85 | H93: 275.45 | I93: 277.85 | J93: 280.75 | K93: 274.95 | L93: 269.65 | M93: 0.19497
A94: 85 | B94: CDSL | C94: 226.05 | D94: 226.65 | E94: 224.40 | F94: 222.75 | G94: 220.50 | H94: 228.30 | I94: 230.55 | J94: 232.20 | K94: 228.9 | L94: 225 | M94: 1.48994
A95: 86 | B95: CEATLTD | C95: 1262.6 | D95: 1275.92 | E95: 1241.88 | F95: 1221.17 | G95: 1187.13 | H95: 1296.63 | I95: 1330.67 | J95: 1351.38 | K95: 1309.95 | L95: 1255.2 | M95: 9.55752
A96: 87 | B96: CENTRALBK | C96: 35.15 | D96: 35.52 | E96: 34.63 | F96: 34.12 | G96: 33.23 | H96: 36.03 | I96: 36.92 | J96: 37.43 | K96: 36.4 | L96: 35 | M96: 5.66454
A97: 88 | B97: CENTURYPLY | C97: 174.3 | D97: 175.47 | E97: 172.58 | F97: 170.87 | G97: 167.98 | H97: 177.18 | I97: 180.07 | J97: 181.78 | K97: 178.35 | L97: 173.75 | M97: 1.81509
A98: 89 | B98: CENTURYTEX | C98: 896.45 | D98: 899.67 | E98: 890.43 | F98: 884.42 | G98: 875.18 | H98: 905.68 | I98: 914.92 | J98: 920.93 | K98: 908.9 | L98: 893.65 | M98: 4.05578
A99: 90 | B99: CERA | C99: 2418.6 | D99: 2406.20 | E99: 2382.40 | F99: 2346.20 | G99: 2322.40 | H99: 2442.40 | I99: 2466.20 | J99: 2502.40 | K99: 2430 | L99: 2370 | M99: 0.05377
A100: 91 | B100: CGPOWER | C100: 43.75 | D100: 43.88 | E100: 42.42 | F100: 41.08 | G100: 39.62 | H100: 45.22 | I100: 46.68 | J100: 48.02 | K100: 45.35 | L100: 42.55 | M100: 209.14677
A101: 92 | B101: CHAMBLFERT | C101: 143.85 | D101: 144.38 | E101: 142.37 | F101: 140.88 | G101: 138.87 | H101: 145.87 | I101: 147.88 | J101: 149.37 | K101: 146.4 | L101: 142.9 | M101: 7.60731
A102: 93 | B102: CHENNPETRO | C102: 279.5 | D102: 280.82 | E102: 276.63 | F102: 273.77 | G102: 269.58 | H102: 283.68 | I102: 287.87 | J102: 290.73 | K102: 285 | L102: 277.95 | M102: 5.76445
A103: 94 | B103: CHOLAFIN | C103: 1225.4 | D103: 1226.33 | E103: 1200.07 | F103: 1174.73 | G103: 1148.47 | H103: 1251.67 | I103: 1277.93 | J103: 1303.27 | K103: 1252.6 | L103: 1201 | M103: 2.38226
A104: 95 | B104: CIPLA | C104: 518.8 | D104: 517.53 | E104: 514.27 | F104: 509.73 | G104: 506.47 | H104: 522.07 | I104: 525.33 | J104: 529.87 | K104: 520.8 | L104: 513 | M104: 12.14348
A105: 96 | B105: COALINDIA | C105: 248.3 | D105: 249.73 | E105: 245.47 | F105: 242.63 | G105: 238.37 | H105: 252.57 | I105: 256.83 | J105: 259.67 | K105: 254 | L105: 246.9 | M105: 43.6819
A106: 97 | B106: COCHINSHIP | C106: 380.35 | D106: 382.60 | E106: 376.90 | F106: 373.45 | G106: 367.75 | H106: 386.05 | I106: 391.75 | J106: 395.20 | K106: 388.3 | L106: 379.15 | M106: 0.4053
A107: 98 | B107: COFFEEDAY | C107: 270.7 | D107: 264.77 | E107: 255.93 | F107: 241.17 | G107: 232.33 | H107: 279.53 | I107: 288.37 | J107: 303.13 | K107: 273.6 | L107: 250 | M107: 0.59074
A108: 99 | B108: COLPAL | C108: 1315.3 | D108: 1321.42 | E108: 1305.08 | F108: 1294.87 | G108: 1278.53 | H108: 1331.63 | I108: 1347.97 | J108: 1358.18 | K108: 1337.75 | L108: 1311.2 | M108: 3.97614
A109: 100 | B109: CONCOR | C109: 650.05 | D109: 652.03 | E109: 644.62 | F109: 639.18 | G109: 631.77 | H109: 657.47 | I109: 664.88 | J109: 670.32 | K109: 659.45 | L109: 646.6 | M109: 4.35059
A110: 101 | B110: COROMANDEL | C110: 445.2 | D110: 445.43 | E110: 441.87 | F110: 438.53 | G110: 434.97 | H110: 448.77 | I110: 452.33 | J110: 455.67 | K110: 449 | L110: 442.1 | M110: 1.90212
A111: 102 | B111: COX&KINGS | C111: 163.1 | D111: 164.35 | E111: 160.85 | F111: 158.60 | G111: 155.10 | H111: 166.60 | I111: 170.10 | J111: 172.35 | K111: 167.85 | L111: 162.1 | M111: 0.20054
A112: 103 | B112: CRISIL | C112: 1604.05 | D112: 1604.92 | E112: 1580.13 | F112: 1556.22 | G112: 1531.43 | H112: 1628.83 | I112: 1653.62 | J112: 1677.53 | K112: 1629.7 | L112: 1581 | M112: 0.02861
A113: 104 | B113: CROMPTON | C113: 224.25 | D113: 224.15 | E113: 221.30 | F113: 218.35 | G113: 215.50 | H113: 227.10 | I113: 229.95 | J113: 232.90 | K113: 227 | L113: 221.2 | M113: 1.13395
A114: 105 | B114: CUB | C114: 187.55 | D114: 189.43 | E114: 183.22 | F114: 178.88 | G114: 172.67 | H114: 193.77 | I114: 199.98 | J114: 204.32 | K114: 195.65 | L114: 185.1 | M114: 5.15832
A115: 106 | B115: CUMMINSIND | C115: 790.15 | D115: 790.58 | E115: 777.07 | F115: 763.98 | G115: 750.47 | H115: 803.67 | I115: 817.18 | J115: 830.27 | K115: 804.1 | L115: 777.5 | M115: 2.71942
A116: 107 | B116: CYIENT | C116: 609.1 | D116: 610.92 | E116: 603.28 | F116: 597.47 | G116: 589.83 | H116: 616.73 | I116: 624.37 | J116: 630.18 | K116: 618.55 | L116: 605.1 | M116: 0.40905
A117: 108 | B117: DABUR | C117: 425.85 | D117: 430.68 | E117: 419.42 | F117: 412.98 | G117: 401.72 | H117: 437.12 | I117: 448.38 | J117: 454.82 | K117: 441.95 | L117: 424.25 | M117: 32.63009
A118: 109 | B118: DBCORP | C118: 169.45 | D118: 171.02 | E118: 166.93 | F118: 164.42 | G118: 160.33 | H118: 173.53 | I118: 177.62 | J118: 180.13 | K118: 175.1 | L118: 168.5 | M118: 0.28627
A119: 110 | B119: DBL | C119: 423.05 | D119: 424.22 | E119: 419.98 | F119: 416.92 | G119: 412.68 | H119: 427.28 | I119: 431.52 | J119: 434.58 | K119: 428.45 | L119: 421.15 | M119: 0.79113
A120: 111 | B120: DBREALTY | C120: 26.35 | D120: 26.72 | E120: 25.78 | F120: 25.22 | G120: 24.28 | H120: 27.28 | I120: 28.22 | J120: 28.78 | K120: 27.65 | L120: 26.15 | M120: 3.66344
A121: 112 | B121: DCAL | C121: 229 | D121: 230.20 | E121: 225.40 | F121: 221.80 | G121: 217.00 | H121: 233.80 | I121: 238.60 | J121: 242.20 | K121: 235 | L121: 226.6 | M121: 0.53868
A122: 113 | B122: DCBBANK | C122: 164.3 | D122: 164.22 | E122: 161.98 | F122: 159.67 | G122: 157.43 | H122: 166.53 | I122: 168.77 | J122: 171.08 | K122: 166.45 | L122: 161.9 | M122: 12.64107
A123: 114 | B123: DCMSHRIRAM | C123: 335.45 | D123: 334.72 | E123: 331.33 | F123: 327.22 | G123: 323.83 | H123: 338.83 | I123: 342.22 | J123: 346.33 | K123: 338.1 | L123: 330.6 | M123: 0.4402
A124: 115 | B124: DEEPAKFERT | C124: 145.4 | D124: 147.22 | E124: 142.53 | F124: 139.67 | G124: 134.98 | H124: 150.08 | I124: 154.77 | J124: 157.63 | K124: 151.9 | L124: 144.35 | M124: 2.46388
A125: 116 | B125: DELTACORP | C125: 246.75 | D125: 247.13 | E125: 243.87 | F125: 240.98 | G125: 237.72 | H125: 250.02 | I125: 253.28 | J125: 256.17 | K125: 250.4 | L125: 244.25 | M125: 6.44673
A126: 117 | B126: DEN | C126: 69.05 | D126: 69.37 | E126: 68.68 | F126: 68.32 | G126: 67.63 | H126: 69.73 | I126: 70.42 | J126: 70.78 | K126: 70.05 | L126: 69 | M126: 46.56144
A127: 118 | B127: DENABANK | C127: 16.85 | D127: 17.00 | E127: 16.50 | F127: 16.15 | G127: 15.65 | H127: 17.35 | I127: 17.85 | J127: 18.20 | K127: 17.5 | L127: 16.65 | M127: 19.77337
A128: 119 | B128: DHFL | C128: 234.6 | D128: 237.23 | E128: 230.02 | F128: 225.43 | G128: 218.22 | H128: 241.82 | I128: 249.03 | J128: 253.62 | K128: 244.45 | L128: 232.65 | M128: 86.10047
A129: 120 | B129: DISHTV | C129: 36.7 | D129: 37.42 | E129: 35.63 | F129: 34.57 | G129: 32.78 | H129: 38.48 | I129: 40.27 | J129: 41.33 | K129: 39.2 | L129: 36.35 | M129: 58.33363
A130: 121 | B130: DIVISLAB | C130: 1447.15 | D130: 1456.90 | E130: 1423.80 | F130: 1400.45 | G130: 1367.35 | H130: 1480.25 | I130: 1513.35 | J130: 1536.70 | K130: 1490 | L130: 1433.55 | M130: 8.49081
A131: 122 | B131: DIXON | C131: 2101.1 | D131: 2125.70 | E131: 2056.40 | F131: 2011.70 | G131: 1942.40 | H131: 2170.40 | I131: 2239.70 | J131: 2284.40 | K131: 2195 | L131: 2081 | M131: 0.17653
A132: 123 | B132: DLF | C132: 178.1 | D132: 180.50 | E132: 174.70 | F132: 171.30 | G132: 165.50 | H132: 183.90 | I132: 189.70 | J132: 193.10 | K132: 186.3 | L132: 177.1 | M132: 89.45739
A133: 124 | B133: DMART | C133: 1545.75 | D133: 1565.45 | E133: 1508.30 | F133: 1470.85 | G133: 1413.70 | H133: 1602.90 | I133: 1660.05 | J133: 1697.50 | K133: 1622.6 | L133: 1528 | M133: 6.47211
A134: 125 | B134: DREDGECORP | C134: 351 | D134: 352.18 | E134: 346.37 | F134: 341.73 | G134: 335.92 | H134: 356.82 | I134: 362.63 | J134: 367.27 | K134: 358 | L134: 347.55 | M134: 0.7403
A135: 126 | B135: DRREDDY | C135: 2599.8 | D135: 2600.37 | E135: 2577.63 | F135: 2555.47 | G135: 2532.73 | H135: 2622.53 | I135: 2645.27 | J135: 2667.43 | K135: 2623.1 | L135: 2578.2 | M135: 5.04639
A136: 127 | B136: ECLERX | C136: 1067.15 | D136: 1060.47 | E136: 1042.98 | F136: 1018.82 | G136: 1001.33 | H136: 1084.63 | I136: 1102.12 | J136: 1126.28 | K136: 1077.95 | L136: 1036.3 | M136: 0.02084
A137: 128 | B137: EDELWEISS | C137: 184 | D137: 186.22 | E137: 180.43 | F137: 176.87 | G137: 171.08 | H137: 189.78 | I137: 195.57 | J137: 199.13 | K137: 192 | L137: 182.65 | M137: 8.23358
A138: 129 | B138: EICHERMOT | C138: 23210.7 | D138: 23301.63 | E138: 23028.27 | F138: 22845.83 | G138: 22572.47 | H138: 23484.07 | I138: 23757.43 | J138: 23939.87 | K138: 23575 | L138: 23119.2 | M138: 0.34687
A139: 130 | B139: EIDPARRY | C139: 204.1 | D139: 205.73 | E139: 201.47 | F139: 198.83 | G139: 194.57 | H139: 208.37 | I139: 212.63 | J139: 215.27 | K139: 210 | L139: 203.1 | M139: 0.54006
A140: 131 | B140: EIHOTEL | C140: 192.4 | D140: 192.18 | E140: 189.57 | F140: 186.73 | G140: 184.12 | H140: 195.02 | I140: 197.63 | J140: 200.47 | K140: 194.8 | L140: 189.35 | M140: 0.67084
A141: 132 | B141: EMAMILTD | C141: 401.85 | D141: 405.55 | E141: 396.35 | F141: 390.85 | G141: 381.65 | H141: 411.05 | I141: 420.25 | J141: 425.75 | K141: 414.75 | L141: 400.05 | M141: 4.9841
A142: 133 | B142: ENDURANCE | C142: 1160.6 | D142: 1161.87 | E142: 1143.73 | F142: 1126.87 | G142: 1108.73 | H142: 1178.73 | I142: 1196.87 | J142: 1213.73 | K142: 1180 | L142: 1145 | M142: 0.16863
A143: 134 | B143: ENGINERSIN | C143: 125.95 | D143: 125.85 | E143: 122.40 | F143: 118.85 | G143: 115.40 | H143: 129.40 | I143: 132.85 | J143: 136.40 | K143: 129.3 | L143: 122.3 | M143: 37.2347
A144: 135 | B144: EQUITAS | C144: 124.35 | D144: 123.18 | E144: 121.47 | F144: 118.58 | G144: 116.87 | H144: 126.07 | I144: 127.78 | J144: 130.67 | K144: 124.9 | L144: 120.3 | M144: 22.92858
A145: 136 | B145: ERIS | C145: 672.4 | D145: 672.12 | E145: 664.28 | F145: 656.17 | G145: 648.33 | H145: 680.23 | I145: 688.07 | J145: 696.18 | K145: 679.95 | L145: 664 | M145: 0.02037
A146: 137 | B146: EROSMEDIA | C146: 86.2 | D146: 87.70 | E146: 83.95 | F146: 81.70 | G146: 77.95 | H146: 89.95 | I146: 93.70 | J146: 95.95 | K146: 91.45 | L146: 85.45 | M146: 2.35554
A147: 138 | B147: ESCORTS | C147: 672.8 | D147: 677.28 | E147: 664.57 | F147: 656.33 | G147: 643.62 | H147: 685.52 | I147: 698.23 | J147: 706.47 | K147: 690 | L147: 669.05 | M147: 9.60411
A148: 139 | B148: EVEREADY | C148: 188.3 | D148: 188.30 | E148: 185.60 | F148: 182.90 | G148: 180.20 | H148: 191.00 | I148: 193.70 | J148: 196.40 | K148: 191 | L148: 185.6 | M148: 0.49201
A149: 140 | B149: EXIDEIND | C149: 257.4 | D149: 259.35 | E149: 253.70 | F149: 250.00 | G149: 244.35 | H149: 263.05 | I149: 268.70 | J149: 272.40 | K149: 265 | L149: 255.65 | M149: 14.00203
A150: 141 | B150: FCONSUMER | C150: 47.2 | D150: 47.60 | E150: 46.30 | F150: 45.40 | G150: 44.10 | H150: 48.50 | I150: 49.80 | J150: 50.70 | K150: 48.9 | L150: 46.7 | M150: 14.78808
A151: 142 | B151: FEDERALBNK | C151: 93.8 | D151: 93.87 | E151: 92.43 | F151: 91.07 | G151: 89.63 | H151: 95.23 | I151: 96.67 | J151: 98.03 | K151: 95.3 | L151: 92.5 | M151: 127.17363
A152: 143 | B152: FINCABLES | C152: 458.35 | D152: 456.73 | E152: 452.72 | F152: 447.08 | G152: 443.07 | H152: 462.37 | I152: 466.38 | J152: 472.02 | K152: 460.75 | L152: 451.1 | M152: 0.21415
A153: 144 | B153: FINPIPE | C153: 542.7 | D153: 541.58 | E153: 537.17 | F153: 531.63 | G153: 527.22 | H153: 547.12 | I153: 551.53 | J153: 557.07 | K153: 546 | L153: 536.05 | M153: 0.12946
A154: 145 | B154: FLFL | C154: 400.95 | D154: 403.07 | E154: 396.23 | F154: 391.52 | G154: 384.68 | H154: 407.78 | I154: 414.62 | J154: 419.33 | K154: 409.9 | L154: 398.35 | M154: 0.47274
A155: 146 | B155: FSL | C155: 47.9 | D155: 48.37 | E155: 47.28 | F155: 46.67 | G155: 45.58 | H155: 48.98 | I155: 50.07 | J155: 50.68 | K155: 49.45 | L155: 47.75 | M155: 14.37526
A156: 147 | B156: GAIL | C156: 347.7 | D156: 345.87 | E156: 341.68 | F156: 335.67 | G156: 331.48 | H156: 351.88 | I156: 356.07 | J156: 362.08 | K156: 350.05 | L156: 339.85 | M156: 34.72576
A157: 148 | B157: GATI | C157: 86.65 | D157: 86.62 | E157: 85.33 | F157: 84.02 | G157: 82.73 | H157: 87.93 | I157: 89.22 | J157: 90.53 | K157: 87.9 | L157: 85.3 | M157: 3.34493
A158: 149 | B158: GDL | C158: 132.45 | D158: 133.57 | E158: 130.88 | F158: 129.32 | G158: 126.63 | H158: 135.13 | I158: 137.82 | J158: 139.38 | K158: 136.25 | L158: 132 | M158: 0.82081
A159: 150 | B159: GEPIL | C159: 845.2 | D159: 844.70 | E159: 829.50 | F159: 813.80 | G159: 798.60 | H159: 860.40 | I159: 875.60 | J159: 891.30 | K159: 859.9 | L159: 829 | M159: 0.14424
A160: 151 | B160: GESHIP | C160: 317.25 | D160: 321.95 | E160: 311.00 | F160: 304.75 | G160: 293.80 | H160: 328.20 | I160: 339.15 | J160: 345.40 | K160: 332.9 | L160: 315.7 | M160: 1.33541
A161: 152 | B161: GET&D | C161: 268.15 | D161: 264.67 | E161: 260.13 | F161: 252.12 | G161: 247.58 | H161: 272.68 | I161: 277.22 | J161: 285.23 | K161: 269.2 | L161: 256.65 | M161: 0.34186
A162: 153 | B162: GHCL | C162: 239.65 | D162: 241.58 | E162: 235.17 | F162: 230.68 | G162: 224.27 | H162: 246.07 | I162: 252.48 | J162: 256.97 | K162: 248 | L162: 237.1 | M162: 0.72586
A163: 154 | B163: GICRE | C163: 263.55 | D163: 265.68 | E163: 260.07 | F163: 256.58 | G163: 250.97 | H163: 269.17 | I163: 274.78 | J163: 278.27 | K163: 271.3 | L163: 262.2 | M163: 0.7927
A164: 155 | B164: GILLETTE | C164: 6492.05 | D164: 6495.70 | E164: 6471.40 | F164: 6450.75 | G164: 6426.45 | H164: 6516.35 | I164: 6540.65 | J164: 6561.30 | K164: 6520 | L164: 6475.05 | M164: 0.01658
A165: 156 | B165: GLAXO | C165: 1455.3 | D165: 1443.77 | E165: 1422.53 | F165: 1389.77 | G165: 1368.53 | H165: 1476.53 | I165: 1497.77 | J165: 1530.53 | K165: 1465 | L165: 1411 | M165: 0.12347
A166: 157 | B166: GLENMARK | C166: 677.05 | D166: 674.90 | E166: 668.20 | F166: 659.35 | G166: 652.65 | H166: 683.75 | I166: 690.45 | J166: 699.30 | K166: 681.6 | L166: 666.05 | M166: 5.24151
A167: 158 | B167: GMDCLTD | C167: 88.4 | D167: 89.02 | E167: 87.53 | F167: 86.67 | G167: 85.18 | H167: 89.88 | I167: 91.37 | J167: 92.23 | K167: 90.5 | L167: 88.15 | M167: 0.79722
A168: 159 | B168: GMRINFRA | C168: 15.75 | D168: 15.72 | E168: 15.48 | F168: 15.22 | G168: 14.98 | H168: 15.98 | I168: 16.22 | J168: 16.48 | K168: 15.95 | L168: 15.45 | M168: 99.97982
A169: 160 | B169: GNFC | C169: 344.05 | D169: 346.07 | E169: 341.08 | F169: 338.12 | G169: 333.13 | H169: 349.03 | I169: 354.02 | J169: 356.98 | K169: 351.05 | L169: 343.1 | M169: 3.38977
A170: 161 | B170: GODFRYPHLP | C170: 843.4 | D170: 845.15 | E170: 826.30 | F170: 809.20 | G170: 790.35 | H170: 862.25 | I170: 881.10 | J170: 898.20 | K170: 864 | L170: 828.05 | M170: 2.95106
A171: 162 | B171: GODREJAGRO | C171: 500.8 | D171: 503.82 | E171: 496.88 | F171: 492.97 | G171: 486.03 | H171: 507.73 | I171: 514.67 | J171: 518.58 | K171: 510.75 | L171: 499.9 | M171: 0.45853
A172: 163 | B172: GODREJCP | C172: 802.55 | D172: 806.68 | E172: 795.87 | F172: 789.18 | G172: 778.37 | H172: 813.37 | I172: 824.18 | J172: 830.87 | K172: 817.5 | L172: 800 | M172: 3.90464
A173: 164 | B173: GODREJIND | C173: 515.5 | D173: 517.72 | E173: 509.98 | F173: 504.47 | G173: 496.73 | H173: 523.23 | I173: 530.97 | J173: 536.48 | K173: 525.45 | L173: 512.2 | M173: 3.06699
A174: 165 | B174: GODREJPROP | C174: 677.75 | D174: 677.20 | E174: 670.00 | F174: 662.25 | G174: 655.05 | H174: 684.95 | I174: 692.15 | J174: 699.90 | K174: 684.4 | L174: 669.45 | M174: 1.00774
A175: 166 | B175: GPPL | C175: 103.5 | D175: 103.23 | E175: 102.32 | F175: 101.13 | G175: 100.22 | H175: 104.42 | I175: 105.33 | J175: 106.52 | K175: 104.15 | L175: 102.05 | M175: 0.75955
A176: 167 | B176: GRANULES | C176: 88.5 | D176: 88.83 | E176: 86.92 | F176: 85.33 | G176: 83.42 | H176: 90.42 | I176: 92.33 | J176: 93.92 | K176: 90.75 | L176: 87.25 | M176: 6.47341
A177: 168 | B177: GRAPHITE | C177: 753.8 | D177: 767.87 | E177: 735.93 | F177: 718.07 | G177: 686.13 | H177: 785.73 | I177: 817.67 | J177: 835.53 | K177: 799.8 | L177: 750 | M177: 9.58148
A178: 169 | B178: GRASIM | C178: 808.15 | D178: 813.65 | E178: 798.65 | F178: 789.15 | G178: 774.15 | H178: 823.15 | I178: 838.15 | J178: 847.65 | K178: 828.65 | L178: 804.15 | M178: 13.03555
A179: 170 | B179: GREAVESCOT | C179: 119.05 | D179: 119.90 | E179: 117.90 | F179: 116.75 | G179: 114.75 | H179: 121.05 | I179: 123.05 | J179: 124.20 | K179: 121.9 | L179: 118.75 | M179: 3.52195
A180: 171 | B180: GREENPLY | C180: 135.15 | D180: 136.22 | E180: 133.43 | F180: 131.72 | G180: 128.93 | H180: 137.93 | I180: 140.72 | J180: 142.43 | K180: 139 | L180: 134.5 | M180: 0.49761
A181: 172 | B181: GRUH | C181: 317.3 | D181: 321.95 | E181: 310.50 | F181: 303.70 | G181: 292.25 | H181: 328.75 | I181: 340.20 | J181: 347.00 | K181: 333.4 | L181: 315.15 | M181: 6.47739
A182: 173 | B182: GSFC | C182: 108.15 | D182: 109.07 | E182: 106.93 | F182: 105.72 | G182: 103.58 | H182: 110.28 | I182: 112.42 | J182: 113.63 | K182: 111.2 | L182: 107.85 | M182: 11.91875
A183: 174 | B183: GSKCONS | C183: 7523.4 | D183: 7567.60 | E183: 7460.80 | F183: 7398.20 | G183: 7291.40 | H183: 7630.20 | I183: 7737.00 | J183: 7799.60 | K183: 7674.4 | L183: 7505 | M183: 0.15127
A184: 175 | B184: GSPL | C184: 175.65 | D184: 176.15 | E184: 174.60 | F184: 173.55 | G184: 172.00 | H184: 177.20 | I184: 178.75 | J184: 179.80 | K184: 177.7 | L184: 175.1 | M184: 0.40186
A185: 176 | B185: GUJALKALI | C185: 532.4 | D185: 535.10 | E185: 528.30 | F185: 524.20 | G185: 517.40 | H185: 539.20 | I185: 546.00 | J185: 550.10 | K185: 541.9 | L185: 531 | M185: 0.13008
A186: 177 | B186: GUJFLUORO | C186: 900.35 | D186: 901.10 | E186: 894.20 | F186: 888.05 | G186: 881.15 | H186: 907.25 | I186: 914.15 | J186: 920.30 | K186: 908 | L186: 894.95 | M186: 0.26618
A187: 178 | B187: GUJGASLTD | C187: 672.15 | D187: 670.72 | E187: 666.43 | F187: 660.72 | G187: 656.43 | H187: 676.43 | I187: 680.72 | J187: 686.43 | K187: 675 | L187: 665 | M187: 0.1006
A188: 179 | B188: GULFOILLUB | C188: 817.5 | D188: 830.17 | E188: 802.33 | F188: 787.17 | G188: 759.33 | H188: 845.33 | I188: 873.17 | J188: 888.33 | K188: 858 | L188: 815 | M188: 0.56612
A189: 180 | B189: GVKPIL | C189: 7.95 | D189: 8.07 | E189: 7.73 | F189: 7.52 | G189: 7.18 | H189: 8.28 | I189: 8.62 | J189: 8.83 | K189: 8.4 | L189: 7.85 | M189: 16.14221
A190: 181 | B190: HATHWAY | C190: 31.1 | D190: 31.07 | E190: 30.93 | F190: 30.77 | G190: 30.63 | H190: 31.23 | I190: 31.37 | J190: 31.53 | K190: 31.2 | L190: 30.9 | M190: 8.59261
A191: 182 | B191: HATSUN | C191: 617.05 | D191: 618.67 | E191: 612.93 | F191: 608.82 | G191: 603.08 | H191: 622.78 | I191: 628.52 | J191: 632.63 | K191: 624.4 | L191: 614.55 | M191: 0.07628
A192: 183 | B192: HAVELLS | C192: 667.9 | D192: 674.97 | E192: 659.03 | F192: 650.17 | G192: 634.23 | H192: 683.83 | I192: 699.77 | J192: 708.63 | K192: 690.9 | L192: 666.1 | M192: 9.64046
A193: 184 | B193: HCC | C193: 11.2 | D193: 11.33 | E193: 11.02 | F193: 10.83 | G193: 10.52 | H193: 11.52 | I193: 11.83 | J193: 12.02 | K193: 11.65 | L193: 11.15 | M193: 34.60464
A194: 185 | B194: HCL-INSYS | C194: 25.15 | D194: 25.32 | E194: 24.73 | F194: 24.32 | G194: 23.73 | H194: 25.73 | I194: 26.32 | J194: 26.73 | K194: 25.9 | L194: 24.9 | M194: 5.07056
A195: 186 | B195: HCLTECH | C195: 937.85 | D195: 942.97 | E195: 930.03 | F195: 922.22 | G195: 909.28 | H195: 950.78 | I195: 963.72 | J195: 971.53 | K195: 955.9 | L195: 935.15 | M195: 14.70782
A196: 187 | B196: HDFC | C196: 1902.15 | D196: 1918.38 | E196: 1881.77 | F196: 1861.38 | G196: 1824.77 | H196: 1938.77 | I196: 1975.38 | J196: 1995.77 | K196: 1955 | L196: 1898 | M196: 22.07727
A197: 188 | B197: HDFCBANK | C197: 2080.65 | D197: 2087.33 | E197: 2070.67 | F197: 2060.68 | G197: 2044.02 | H197: 2097.32 | I197: 2113.98 | J197: 2123.97 | K197: 2104 | L197: 2077.35 | M197: 14.00372
A198: 189 | B198: HDIL | C198: 23.7 | D198: 24.00 | E198: 23.30 | F198: 22.90 | G198: 22.20 | H198: 24.40 | I198: 25.10 | J198: 25.50 | K198: 24.7 | L198: 23.6 | M198: 29.1456
A199: 190 | B199: HEG | C199: 3675.35 | D199: 3745.68 | E199: 3562.57 | F199: 3449.78 | G199: 3266.67 | H199: 3858.47 | I199: 4041.58 | J199: 4154.37 | K199: 3928.8 | L199: 3632.9 | M199: 3.24099
A200: 191 | B200: HEIDELBERG | C200: 151.15 | D200: 151.60 | E200: 149.40 | F200: 147.65 | G200: 145.45 | H200: 153.35 | I200: 155.55 | J200: 157.30 | K200: 153.8 | L200: 149.85 | M200: 1.16443
A201: 192 | B201: HERITGFOOD | C201: 526.75 | D201: 527.90 | E201: 515.80 | F201: 504.85 | G201: 492.75 | H201: 538.85 | I201: 550.95 | J201: 561.90 | K201: 540 | L201: 516.95 | M201: 0.53327
A202: 193 | B202: HEROMOTOCO | C202: 3168.4 | D202: 3206.47 | E202: 3111.93 | F202: 3055.47 | G202: 2960.93 | H202: 3262.93 | I202: 3357.47 | J202: 3413.93 | K202: 3301 | L202: 3150 | M202: 6.55657
A203: 194 | B203: HEXAWARE | C203: 315 | D203: 315.25 | E203: 311.60 | F203: 308.20 | G203: 304.55 | H203: 318.65 | I203: 322.30 | J203: 325.70 | K203: 318.9 | L203: 311.85 | M203: 9.42066
A204: 195 | B204: HFCL | C204: 21.15 | D204: 21.33 | E204: 20.82 | F204: 20.48 | G204: 19.97 | H204: 21.67 | I204: 22.18 | J204: 22.52 | K204: 21.85 | L204: 21 | M204: 36.76437
A205: 196 | B205: HIMATSEIDE | C205: 219 | D205: 220.88 | E205: 215.87 | F205: 212.73 | G205: 207.72 | H205: 224.02 | I205: 229.03 | J205: 232.17 | K205: 225.9 | L205: 217.75 | M205: 1.48406
A206: 197 | B206: HINDALCO | C206: 217.85 | D206: 219.60 | E206: 215.20 | F206: 212.55 | G206: 208.15 | H206: 222.25 | I206: 226.65 | J206: 229.30 | K206: 224 | L206: 216.95 | M206: 46.67022
... 304 more rows

Sheet Bulk Deals
E6: Back To Main Page
A7: Subject : | B7: BULK DEAL | D7: =Main!B10 -> 2018-12-26
A9: Date | B9: Scrip code | C9: Scrip Name | D9: Client Name | E9: Buy / Sell | F9: Quantity Traded | G9: Trade Price / Wt.Avg.trade price | H9: Exchange
A10: 2018-12-24 | B10: 530043 | C10: ACKNIT | D10: SARAF CAPITAL MARKETS LIMITED | E10: SELL | F10: 80,000 | G10: 122.9 | H10: BSE
A11: 2018-12-24 | B11: 530043 | C11: ACKNIT | D11: ADITYA SARAF | E11: BUY | F11: 16,000 | G11: 122.89 | H11: BSE
A12: 2018-12-24 | B12: 530043 | C12: ACKNIT | D12: SHRI KRISHAN SARAF AND SONS | E12: BUY | F12: 45,491 | G12: 122.9 | H12: BSE
A13: 2018-12-24 | B13: 530043 | C13: ACKNIT | D13: SHRI KRISHAN SARAF AND SONS | E13: SELL | F13: 100 | G13: 122.9 | H13: BSE
A14: 2018-12-24 | B14: 541702 | C14: ASHNI | D14: MONGHIBEN CHAMPAKLAL SHAH | E14: SELL | F14: 23,000 | G14: 7.75 | H14: BSE
A15: 2018-12-24 | B15: 541702 | C15: ASHNI | D15: MONGHIBEN CHAMPAKLAL SHAH | E15: BUY | F15: 26,104 | G15: 7.71 | H15: BSE
A16: 2018-12-24 | B16: 541702 | C16: ASHNI | D16: CHAMPAKLAL AMULAKDAS SHAH | E16: SELL | F16: 7,510 | G16: 7.65 | H16: BSE
A17: 2018-12-24 | B17: 541702 | C17: ASHNI | D17: CHAMPAKLAL AMULAKDAS SHAH | E17: BUY | F17: 20,527 | G17: 7.35 | H17: BSE
A18: 2018-12-24 | B18: 541702 | C18: ASHNI | D18: NAVEEN GUPTA | E18: SELL | F18: 31,949 | G18: 7.75 | H18: BSE
A19: 2018-12-24 | B19: 541702 | C19: ASHNI | D19: NAVEEN GUPTA | E19: BUY | F19: 31,949 | G19: 7.71 | H19: BSE
A20: 2018-12-24 | B20: 531719 | C20: BHAGCHEM | D20: JAYSHRI JANAK JESRANI | E20: SELL | F20: 100,000 | G20: 421.06 | H20: BSE
A21: 2018-12-24 | B21: 530859 | C21: COSBOARD | D21: ARCADIA SHARE & STOCK BROKERS PVT. LTD | E21: SELL | F21: 21,900 | G21: 10.98 | H21: BSE
A22: 2018-12-24 | B22: 540938 | C22: GUJHYSPIN | D22: NIRAJ LAHERCHAND MODI | E22: SELL | F22: 150,000 | G22: 5 | H22: BSE
A23: 2018-12-24 | B23: 536709 | C23: INDRENEW | D23: ASHU SINGH | E23: BUY | F23: 35,000 | G23: 18 | H23: BSE
A24: 2018-12-24 | B24: 536709 | C24: INDRENEW | D24: HARSHADA MANOHAR BAING | E24: BUY | F24: 27,500 | G24: 18 | H24: BSE
A25: 2018-12-24 | B25: 536709 | C25: INDRENEW | D25: SHALAKA SANTOSH GURAV | E25: BUY | F25: 30,000 | G25: 18 | H25: BSE
A26: 2018-12-24 | B26: 536709 | C26: INDRENEW | D26: SHALAKA SANTOSH GURAV | E26: SELL | F26: 650 | G26: 18.5 | H26: BSE
A27: 2018-12-24 | B27: 536709 | C27: INDRENEW | D27: GANGARAM GOVIND WAINGANKAR | E27: SELL | F27: 1,450 | G27: 18.5 | H27: BSE
A28: 2018-12-24 | B28: 536709 | C28: INDRENEW | D28: GANGARAM GOVIND WAINGANKAR | E28: BUY | F28: 30,000 | G28: 18 | H28: BSE
A29: 2018-12-24 | B29: 536709 | C29: INDRENEW | D29: JITENDRA KANTILAL VAKHARIA | E29: BUY | F29: 447 | G29: 17.93 | H29: BSE
A30: 2018-12-24 | B30: 536709 | C30: INDRENEW | D30: JITENDRA KANTILAL VAKHARIA | E30: SELL | F30: 145,447 | G30: 18 | H30: BSE
A31: 2018-12-24 | B31: 538765 | C31: JSHL | D31: ASHOK KUMAR MISHRA | E31: SELL | F31: 50,000 | G31: 4.75 | H31: BSE
A32: 2018-12-24 | B32: 590041 | C32: KAVVERITEL | D32: KARJAT TRADE PLACE PRIVATE LIMITED | E32: BUY | F32: 1,434,214 | G32: 8.35 | H32: BSE
A33: 2018-12-24 | B33: 590041 | C33: KAVVERITEL | D33: AEGIS INVESTMENT FUND | E33: SELL | F33: 1434214 | G33: 8.35 | H33: BSE
A34: 2018-12-24 | B34: 535204 | C34: MUKTA | D34: KHUSHBOO VANRAJ KAHOR | E34: SELL | F34: 134625 | G34: 28.13 | H34: BSE
A35: 2018-12-24 | B35: 535204 | C35: MUKTA | D35: KHUSHBOO VANRAJ KAHOR | E35: BUY | F35: 134625 | G35: 27.74 | H35: BSE
A36: 2018-12-24 | B36: 531512 | C36: ORIENTTR | D36: PRASHANT SONI | E36: BUY | F36: 95600 | G36: 21.27 | H36: BSE
A37: 2018-12-24 | B37: 540125 | C37: RADHIKAJWE | D37: KEYNOTE COMMERCIAL PRIVATE LIMITED | E37: SELL | F37: 155200 | G37: 20.01 | H37: BSE
A38: 2018-12-24 | B38: 540125 | C38: RADHIKAJWE | D38: SUNCARE TRADERS LIMITED | E38: SELL | F38: 180800 | G38: 20 | H38: BSE
A39: 2018-12-24 | B39: 541634 | C39: RAWEDGE | D39: MACRO COMMODEAL PRIVATE LIMITED | E39: BUY | F39: 203200 | G39: 70.66 | H39: BSE
A40: 2018-12-24 | B40: 541634 | C40: RAWEDGE | D40: VISMAY AMITKUMAR SHAH | E40: SELL | F40: 92800 | G40: 70.35 | H40: BSE
A41: 2018-12-24 | B41: 538557 | C41: SAIBABA | D41: JAGDISHCHANDRA BHAILALBHAI PATEL | E41: SELL | F41: 837415 | G41: 1.71 | H41: BSE
A42: 2018-12-24 | B42: 538557 | C42: SAIBABA | D42: HEENABANE SANJAYBHAI SOLANKI | E42: BUY | F42: 700000 | G42: 1.71 | H42: BSE
A43: 2018-12-24 | B43: 539921 | C43: SEIL | D43: ANIL R DHANUKA | E43: BUY | F43: 414650 | G43: 128 | H43: BSE
A44: 2018-12-24 | B44: 539921 | C44: SEIL | D44: ALBULA INVESTMENT FUND LTD | E44: SELL | F44: 415,000 | G44: 128 | H44: BSE
A45: 2018-12-24 | B45: 539520 | C45: SHAILJA | D45: RAHUL GANESH KEDIA | E45: SELL | F45: 26,600 | G45: 11.39 | H45: BSE
A46: 2018-12-24 | B46: 539520 | C46: SHAILJA | D46: ARVIND SHANTILAL SHAH | E46: SELL | F46: 90,000 | G46: 11.42 | H46: BSE
A47: 2018-12-24 | B47: 539520 | C47: SHAILJA | D47: MUKTI M SANCHETI | E47: BUY | F47: 90,000 | G47: 11.42 | H47: BSE
A48: 2018-12-24 | B48: 541967 | C48: SKYGOLD | D48: ARYAMAN BROKING LIMITED | E48: SELL | F48: 36,000 | G48: 183.75 | H48: BSE
A49: 2018-12-24 | B49: 540084 | C49: SPICY | D49: SHIV KUMAR GOEL | E49: SELL | F49: 90,000 | G49: 16.37 | H49: BSE
A50: 2018-12-24 | B50: 542232 | C50: SRD | D50: KRISHNA GOPAL KABRA | E50: BUY | F50: 48,000 | G50: 46.27 | H50: BSE
A51: 2018-12-24 | B51: 539402 | C51: VAL | D51: SAJANKUMAR RAMESHWARLAL BAJAJ | E51: SELL | F51: 40,000 | G51: 19.75 | H51: BSE
A52: 2018-12-24 | B52: 539402 | C52: VAL | D52: ARYAMAN BROKING LIMITED | E52: SELL | F52: 24,000 | G52: 20 | H52: BSE
A53: 2018-12-24 | B53: 539402 | C53: VAL | D53: ARYAMAN BROKING LIMITED | E53: BUY | F53: 40,000 | G53: 19.75 | H53: BSE
A54: 2018-12-24 | B54: 513534 | C54: VARDHINDQ | D54: MANOJ KUMAR HUF | E54: BUY | F54: 40,000 | G54: 5.11 | H54: BSE
A55: 2018-12-24 | B55: BEML | C55: BEML Limited | D55: ALPHAGREP SECURITIES PRIVATE LIMITED | E55: BUY | F55: 574,331 | G55: 887.92 | H55: NSE
A56: 2018-12-24 | B56: BEML | C56: BEML Limited | D56: CROSSLAND TRADING CO | E56: BUY | F56: 269,391 | G56: 890.15 | H56: NSE
A57: 2018-12-24 | B57: BEML | C57: BEML Limited | D57: GRAVITON RESEARCH CAPITAL LLP | E57: BUY | F57: 230,978 | G57: 887.66 | H57: NSE
A58: 2018-12-24 | B58: BEML | C58: BEML Limited | D58: TOWER RESEARCH CAPITAL MARKETS INDIA PRIVATE LIMITED | E58: BUY | F58: 296,272 | G58: 889.76 | H58: NSE
A59: 2018-12-24 | B59: DEN | C59: Den Networks Ltd | D59: RAJASTHAN GLOBAL SECURITIES PVT LTD | E59: BUY | F59: 1,480,934 | G59: 69.06 | H59: NSE
A60: 2018-12-24 | B60: DEN | C60: Den Networks Ltd | D60: TRILOK CHAND GOYAL | E60: BUY | F60: 1,000,000 | G60: 69.13 | H60: NSE
A61: 2018-12-24 | B61: GAYAPROJ | C61: Gayatri Projects Ltd | D61: KAVI GLOBAL OPPORTUNITY MASTER FUND LP | E61: BUY | F61: 3,050,000 | G61: 187.45 | H61: NSE
A62: 2018-12-24 | B62: JETAIRWAYS | C62: Jet Airways (India) Ltd. | D62: DIVYA PORTFOLIO PRIVATE LIMITED | E62: BUY | F62: 606,042 | G62: 252.8 | H62: NSE
A63: 2018-12-24 | B63: MOHOTAIND | C63: Mohota Industries Ltd. | D63: AGARWAL ARCHANA | E63: BUY | F63: 76,426 | G63: 79.62 | H63: NSE
A64: 2018-12-24 | B64: NATHBIOGEN | C64: Nath Bio-Genes (I) Ltd | D64: KAVI GLOBAL OPPORTUNITY MASTER FUND LP | E64: BUY | F64: 500,000 | G64: 406.7 | H64: NSE
A65: 2018-12-24 | B65: NEXTMEDIA | C65: Next Mediaworks Limited | D65: RATNABALI CAPITAL MARKETS PRIVATE LIMITED | E65: BUY | F65: 485880 | G65: 24.97 | H65: NSE
A66: 2018-12-24 | B66: RCOM | C66: Reliance Comm. Ltd. | D66: TOWER RESEARCH CAPITAL MARKETS INDIA PRIVATE LIMITED | E66: BUY | F66: 14987141 | G66: 14.1 | H66: NSE
A67: 2018-12-24 | B67: TRF | C67: TRF Limited | D67: NIMISH SHAH | E67: BUY | F67: 124000 | G67: 115.85 | H67: NSE
A68: 2018-12-24 | B68: BEML | C68: BEML Limited | D68: ALPHAGREP SECURITIES PRIVATE LIMITED | E68: SELL | F68: 574331 | G68: 888.33 | H68: NSE
A69: 2018-12-24 | B69: BEML | C69: BEML Limited | D69: CROSSLAND TRADING CO | E69: SELL | F69: 269391 | G69: 890.28 | H69: NSE
A70: 2018-12-24 | B70: BEML | C70: BEML Limited | D70: GRAVITON RESEARCH CAPITAL LLP | E70: SELL | F70: 230978 | G70: 888.51 | H70: NSE
A71: 2018-12-24 | B71: BEML | C71: BEML Limited | D71: TOWER RESEARCH CAPITAL MARKETS INDIA PRIVATE LIMITED | E71: SELL | F71: 296272 | G71: 890.43 | H71: NSE
A72: 2018-12-24 | B72: GAYAPROJ | C72: Gayatri Projects Ltd | D72: GOLDMAN SACHS SINGAPORE PTE | E72: SELL | F72: 3050000 | G72: 187.45 | H72: NSE
A73: 2018-12-24 | B73: JETAIRWAYS | C73: Jet Airways (India) Ltd. | D73: DIVYA PORTFOLIO PRIVATE LIMITED | E73: SELL | F73: 606042 | G73: 253.14 | H73: NSE
A74: 2018-12-24 | B74: MIC | C74: MIC Electronics Limited | D74: USHA RANI MAGANTI | E74: SELL | F74: 2133724 | G74: 1.69 | H74: NSE
A75: 2018-12-24 | B75: MOHOTAIND | C75: Mohota Industries Ltd. | D75: AGARWAL ARCHANA | E75: SELL | F75: 76426 | G75: 81.81 | H75: NSE
A76: 2018-12-24 | B76: NATHBIOGEN | C76: Nath Bio-Genes (I) Ltd | D76: GOLDMAN SACHS SINGAPORE PTE | E76: SELL | F76: 500000 | G76: 406.7 | H76: NSE
A77: 2018-12-24 | B77: PUNJLLOYD | C77: Punj Lloyd Limited | D77: IFCI LTD. | E77: SELL | F77: 1962500 | G77: 3.92 | H77: NSE
A78: 2018-12-24 | B78: RCOM | C78: Reliance Comm. Ltd. | D78: TOWER RESEARCH CAPITAL MARKETS INDIA PRIVATE LIMITED | E78: SELL | F78: 14987141 | G78: 14.11 | H78: NSE
A79: 2018-12-24 | B79: TRF | C79: TRF Limited | D79: JAMISH INVESTMENT PVT LTD. | E79: SELL | F79: 124000 | G79: 115.85 | H79: NSE

Sheet Call Tracker (Equity & F&O)
M5: Back To Main Page
A6: Retail Research Technical Calls & Fundamental Performance Report for the month of December -2018
M7: =Main!B10 -> 2018-12-26
B8: Positional Call
A9: Sr.no | B9: Date | D9: Company | E9: Rec | F9: Rec Price | G9: Stop Loss*** | H9: Call Closed At | I9: Target | J9: Remark | K9: Profit / Loss per Share | L9: Gain / Loss % | M9: Status | N9: Closed Date | O9: NSE Closed Price
A10: 1 | B10: 2018-11-14 | D10: ASHOKLEY | E10: Buy | F10: 108 | G10: 100.7 | H10: 111.25 | I10: 122-125 | J10: Part Profit of Rs.3.25/- | K10: =H10-F10 -> 3.25 | L10: =K10/F10 -> 3.01% | M10: Successful | N10: 2018-11-30 | R10: R
A11: 2 | B11: 2018-11-21 | D11: ADANIPORTS | E11: Sell | F11: 359.5 | G11: 377.7 | H11: 349 | I11: 322-326 | J11: Profit of Rs.10.5/- | K11: =F11-H11 -> 10.5 | L11: 2.92% | M11: Successful | N11: 2018-12-11 | R11: R
A12: 3 | B12: 2018-11-29 | D12: JSWSTEEL | E12: Buy{} | F12: 312 | G12: 297.7 | H12: =(322+296)/2 -> 309 | I12: 344-350 | J12: Loss of Rs.3/- | K12: =H12-F12 -> -3 | L12: =K12/F12 -> -0.96% | M12: Unsuccessful | N12: 2018-12-07 | R12: R
A13: 4 | B13: 2018-11-30 | D13: RAYMOND | E13: Sell | F13: 820 | G13: 861.6 | H13: 789 | I13: 745-735 | J13: Profit of Rs.31/- | K13: =F13-H13 -> 31 | L13: 3.78% | M13: Successful | N13: 2018-12-07 | R13: R
A14: 5 | B14: 2018-11-30 | D14: INFY | E14: Buy | F14: 665 | G14: 628 | H14: 685 | I14: 725 | J14: Profit of Rs.20/- | K14: 20 | L14: =K14/F14 -> 3.01% | M14: Successful | N14: 2018-12-07 | R14: H
A15: 6 | B15: 2018-12-13 | D15: JSWSTEEL | E15: Buy | F15: 301.5 | G15: 289 | H15: 310.75 | I15: 325-330 | J15: Profit of Rs.9.25/- | K15: =H15-F15 -> 9.25 | L15: =K15/F15 -> 3.07% | M15: Successful | N15: 2018-12-19 | R15: H
A16: 7 | B16: 2018-12-17 | D16: COALINDIA | E16: Buy | F16: 245.5 | G16: 233 | H16: 253.4 | I16: 260-265 | J16: Profit of Rs.7.9/- | K16: =H16-F16 -> 7.9 | L16: =K16/F16 -> 3.22% | M16: Successful | N16: 2018-12-20 | R16: H
A17: 8 | B17: 2018-12-21 | D17: TATAGLOBAL | E17: Buy | F17: 217 | G17: 209 | H17: 223.5 | I17: 235-240 | J17: Open | K17: 6.5 | L17: 3.00% | M17: Successful | N17: 2018-12-24 | R17: H
A18: 9 | B18: 2018-12-24 | D18: JSWSTEEL | E18: Buy | F18: 299-300 | G18: 289 | I18: 320-325 | J18: Open | R18: H
A19: 10 | B19: 2018-12-24 | D19: TATAPOWER | E19: Buy | F19: 77.2-77.4 | G19: 73.7 | I19: 83-84 | J19: Open | R19: R
A34: CLBS = Closing Basis *** | F34: Reinitiated $
A35: Dividend adjusted <> | F35: Revised stoploss #
A36: Part book {}
A37: Master Trade High Risk
A38: Sr.no | B38: Date | D38: Company | E38: Rec | F38: Rec Price | G38: Stop Loss | H38: Call Closed At | I38: Target | J38: Remark | K38: Profit / Loss per share | L38: Gain / Loss per Lot | M38: Lot | N38: Status | O38: Closed Date
A39: 1 | B39: 2018-11-30 | D39: KOTAKBANK DEC FUT | E39: Buy | F39: 1229.5 | G39: 1195 | H39: 1202.5 | I39: 1270-1290 | J39: Loss of Rs. 15.5 /- | K39: =H39-F39 -> -27 | L39: =-15.5*800 -> -12400 | M39: 800 | N39: Unsuccessful | O39: 2018-12-07 | R39: H
D40: KOTAKBANK DEC 1260 CE | E40: Sell | F40: 23.5 | H40: 12 | K40: =F40-H40 -> 11.5 | R40: H
A41: 2 | B41: 2018-12-03 | D41: ADANIPORTS DEC FUT | E41: Sell | F41: 373 | G41: 382.5 | H41: 370 | I41: 360 | J41: Profit of Rs. 3 /- | K41: 3 | L41: 7500 | M41: 2500 | N41: Successful | O41: 2018-12-07 | R41: H
D42: ADANIPORTS DEC 360 PE | E42: Sell | F42: 9 | H42: 9 | K42: 0 | R42: H
A43: 3 | B43: 2018-12-07 | D43: NIFTY DEC FUT | E43: Sell | F43: 10657.5 | G43: 10786 | H43: 10575 | I43: 10400 | J43: Profit of Rs. 62.50 /- | K43: =F43-H43 -> 82.5 | L43: =M43*62.5 -> 4687.5 | M43: 75 | N43: Successful | O43: 2018-12-10 | R43: H
D44: NIFTY DEC 10500 PE | E44: Sell | F44: 125 | H44: 145 | K44: =F44-H44 -> -20 | R44: H
A45: 4 | B45: 2018-12-17 | D45: ADANIPORTS DEC FUT | E45: Sell | F45: 375.5 | G45: 382.5 | H45: 371.5 | I45: 360 | J45: Profit of Rs. 3 /- | K45: =F45-H45 -> 4 | L45: 7500 | M45: 2500 | N45: Successful | O45: 2018-12-17 | R45: H
D46: ADANIPORTS DEC 370 PE | E46: Sell | F46: 6.5 | H46: 7.5 | K46: =F46-H46 -> -1 | R46: H
A47: 5 | B47: 2018-12-18 | D47: COLPAL DEC FUT | E47: Sell | F47: 1312 | G47: 1335 | H47: 1335 | I47: 1260 | J47: Loss of Rs. 14.5 /- | K47: =F47-G47 -> -23 | L47: =-(700*14.5) -> -10150 | M47: 700 | N47: Unsuccessful | O47: 2018-12-07 | R47: H
D48: COLPAL DEC 1280 PE | E48: Sell | F48: 12 | H48: 3.5 | K48: =F48-H48 -> 8.5 | R48: H
A49: 6 | B49: 2018-12-19 | D49: ADANIPORTS DEC FUT | E49: Sell | F49: 375.5 | G49: 382.5 | H49: 371.5 | I49: 365 | J49: Profit of Rs. 3.5 /- | K49: =F49-H49 -> 4 | L49: =M49*3.5 -> 8750 | M49: 2500 | N49: Successful | O49: 2018-12-17 | R49: H
D50: ADANIPORTS DEC 370 PE | E50: Sell | F50: 5.25 | H50: 5.75 | K50: =F50-H50 -> -0.5 | R50: H
A51: 7 | B51: 2018-12-19 | D51: ADANIPORTS DEC FUT | E51: Sell | F51: 376.5 | G51: 382.5 | H51: 369.5 | I51: 365 | J51: Profit of Rs. 4.75 /- | K51: =F51-H51 -> 7 | L51: =M51*4.75 -> 11875 | M51: 2500 | N51: Successful | O51: 2018-12-21 | R51: H
D52: ADANIPORTS DEC 370 PE | E52: Sell | F52: 4.5 | H52: 6.75 | K52: =F52-H52 -> -2.25 | R52: H
A57: Master Trade Medium Risk
A58: Sr.no | B58: Date | D58: Company | E58: Rec | F58: Rec Price | G58: Stop Loss | H58: Call Closed At | I58: Target | J58: Remark | K58: Profit/ Loss per lot | L58: Gain / Loss per Lot | M58: Lot | N58: Status | O58: Closed Date
A59: 1 | B59: 2018-12-03 | D59: Nifty DEC 10900 PE | E59: Buy | F59: 180 | H59: 222.5 | J59: Profit of Rs 18.5/- | K59: =H59-F59 -> 42.5 | L59: =75*20 -> 1500 | M59: 75 | N59: Successful | O59: 2018-12-05 | R59: H
D60: Nifty DEC 10700 PE | E60: Sell | F60: 115 | H60: 139 | K60: =F60-H60 -> -24 | R60: H
A61: 2 | B61: 2018-12-04 | D61: ITC DEC 285 CE | E61: Buy | F61: 5.5-6 | J61: Open | R61: H
D62: ITC DEC 290 CE | E62: Sell | F62: 4-4.5 | R62: H
B75: Smart Delivery Trade
A76: Sr.no | B76: Date | D76: Company | E76: Rec | F76: Rec Price | G76: Stop Loss*** | H76: Call Closed At | I76: Target | J76: Remark | K76: Profit / Loss per Share | L76: Gain / Loss % | M76: Status | N76: Closed Date | O76: NSE Closed Price
A77: 1 | B77: 2018-11-27 | D77: MGL | E77: Buy | F77: 818.5 | G77: 793.7 | H77: 847.5 | I77: 860-870 | J77: Profit of Rs.29/- | K77: =H77-F77 -> 29 | L77: =K77/F77 -> 3.54% | M77: Successful | N77: 2018-12-03 | R77: R
A78: 2 | B78: 2018-11-28 | D78: ESCORTS | E78: Buy | F78: 691 | G78: 669 | H78: 716.5 | I78: 725-735 | J78: Profit of Rs.25.5/- | K78: =H78-F78 -> 25.5 | L78: =K78/F78 -> 3.69% | M78: Successful | N78: 2018-12-03 | R78: R
A79: 3 | B79: 2018-11-28 | D79: RELIANCE | E79: Sell | F79: 1152.5 | G79: 1186 | H79: 1152.5 | I79: 1100-1090 | J79: Neutral | K79: =F79-H79 -> 0 | L79: 0.00% | M79: Neutral | N79: 2018-12-05 | R79: H
A80: 4 | B80: 2018-11-30 | D80: BAJAJ-AUTO | E80: Buy | F80: 2760 | G80: 2680 | H80: 2837 | I80: 2870-2900 | J80: Profit of Rs.77/- | K80: =H80-F80 -> 77 | L80: 2.79% | M80: Successful | N80: 2018-12-12 | R80: H
A81: 5 | B81: 2018-12-03 | D81: PVR | E81: Sell | F81: 1454 | G81: 1505 | H81: 1505 | I81: 1370-1350 | J81: Loss of Rs.51/- | K81: =F81-H81 -> -51 | L81: =K81/F81 -> -3.51% | M81: Unsuccessful | N81: 2018-12-03 | R81: H
A82: 6 | B82: 2018-12-07 | D82: TATASTEEL | E82: Buy | F82: 516 | G82: 495 | H82: 529.5 | I82: 550 | J82: Profit of Rs.13.5/- | K82: =H82-F82 -> 13.5 | L82: 2.62% | M82: Successful | N82: 2018-12-19 | R82: H
A83: 7 | B83: 2018-12-07 | D83: RAMCOCEM | E83: Buy | F83: 597.5 | G83: 580 | H83: 615 | I83: 635-640 | J83: Profit of Rs.17.5/- | K83: =H83-F83 -> 17.5 | L83: =K83/F83 -> 2.93% | M83: Successful | N83: 2018-12-12 | R83: R
A84: 8 | B84: 2018-12-10 | D84: CONCOR | E84: Buy | F84: 648 | G84: 627.7 | H84: 679 | I84: 680-690 | J84: Profit of Rs.31/- | K84: =H84-F84 -> 31 | L84: =K84/F84 -> 4.78% | M84: Successful | N84: 2018-12-10 | R84: R
A85: 9 | B85: 2018-12-12 | D85: LUPIN | E85: Buy | F85: 817.5 | G85: 788.7 | H85: 811 | I85: 865-875 | J85: Neutral | K85: -6.5 | L85: -0.80% | M85: Neutral | N85: 2018-12-13 | R85: R
A86: 10 | B86: 2018-12-17 | D86: TVSMOTOR | E86: Buy | F86: 574 | G86: 548 | H86: 577.5 | I86: 600-610 | J86: Neutral | K86: =H86-F86 -> 3.5 | L86: =K86/F86 -> 0.61% | M86: Neutral | N86: 2018-12-21 | R86: H
A87: 11 | B87: 2018-12-18 | D87: BAJFINANCE | E87: Sell | F87: 2455 | G87: 2525.25 | H87: 2525.25 | I87: 2320-2300 | J87: Loss of Rs.70.25/- | K87: =F87-H87 -> -70.25 | L87: =K87/F87 -> -2.86% | M87: Unsuccessful | N87: 2018-12-18 | R87: R
A88: 12 | B88: 2018-12-18 | D88: BHEL | E88: Sell | F88: 69.85 | G88: 72 | H88: 71.75 | I88: 66 | J88: Loss of Rs.1.9/- | K88: =F88-H88 -> -1.9 | L88: =K88/F88 -> -2.72% | M88: Unsuccessful | N88: 2018-12-24 | R88: H
A89: 13 | B89: 2018-12-19 | D89: BIOCON | E89: Buy | F89: 635 | G89: 615 | H89: 612.5 | I89: 670-680 | J89: Loss of Rs.22.5/- | K89: =H89-F89 -> -22.5 | L89: -3.54% | M89: Unsuccessful | N89: 2018-12-24 | R89: H
A90: 14 | B90: 2018-12-20 | D90: AUROPHARMA | E90: Buy | F90: 730-735 | G90: 709.3 | I90: 775-785 | J90: Open | O90: =VLOOKUP(D90,Sheet2!A74:M1569,6,0) -> 715.4 | R90: R
A91: 15 | B91: 2018-12-24 | D91: RELIANCE | E91: Buy | F91: 1090-1096 | G91: 1057 | I91: 1150-1180 | J91: Open | O91: =VLOOKUP(D91,Sheet2!A75:M1570,6,0) -> 1089.15 | R91: H
A96: CLBS = Closing Basis *** | F96: Reinitiated $
A97: Dividend adjusted <> | F97: Revised stoploss #
B100: Momentum Call
A101: Sr.no | B101: Date | D101: Company | E101: Rec | F101: Rec Price | G101: Stop Loss | H101: Call Closed At | I101: Target | J101: Remark | K101: Profit / Loss per Share/Lot | L101: Gain / Loss % | M101: Gain / Loss per Lot | N101: Lot | O101: Status | P101: Closed Date
A102: 1 | B102: 2018-11-29 | D102: AMARAJABAT DEC FUT | E102: Buy | F102: 723.5 | G102: 705 | H102: 705 | I102: 750 | J102: Loss of Rs.18.5/- | K102: =H102-F102 -> -18.5 | M102: =N102*K102 -> -11100 | N102: 600 | O102: Unsuccessful | P102: 2018-12-03 | R102: N
A103: 2 | B103: 2018-11-30 | D103: TATASTEEL | E103: Buy | F103: 534 | G103: 517 | H103: 549.5 | I103: 555-560 | J103: Profit of Rs.15.5/- | K103: =H103-F103 -> 15.5 | L103: =K103/F103 -> 2.90% | O103: Successful | P103: 2018-12-03 | R103: H
A104: 3 | B104: 2018-11-30 | D104: PIDILITIND DEC FUT | E104: Sell | F104: 1171 | G104: 1195 | H104: 1156.5 | I104: 1140-1130 | J104: Profit of Rs.14.5/- | K104: =F104-H104 -> 14.5 | M104: =N104*K104 -> 7250 | N104: 500 | O104: Successful | P104: 2018-12-03 | R104: H
A105: 4 | B105: 2018-12-03 | D105: UPL | E105: Buy | F105: 749 | G105: 737 | H105: 739.5 | I105: 774 | J105: Loss of Rs.9.5/- | K105: =H105-F105 -> -9.5 | M105: -11400 | N105: 1200 | O105: Unsuccessful | P105: 2018-12-03 | R105: N
A106: 5 | B106: 2018-12-03 | D106: ICICIBANK DEC FUT | E106: Sell | F106: 357.25 | G106: 362 | H106: 356 | I106: 348-346 | J106: Profit of Rs.1.25/- | K106: =F106-H106 -> 1.25 | M106: 3437.5 | N106: 2750 | O106: Neutral | P106: 2018-12-05 | R106: H
A107: 6 | B107: 2018-12-04 | D107: DRREDDY DEC FUT | E107: Sell | F107: 2721 | G107: 2760 | H107: 2692 | I107: 2650 | J107: Profit of Rs.29/- | K107: =F107-H107 -> 29 | M107: =N107*K107 -> 7250 | N107: 250 | O107: Successful | P107: 2018-12-05 | R107: R
A108: 7 | B108: 2018-12-04 | D108: TCS DEC FUT | E108: Buy | F108: 2005 | G108: 1945 | H108: 2030 | I108: 2080-2100 | J108: Profit of Rs.25/- | K108: =H108-F108 -> 25 | M108: =N108*K108 -> 6250 | N108: 250 | O108: Successful | P108: 2018-12-13 | R108: H
A109: 8 | B109: 2018-12-04 | D109: TATACHEM DEC FUT | E109: Buy | F109: 688 | G109: 673 | H109: 673 | I109: 710 | J109: Loss of Rs.15/- | K109: =H109-F109 -> -15 | M109: =N109*K109 -> -11250 | N109: 750 | O109: Unsuccessful | P109: 2018-12-05 | R109: N
A110: 9 | B110: 2018-12-04 | D110: AUROPHARMA DEC FUT | E110: Buy | F110: 824.5 | G110: 813 | H110: 813 | I110: 845-850 | J110: Loss of Rs.11.5/- | K110: =H110-F110 -> -11.5 | M110: =N110*K110 -> -11500 | N110: 1000 | O110: Unsuccessful | P110: 2018-12-05 | R110: H
A111: 10 | B111: 2018-12-05 | D111: DIVISLAB DEC FUT | E111: Sell | F111: 1507.5 | G111: 1532 | H111: 1486.5 | I111: 1460 | J111: Profit of Rs.21/- | K111: =F111-H111 -> 21 | M111: =N111*K111 -> 8400 | N111: 400 | O111: Successful | P111: 2018-12-05 | R111: R
A112: 11 | B112: 2018-12-05 | D112: PIDILITIND DEC FUT | E112: Sell | F112: 1171.5 | G112: 1192 | H112: 1145 | I112: 1130 | J112: Profit of Rs.26.5/- | K112: 26.5 | M112: =N112*K112 -> 10600 | N112: 400 | O112: Successful | P112: 2018-12-05 | R112: R
A113: 12 | B113: 2018-12-07 | D113: DRREDDY DEC FUT | E113: Sell | F113: 2707.5 | G113: 2747 | H113: 2674.5 | I113: 2630 | J113: Profit of Rs.33/- | K113: 33 | M113: 8250 | N113: 250 | O113: Successful | P113: 2018-12-07 | R113: R
A114: 13 | B114: 2018-12-07 | D114: BATAINDIA DEC FUT | E114: Sell | F114: 1062 | G114: 1083 | H114: 1037.5 | I114: 1020 | J114: Profit of Rs.24.5/- | K114: 24.5 | M114: =N114*K114 -> 13475 | N114: 550 | O114: Successful | P114: 2018-12-10 | R114: R
A115: 14 | B115: 2018-12-13 | D115: NIFTY DEC FUT | E115: Sell | F115: 10835 | G115: 10930 | H115: 10785 | I115: 10750-10700 | J115: Profit of Rs.50/- | K115: 50 | M115: 3750 | N115: 75 | O115: Successful | P115: 2018-12-13 | R115: H
A116: 15 | B116: 2018-12-13 | D116: BANKNIFTY DEC FUT | E116: Sell | F116: 26980 | G116: 27250 | H116: 26880 | I116: 26400 | J116: Profit of Rs.100/- | K116: 100 | M116: =N116*K116 -> 2000 | N116: 20 | O116: Successful | P116: 2018-12-13 | R116: H
A117: 16 | B117: 2018-12-14 | D117: NIFTY DEC FUT | E117: Sell | F117: 10800 | G117: 10905 | H117: 10905 | I117: 10650 | J117: Loss of Rs.105/- | K117: =F117-H117 -> -105 | M117: -7875 | N117: 75 | O117: Unsuccessful | P117: 2018-12-17 | R117: H
A118: 17 | B118: 2018-12-14 | D118: BATAINDIA DEC FUT | E118: Sell | F118: 1079 | G118: 1102 | H118: 1102 | I118: 1050-1040 | J118: Loss of Rs.23/- | K118: =F118-H118 -> -23 | M118: =N118*K118 -> -12650 | N118: 550 | O118: Unsuccessful | P118: 2018-12-18 | R118: R
A119: 18 | B119: 2018-12-14 | D119: PEL DEC FUT | E119: Sell | F119: 2155 | G119: 2191.3 | H119: 2132.5 | I119: 2100 | J119: Profit of Rs.22.5/- | K119: =F119-H119 -> 22.5 | M119: =N119*K119 -> 6795 | N119: 302 | O119: Successful | P119: 2018-12-14 | R119: R
A120: 19 | B120: 2018-12-17 | D120: NIITTECH DEC FUT | E120: Buy | F120: 1129 | G120: 1113 | H120: 1140 | I120: 1160 | J120: Profit of Rs.11/- | K120: =H120-F120 -> 11 | M120: 8250 | N120: 750 | O120: Successful | P120: 2018-12-17 | R120: R
A121: 20 | B121: 2018-12-17 | D121: GODREJIND DEC FUT | E121: Buy | F121: 541 | G121: 533 | H121: 549 | I121: 555 | J121: Profit of Rs.8/- | K121: =H121-F121 -> 8 | M121: =N121*K121 -> 12000 | N121: 1500 | O121: Successful | P121: 2018-12-17 | R121: N
A122: 21 | B122: 2018-12-18 | D122: BALKRISIND DEC FUT | E122: Buy | F122: 939 | G122: 922 | H122: 951.5 | I122: 968 | J122: Profit of Rs.12.5/- | K122: =H122-F122 -> 12.5 | M122: =N122*K122 -> 10000 | N122: 800 | O122: Successful | P122: 2018-12-20 | R122: R
A123: 22 | B123: 2018-12-18 | D123: HEROMOTOCO DEC FUT | E123: Sell | F123: 3270 | G123: 3325 | H123: 3325 | I123: 3180-3160 | J123: Loss of Rs.55/- | K123: =F123-H123 -> -55 | M123: =N123*K123 -> -11000 | N123: 200 | O123: Unsuccessful | P123: 2018-12-19 | R123: R
A124: 23 | B124: 2018-12-18 | D124: AJANTPHARM DEC FUT | E124: Buy | F124: 1096.5 | G124: 1074 | H124: 1118.5 | I124: 1140 | J124: Profit of Rs.22/- | K124: =H124-F124 -> 22 | M124: =N124*K124 -> 11000 | N124: 500 | O124: Successful | P124: 2018-12-18 | R124: N
A125: 24 | B125: 2018-12-18 | D125: VOLTAS DEC FUT | E125: Sell | F125: 562 | G125: 574 | H125: 571 | I125: 542 | J125: Loss of Rs.9/- | K125: =F125-H125 -> -9 | M125: -9000 | N125: 1000 | O125: Unsuccessful | P125: 2018-12-19 | R125: R
A126: 25 | B126: 2018-12-19 | D126: AMARAJABAT DEC FUT | E126: Buy | F126: 733 | G126: 716 | H126: 743 | I126: 760 | J126: Profit of Rs.10/- | K126: =H126-F126 -> 10 | M126: =N126*K126 -> 7000 | N126: 700 | O126: Successful | P126: 2018-12-19 | R126: N
A127: 26 | B127: 2018-12-19 | D127: MCDOWELL-N DEC FUT | E127: Buy | F127: 651 | G127: 641 | H127: 642.5 | I127: 672 | J127: Loss of Rs.8.5/- | K127: =H127-F127 -> -8.5 | M127: =N127*K127 -> -10625 | N127: 1250 | O127: Unsuccessful | P127: 2018-12-19 | R127: N
A128: 27 | B128: 2018-12-19 | D128: SBIN DEC FUT | E128: Buy | F128: 300.5 | G128: 296.5 | H128: 296.5 | I128: 310 | J128: Loss of Rs.4/- | K128: =H128-F128 -> -4 | M128: =N128*K128 -> -12000 | N128: 3000 | O128: Unsuccessful | P128: 2018-12-20 | R128: H
A129: 28 | B129: 2018-12-20 | D129: NIITTECH DEC FUT | E129: Buy | F129: 1141 | G129: 1125 | H129: 1125 | I129: 1175 | J129: Loss of Rs.16/- | K129: =H129-F129 -> -16 | M129: =N129*K129 -> -12000 | N129: 750 | O129: Unsuccessful | P129: 2018-12-21 | R129: R
A130: 29 | B130: 2018-12-20 | D130: GODREJIND DEC FUT | E130: Buy | F130: 540 | G130: 532 | H130: 547 | I130: 555 | J130: Profit of Rs.7/- | K130: =H130-F130 -> 7 | M130: =N130*K130 -> 10500 | N130: 1500 | O130: Successful | P130: 2018-12-21 | R130: N
A131: 30 | B131: 2018-12-20 | D131: INFRATEL DEC FUT | E131: Sell | F131: 263.5 | G131: 271 | H131: 259.5 | I131: 250 | J131: Profit of Rs.4/- | K131: =F131-H131 -> 4 | M131: =N131*K131 -> 6800 | N131: 1700 | O131: Successful | P131: 2018-12-21 | R131: N
A132: 31 | B132: 2018-12-20 | D132: COLPAL DEC FUT | E132: Sell | F132: 1325 | G132: 1341 | H132: 1313 | I132: 1300 | J132: Profit of Rs.12/- | K132: =F132-H132 -> 12 | M132: 8400 | N132: 700 | O132: Successful | P132: 2018-12-24 | R132: R
A133: 32 | B133: 2018-12-21 | D133: BATAINDIA DEC FUT | E133: Sell | F133: 1103 | G133: 1125 | H133: 1125 | I133: 1060-1050 | J133: Loss of Rs.22/- | K133: =F133-H133 -> -22 | M133: =N133*K133 -> -12100 | N133: 550 | O133: Unsuccessful | P133: 2018-12-21 | R133: R
A134: 33 | B134: 2018-12-21 | D134: TATASTEEL DEC FUT | E134: Sell | F134: 523 | G134: 534 | H134: 515.5 | I134: 500 | J134: Profit of Rs.7.5/- | K134: =F134-H134 -> 7.5 | M134: 7957.5 | N134: 1061 | O134: Successful | P134: 2018-12-24 | R134: R
A135: 34 | B135: 2018-12-21 | D135: HEROMOTOCO JAN FUT | E135: Sell | F135: 3340 | G135: 3410 | H135: 3245 | I135: 3250 | J135: Profit of Rs.95/- | K135: =F135-H135 -> 95 | M135: =N135*K135 -> 19000 | N135: 200 | O135: Successful | P135: 2018-12-24 | R135: H
A136: 35 | B136: 2018-12-24 | D136: EXIDEIND DEC FUT | E136: Buy | F136: 262-263 | G136: 256.5 | I136: 275 | J136: Open | R136: N
A137: 36 | B137: 2018-12-24 | D137: GODREJIND DEC FUT | E137: Buy | F137: 520-522 | G137: 514 | I137: 535 | J137: Open | R137: R
A141: CLBS = Closing Basis ***
A142: Dividend adjusted <> | F142: Reinitiated $
F143: Revised stoploss #
B144: Quick Pick Intraday
A145: Sr.no | B145: Date | D145: Company | E145: Rec | F145: Rec Price | G145: Stop Loss*** | H145: Call Closed At | I145: Target | J145: Remark | K145: Profit / Loss per Share | L145: Status | M145: Closed Date
A159: Techno -Funda (positional)
A160: Sr.no | B160: Date | D160: Company | E160: Rec | F160: Rec Price | G160: Stop Loss*** | H160: Call Closed At | I160: Target | J160: Remark | K160: Profit / Loss per Share | L160: Gain / Loss % | M160: Status | N160: Closed Date | O160: NSE Closed Price
A163: CLBS = Closing Basis *** | F163: Reinitiated $
A164: Dividend adjusted <> | F164: Revised stoploss #
B169: Investment Idea
A170: Sr.no | B170: Date | D170: Company | E170: Rec | F170: Rec Price | G170: Point of Review | H170: Close Rate | I170: Target | J170: Remark | K170: Profit / Loss per Share | L170: Gain / Loss % | M170: Status | N170: Closed Date
A171: 1 | B171: 2013-11-01 | D171: L&T Finance Holding | E171: Accu | F171: 82.00 | G171: - | H171: 100 | I171: 100.00 | J171: Target Achieved | K171: =H171-F171 -> 18.00 | L171: =K171/F171 -> 21.95% | M171: Successful | N171: 2016-10-14
A172: 2 | B172: 2014-06-04 | D172: Finolex Inds | E172: Buy | F172: 257.00 | G172: - | H172: 300 | I172: 300.00 | J172: Target Achieved | K172: =H172-F172 -> 43.00 | L172: 16.73% | M172: Successful | N172: 2014-07-02
A173: =1+A172 -> 3 | B173: 2014-07-08 | D173: JK Cement | E173: Buy | F173: 393.00 | G173: - | H173: 468 | I173: 468.00 | J173: Target Achieved | K173: =H173-F173 -> 75.00 | L173: 19.08% | M173: Successful | N173: 2014-08-12
A174: 4 | B174: 2014-08-06 | D174: Finolex Cables | E174: Buy | F174: 205.00 | G174: - | H174: 275 | I174: 250.00 | J174: Target Achieved | K174: 70.00 | L174: 34.15% | M174: Successful | N174: 2014-11-19
A175: 5 | B175: 2014-09-04 | D175: Exide Inds | E175: Buy | F175: 162.00 | G175: - | H175: 190 | I175: 190.00 | J175: Target Achieved | K175: 28.00 | L175: 17.28% | M175: Successful | N175: 2015-01-02
A176: 6 | B176: 2014-09-04 | D176: Deepak Nitrite | E176: Buy | F176: 75.00 | G176: - | H176: 91.5 | I176: 95-100 | J176: Profit of Rs.16.50/- | K176: 16.50 | L176: 22.00% | M176: Successful | N176: 2014-11-11
A177: 7 | B177: 2014-10-01 | D177: Mercks | E177: Buy | F177: 850.00 | G177: - | H177: 982.5 | I177: 1050.00 | J177: Profit of Rs.132.50/- | K177: 132.50 | L177: 15.59% | M177: Successful | N177: 2015-02-04
A178: 8 | B178: 2014-10-01 | D178: Grindwell Norton | E178: Buy | F178: 475.00 | G178: - | H178: 515 | I178: 600.00 | J178: Profit of Rs.40/- | K178: 40.00 | L178: 8.42% | M178: Successful | N178: 2014-10-27
A179: 9 | B179: 2014-10-01 | D179: Snowman Logistics | E179: Buy | F179: 86.00 | G179: - | H179: 99 | I179: 140.00 | J179: Profit of Rs.13.00/- | K179: 13.00 | L179: 15.12% | M179: Successful | N179: 2014-10-27
A180: 10 | B180: 2014-10-14 | D180: Birla Corp | E180: Buy | F180: 496.60 | G180: - | H180: 621 | I180: 580.00 | J180: Target Achieved | K180: 124.40 | L180: 25.05% | M180: Successful | N180: 2016-08-23
A181: 11 | B181: 2014-10-14 | D181: Ultratech Cem | E181: Buy | F181: 2481.90 | G181: - | H181: 2840 | I181: 2870.00 | J181: Profit of Rs.358.10/- | K181: 358.10 | L181: 14.43% | M181: Successful | N181: 2015-01-13
A182: =1+A179 -> 10 | B182: 2014-10-16 | D182: Sintex Inds | E182: Buy | F182: 84.50 | G182: - | H182: 93 | I182: 110.00 | J182: Profit of Rs.8.50/- | K182: 8.50 | L182: 10.06% | M182: Successful | N182: 2014-10-27
A183: =1+A182 -> 11 | B183: 2014-10-16 | D183: HSIL | E183: Buy | F183: 401.00 | G183: - | H183: 428 | I183: 450.00 | J183: Profit of Rs.27.00/- | K183: 27.00 | L183: 6.73% | M183: Successful | N183: 2015-01-16
A184: 12 | B184: 2014-10-16 | D184: Eveready Inds | E184: Buy | F184: 101.00 | G184: - | H184: 112 | I184: 120.00 | J184: Profit of Rs.11.00/- | K184: 11.00 | L184: 10.89% | M184: Successful | N184: 2014-10-27
A185: 13 | B185: 2014-11-11 | D185: Pennar Inds | E185: Buy | F185: 59.00 | G185: - | H185: 76 | I185: 76.00 | J185: Target Achieved | K185: 17.00 | L185: 28.81% | M185: Successful | N185: 2017-10-24
A186: 14 | B186: 2014-11-11 | D186: Snowman Logistics | E186: Buy | F186: 99.00 | G186: - | H186: 120 | I186: 120.00 | J186: Profit of Rs.21/- | K186: 21.00 | L186: 21.21% | M186: Successful | N186: 2014-11-17
A187: 15 | B187: 2014-11-13 | D187: Dharamsi Morarji Chem | E187: Buy | F187: 22.00 | G187: - | H187: 33.55 | I187: 32.00 | J187: Profit of Rs 11.55/- | K187: 11.55 | L187: 52.50% | M187: Successful | N187: 2015-07-03
A188: 16 | B188: 2014-12-03 | D188: Tatachem | E188: Buy | F188: 440.00 | G188: - | H188: 520 | I188: 520.00 | J188: Profit of Rs 80.00/- | K188: 80.00 | L188: 18.18% | M188: Successful | N188: 2015-07-23
A189: 17 | B189: 2014-12-03 | D189: Advanta | E189: Buy | F189: 360.00 | G189: - | H189: 427 | I189: 425.00 | J189: Profit of Rs.67.00/- | K189: 67.00 | L189: 18.61% | M189: Successful | N189: 2015-02-23
A190: 18 | B190: 2015-01-08 | D190: GDL | E190: Buy | F190: 360.00 | G190: - | H190: 455 | I190: 420.00 | J190: Profit of Rs.95.00/- | K190: 95.00 | L190: 26.39% | M190: Successful | N190: 2015-01-20
A191: 19 | B191: 2015-01-08 | D191: NRB Bearing | E191: Buy | F191: 130.00 | H191: 175.5 | I191: 165.00 | J191: Profit of Rs 45.50/- | K191: 45.50 | L191: 35.00% | M191: Successful | N191: 2017-12-19
A192: 20 | B192: 2015-02-05 | D192: GSFC | E192: Accu | F192: 98.00 | H192: 120 | I192: 120.00 | J192: Target Achieved | K192: 22.00 | L192: 22.45% | M192: Successful | N192: 2017-01-18
A193: 21 | B193: 2015-02-05 | D193: Sundrmfast | E193: Accu | F193: 196.00 | H193: 262 | I193: 255.00 | J193: Target Achieved | K193: 66.00 | L193: 33.67% | M193: Successful | N193: 2016-08-17
A194: 22 | B194: 2015-03-04 | D194: GPPL | E194: Accu | F194: 230-240 | I194: 280-285 | J194: Open
A195: 23 | B195: 2015-03-04 | D195: ORIENTCEM | E195: Accu | F195: 185.00 | H195: 224 | I195: 220-225 | J195: Target Achieved | K195: 39.00 | L195: =K195/F195 -> 21.08% | M195: Successful | N195: 2016-10-04
A196: 24 | B196: 2015-03-27 | D196: PFS | E196: Accu | F196: 49-50 | I196: 67.00 | J196: Open
A197: 25 | B197: 2015-03-30 | D197: Walchandnagar Ind Ltd | E197: Accu | F197: 183.50 | H197: 219 | I197: 218.00 | J197: Profit of Rs.35.50/- | K197: 35.50 | L197: =K197/F197 -> 19.35% | M197: Successful | N197: 2015-04-09
A198: 26 | B198: 2015-04-20 | D198: Kalpataru Power Transmission Ltd | E198: Accu | F198: =(227+237)/2 -> 232.00 | H198: 298 | I198: 298.00 | J198: Target Achieved | K198: 66.00 | L198: 28.45% | M198: Successful | N198: 2017-03-29
A199: 27 | B199: 2015-05-04 | D199: Mastek Ltd | E199: Buy | F199: 385.00 | H199: =212.5+331 -> 543.5 | I199: 510.00 | J199: Profit of Rs 158.50/- | K199: 158.50 | L199: 41.17% | M199: Successful | N199: 2015-08-19
A200: 28 | B200: 2015-05-04 | D200: Suprajit Eng | E200: Buy | F200: 115.50 | H200: 146 | I200: 142.00 | J200: Profit of Rs 30.50/- | K200: 30.50 | L200: 26.41% | M200: Successful | N200: 2015-07-17
A201: 29 | B201: 2015-05-27 | D201: TCI | E201: Buy | F201: 237.50 | H201: 279.5 | I201: 278.00 | J201: Target Achieved | K201: 42.00 | L201: 17.68% | M201: Successful | N201: 2015-08-06
A202: 30 | B202: 2015-06-19 | D202: HSIL | E202: Accu | F202: 340.00 | H202: 448 | I202: 448.00 | J202: Target Achieved | K202: 108.00 | L202: 31.76% | M202: Successful | N202: 2017-10-10
A203: 31 | B203: 2015-07-06 | D203: Capital First | E203: Accu | F203: 390.00 | H203: 460 | I203: 460.00 | J203: Target Achieved | K203: 70.00 | L203: 17.95% | M203: Successful | N203: 2016-04-18
A204: 32 | B204: 2015-07-10 | D204: Dolphin OffShore | E204: Accu | F204: 122.5 | H204: 61.00 | I204: 172.00 | J204: Loss of Rs.61.50/- | K204: -61.50 | L204: -50.20% | M204: Unsuccessful | N204: 2018-08-21
A205: 33 | B205: 2015-08-03 | D205: Allcargo logistics | E205: Accu | F205: 297.50 | H205: 350 | I205: 360.00 | J205: Profit of Rs 52.50/- | K205: 52.50 | L205: =K205/F205 -> 17.65% | M205: Successful | N205: 2015-08-16
A206: 34 | B206: 2015-08-03 | D206: Camline Fine | E206: Accu | F206: 115.50 | H206: 149 | I206: 140.00 | J206: Profit of Rs 33.50/- | K206: 33.50 | L206: 29.00% | M206: Successful | N206: 2017-01-05
A207: 35 | B207: 2015-09-04 | D207: TCI | E207: Accu | F207: 226.00 | H207: 292 | I207: 292.00 | J207: Target Achieved | K207: 66.00 | L207: 29.20% | M207: Successful | N207: 2015-10-09
A208: 36 | B208: 2015-09-07 | D208: Kalpataru Power Transmission Ltd | E208: Accu | F208: 232.50 | H208: 312.5 | I208: 310.00 | J208: Target Achieved | K208: 80.00 | L208: 34.41% | M208: Successful | N208: 2017-03-29
A209: 37 | B209: 2015-09-21 | D209: LLOYD ELECTRIC & ENG LTD | E209: Accu | F209: 196.50 | H209: 238 | I209: 238.00 | J209: Target Achieved | K209: 41.50 | L209: 21.12% | M209: Successful | N209: 2015-10-14
A210: 38 | B210: 2015-09-24 | D210: L&T Finance Holding | E210: Accu | F210: 65.00 | H210: 82 | I210: 82.00 | J210: Target Achieved | K210: 17.00 | L210: 26.15% | M210: Successful | N210: 2016-07-27
A211: 39 | B211: 2015-10-14 | D211: KEC International ltd | E211: Accu | F211: 144.00 | H211: 182.5 | I211: 181.00 | J211: Target Achieved | K211: 38.50 | L211: 26.74% | M211: Successful | N211: 2017-03-23
A212: 40 | B212: 2015-10-14 | D212: Gruh Finance | E212: Accu | F212: 264.00 | H212: 311 | I212: 311.00 | J212: Target Achieved | K212: 47.00 | L212: 17.80% | M212: Successful | N212: 2016-08-22
A213: 41 | B213: 2015-11-10 | D213: Pidilitind | E213: Buy | F213: 549.50 | H213: 630 | I213: 630.00 | J213: Target Achieved | K213: 80.50 | L213: 14.65% | M213: Successful | N213: 2016-02-19
A214: 42 | B214: 2015-12-04 | D214: Zensar Technology | E214: Accu | F214: 1027.50 | H214: 1315 | I214: 1250.00 | J214: Target Achieved | K214: =H214-F214 -> 287.50 | L214: 27.98% | M214: Successful | N214: 2018-05-24
A215: 43 | B215: 2015-12-29 | D215: Vinati Organics Ltd | E215: Accu | F215: 465.00 | H215: 540 | I215: 540.00 | J215: Target Achieved | K215: 75.00 | L215: =K215/F215 -> 16.13% | M215: Successful | N215: 2016-06-09
A216: 44 | B216: 2016-01-11 | D216: GSFC | E216: Buy | F216: 81.00 | H216: 110 | I216: 110.00 | J216: Target Achieved | K216: 29.00 | L216: 35.80% | M216: Successful | N216: 2017-01-10
A217: 45 | B217: 2016-01-13 | D217: SSWL | E217: Buy | F217: 417.50 | H217: 547 | I217: 535.00 | J217: Target Achieved | K217: 129.50 | L217: 31.02% | M217: Successful | N217: 2016-07-27
A218: 46 | B218: 2016-02-08 | D218: Persistent System Ltd | E218: Accu | F218: 650.00 | H218: 800 | I218: 800.00 | J218: Target Achieved | K218: 150.00 | L218: 23.08% | M218: Successful | N218: 2018-02-23
A219: 47 | B219: 2016-03-04 | D219: UPL | E219: Accu | F219: 437.50 | H219: 504.5 | I219: 522.00 | J219: Profit of Rs.67/- | K219: 67.00 | L219: 15.31% | M219: Successful | N219: 2016-04-20
A220: 48 | B220: 2016-03-09 | D220: Ashoka Buildcon Ltd | E220: Accu | F220: 189.50 | H220: 218 | I220: 218.00 | J220: Target Achieved | K220: 28.50 | L220: 15.04% | M220: Successful | N220: 2017-10-26
A221: 49 | B221: 2016-04-11 | D221: PTC INDIA FIN SERV LTD | E221: Accu | F221: 36-37 | I221: 60.00 | J221: Open
A222: 50 | B222: 2016-04-12 | D222: CAMLINFINE $ | E222: Accu | F222: 93.00 | H222: 149 | I222: 140.00 | J222: Profit of Rs 56/- | K222: 56.00 | L222: =K222/F222 -> 60.22% | M222: Successful | N222: 2017-01-05
A223: 51 | B223: 2016-04-12 | D223: Greaves Cotton Ltd. | E223: Accu | F223: 130.00 | H223: 150 | I223: 150-155 | J223: Target Achieved | K223: 20.00 | L223: 15.38% | M223: Successful | N223: 2016-07-13
A224: 52 | B224: 2016-04-13 | D224: DHFL | E224: Accu | F224: 196.00 | H224: 299 | I224: 299.00 | J224: Target Achieved | K224: 103.00 | L224: 52.55% | M224: Successful | N224: 2016-09-07
A225: 53 | B225: 2016-04-13 | D225: Magma | E225: Accu | F225: 88.00 | H225: 103 | I225: 103.00 | J225: Target Achieved | K225: 15.00 | L225: 17.05% | M225: Successful | N225: 2016-06-09
A226: 54 | B226: 2016-05-02 | D226: KEC International ltd $ | E226: Accu | F226: 127.50 | H226: 148 | I226: 148-150 | J226: Target Achieved | K226: 20.50 | L226: 16.08% | M226: Successful | N226: 2016-07-13
A227: 55 | B227: 2016-05-03 | D227: Mindtree | E227: Accu | F227: 675.00 | H227: 815 | I227: 790-800 | J227: Target Achieved | K227: 140.00 | L227: 20.74% | M227: Successful | N227: 2018-02-23
A228: 56 | B228: 2016-06-01 | D228: Atulauto | E228: Accu | F228: 495-505 | I228: 565-570 | J228: Open
A229: 57 | B229: 2016-06-06 | D229: TRITURBINE | E229: Accu | F229: 110.00 | H229: 126.5 | I229: 125.00 | J229: Profit of Rs.16.50/- | K229: 16.50 | L229: =K229/F229 -> 15.00% | M229: Successful | N229: 2016-07-01
A230: 58 | B230: 2016-06-17 | D230: Pennar Industries Ltd | E230: Accu | F230: 44.00 | H230: 69.5 | I230: 69.50 | J230: Profit of Rs.25.50/- | K230: 25.50 | L230: =K230/F230 -> 57.95% | M230: Successful | N230: 2017-08-30
A231: 59 | B231: 2016-06-28 | D231: EVEREADY INDS. IND. LTD. | E231: Accu | F231: 262.50 | H231: 340 | I231: 333.00 | J231: Profit of Rs.77.50/- | K231: 77.50 | L231: =K231/F231 -> 29.52% | M231: Successful | N231: 2017-10-09
A232: 60 | B232: 2016-06-28 | D232: FIEM INDUSTRIES LIMITED | E232: Accu | F232: 840.00 | H232: 1230 | I232: 1230.00 | J232: Target Achieved | K232: 390.00 | L232: =K232/F232 -> 46.43% | M232: Successful | N232: 2016-10-06
A233: 61 | B233: 2016-07-05 | D233: Bajaj Corp Ltd | E233: Accu | F233: 395 | H233: 468.50 | I233: 510.00 | J233: Part profit of Rs.73.50/- | K233: 73.50 | L233: =K233/F233 -> 19% | M233: Successful | N233: 2017-08-30
A234: 62 | B234: 2016-08-02 | D234: GPPL $ | E234: Buy | F234: 167-172 | I234: 198-200 | J234: Open
A235: 63 | B235: 2016-08-04 | D235: WONDERLA HOLIDAYS LTD | E235: Accu | F235: 395-405 | I235: 475.00 | J235: Open
A236: 64 | B236: 2016-08-11 | D236: CAMLINFINE | E236: Accu | F236: 86.50 | H236: 130 | I236: 130.00 | J236: Profit of Rs.43.50/- | K236: =H236-F236 -> 43.50 | L236: =K236/F236 -> 50.29% | M236: Successful | N236: 2017-12-22
A237: 65 | B237: 2016-08-18 | D237: GRANULES | E237: Accu | F237: 133.5 | H237: 126.50 | I237: 178.00 | J237: Exit | K237: -7.00 | L237: -5.24% | M237: Unsuccessful | N237: 2016-09-02
A238: 66 | B238: 2016-08-31 | D238: VA TECH WABAG | E238: Accu | F238: 560.00 | H238: 725 | I238: 725.00 | J238: Target Achieved | K238: 165.00 | L238: 29.46% | M238: Successful | N238: 2016-03-27
A239: 67 | B239: 2016-09-01 | D239: SKIPPER LIMITED | E239: Accu | F239: 160.50 | H239: 210 | I239: 210.00 | J239: Target Achieved | K239: 49.50 | L239: 30.84% | M239: Successful | N239: 2017-05-16
A240: 68 | B240: 2016-10-03 | D240: IFB Industries | E240: Accu | F240: 430.00 | H240: 596 | I240: 575.00 | J240: Profit of Rs.166/- | K240: 166.00 | L240: 38.60% | M240: Successful | N240: 2017-02-03
A241: 69 | B241: 2016-10-14 | D241: ASIANTILES | E241: Accu | F241: 280.00 | H241: 345 | I241: 345.00 | J241: Target Achieved | K241: 65.00 | L241: 23.21% | M241: Successful | N241: 2017-03-20
A242: 70 | B242: 2016-10-14 | D242: DEEPIND | E242: Accu | F242: 245.00 | H242: 325.5 | I242: 330.00 | J242: Profit of Rs.80.5/- | K242: 80.50 | L242: 32.86% | M242: Successful | N242: 2017-02-03
A243: 71 | B243: 2016-10-17 | D243: DCBBANK | E243: Accu | F243: 125.00 | H243: 160 | I243: 160.00 | J243: Target Achieved | K243: 35.00 | L243: 28.00% | M243: Successful | N243: 2017-03-09
A244: 72 | B244: 2016-10-17 | D244: ORIENTREF | E244: Accu | F244: 114.00 | H244: 145 | I244: 145.00 | J244: Target Achieved | K244: 31.00 | L244: =K244/F244 -> 27.19% | M244: Successful | N244: 2017-05-04
A245: 73 | B245: 2016-10-17 | D245: GANECOS | E245: Accu | F245: 212.00 | H245: 280 | I245: 276.00 | J245: Profit of Rs.68/- | K245: 68.00 | L245: =K245/F245 -> 32.08% | M245: Successful | N245: 2017-05-03
A246: 74 | B246: 2016-11-04 | D246: NBCC | E246: Accu | F246: 155.00 | H246: 210 | I246: 210.00 | J246: Profit of Rs.55/- | K246: 55.00 | L246: =K246/F246 -> 35.48% | M246: Successful | N246: 2017-07-28
A247: 75 | B247: 2016-12-06 | D247: PRECAM | E247: Accu | F247: 150.5 | H247: 72.50 | I247: 174.00 | J247: Loss of Rs.78/- | K247: -78.00 | L247: =K247/F247 -> -51.83% | M247: Unsuccessful | N247: 2018-08-21
A248: 76 | B248: 2016-12-08 | D248: INFRATEL | E248: Accu | F248: 380.00 | H248: 478 | I248: 468.00 | J248: Target Achieved | K248: 98.00 | L248: =K248/F248 -> 25.79% | M248: Successful | N248: 2017-10-17
A249: 77 | B249: 2016-12-30 | D249: GODREJPROP | E249: Accu | F249: 305.00 | H249: 375 | I249: 375.00 | J249: Target Achieved | K249: 70.00 | L249: 22.95% | M249: Successful | N249: 2017-02-02
A250: 78 | B250: 2017-01-04 | D250: DEEPAKNTR | E250: Accu | F250: 99.50 | H250: 158 | I250: 158.00 | J250: Target Achieved | K250: 58.50 | L250: 58.79% | M250: Successful | N250: 2017-06-12
A251: 79 | B251: 2017-02-20 | D251: SUBROS | E251: Accu | F251: 202.50 | H251: 234 | I251: 234.00 | J251: Target Achieved | K251: 31.50 | L251: 15.56% | M251: Successful | N251: 2017-04-11
A252: 80 | B252: 2017-02-20 | D252: RECLTD | E252: Accu | F252: 140.50 | H252: 220 | I252: 220.00 | J252: Target Achieved | K252: 79.50 | L252: 56.58% | M252: Successful | N252: 2017-05-09
A253: 81 | B253: 2017-03-24 | D253: VRLLOG | E253: Accu | F253: 300.50 | H253: 417.5 | I253: 420.00 | J253: Profit of Rs.117/- | K253: 117.00 | L253: 38.94% | M253: Successful | N253: 2017-12-01
A254: 82 | B254: 2017-03-24 | D254: FIEMIND | E254: Accu | F254: 850.00 | H254: 1042.5 | I254: 1023.00 | J254: Profit of Rs 192.50/- | K254: 192.50 | L254: 22.65% | M254: Successful | N254: 2017-04-05
A255: 83 | B255: 2017-04-05 | D255: RATNAMANI | E255: Accu | F255: 785.00 | H255: 930 | I255: 920.00 | J255: Profit of Rs.145/- | K255: 145.00 | L255: 18.47% | M255: Successful | N255: 2017-08-29
A256: 84 | B256: 2017-04-06 | D256: ZEEMEDIA | E256: Accu | F256: 39-41 | I256: 60.00 | J256: Open
A257: 85 | B257: 2017-04-12 | D257: DABUR | E257: Accu | F257: 289.50 | H257: 354 | I257: 360.00 | J257: Profit of Rs.64.5/- | K257: 64.50 | L257: =K257/F257 -> 22.28% | M257: Successful | N257: 2017-11-01
A258: 86 | B258: 2017-04-20 | D258: KPRMILL | E258: Accu | F258: 700.00 | H258: 840 | I258: 840.00 | J258: Profit of Rs.140/- | K258: 140.00 | L258: =K258/F258 -> 20.00% | M258: Successful | N258: 2017-06-07
A259: 87 | B259: 2017-05-22 | D259: GREAVESCOT | E259: Accu | F259: 153-158 | I259: 190.00 | J259: Open
A260: 88 | B260: 2017-06-01 | D260: ESSELPACK | E260: Accu | F260: 260 | H260: 311.00 | I260: 340.00 | J260: Part profit of Rs.51/- | K260: =H260-F260 -> 51.00 | L260: =K260/F260 -> 20% | M260: Successful | N260: 2017-11-17
A261: 89 | B261: 2017-06-15 | D261: KEI | E261: Accu | F261: 214.50 | H261: 262 | I261: 262.00 | J261: Profit of Rs.47.5/- | K261: =H261-F261 -> 47.50 | L261: 22.14% | M261: Successful | N261: 2017-08-30
A262: 90 | B262: 2017-07-17 | D262: MAYURUNIQ | E262: Accu | F262: 370.00 | H262: 447.5 | I262: 450.00 | J262: Target Achieved | K262: 77.50 | L262: 20.95% | M262: Successful | N262: 2017-10-27
... 54 more rows

Sheet Sheet2 (hidden)
A1: SYMBOL | B1: SERIES | C1: OPEN | D1: HIGH | E1: LOW | F1: CLOSE | G1: LAST | H1: PREVCLOSE | I1: TOTTRDQTY | J1: TOTTRDVAL | K1: TIMESTAMP | L1: TOTALTRADES | M1: ISIN | N1: ISIN
A2: 20MICRONS | B2: EQ | C2: 42.4 | D2: 43.15 | E2: 41.5 | F2: 41.6 | G2: 41.55 | H2: 42.4 | I2: 28802 | J2: 1211331.85 | K2: 2018-12-24 | L2: 268 | M2: INE144J01027
A3: 21STCENMGM | B3: EQ | C3: 24.9 | D3: 24.95 | E3: 24.1 | F3: 24.85 | G3: 24.9 | H3: 24.5 | I3: 495 | J3: 12234.3 | K3: 2018-12-24 | L3: 13 | M3: INE253B01015
A4: 3IINFOTECH | B4: EQ | C4: 3.6 | D4: 3.7 | E4: 3.55 | F4: 3.55 | G4: 3.55 | H4: 3.6 | I4: 1957428 | J4: 7005018.4 | K4: 2018-12-24 | L4: 689 | M4: INE748C01020
A5: 3MINDIA | B5: EQ | C5: 22060 | D5: 22060 | E5: 21490 | F5: 21535.15 | G5: 21570 | H5: 22059.7 | I5: 1158 | J5: 25072404.4 | K5: 2018-12-24 | L5: 556 | M5: INE470A01017
A6: 3PLAND | B6: EQ | C6: 11.25 | D6: 11.25 | E6: 11.15 | F6: 11.15 | G6: 11.15 | H6: 11.25 | I6: 724 | J6: 8074.6 | K6: 2018-12-24 | L6: 3 | M6: INE105C01023
A7: 5PAISA | B7: EQ | C7: 195.05 | D7: 195.05 | E7: 192.25 | F7: 194.5 | G7: 194.5 | H7: 192.55 | I7: 986 | J7: 191584.35 | K7: 2018-12-24 | L7: 61 | M7: INE618L01018
A8: 63MOONS | B8: EQ | C8: 96.95 | D8: 99.9 | E8: 96.1 | F8: 97.15 | G8: 97 | H8: 96.35 | I8: 266895 | J8: 26051468.85 | K8: 2018-12-24 | L8: 3636 | M8: INE111B01023
A9: 8KMILES | B9: EQ | C9: 159.4 | D9: 159.4 | E9: 151.1 | F9: 152.35 | G9: 153.5 | H9: 155.6 | I9: 167893 | J9: 25976852.95 | K9: 2018-12-24 | L9: 3365 | M9: INE650K01021
A10: A2ZINFRA | B10: EQ | C10: 12.9 | D10: 13.15 | E10: 12.8 | F10: 12.85 | G10: 13 | H10: 12.9 | I10: 142740 | J10: 1846619.15 | K10: 2018-12-24 | L10: 262 | M10: INE619I01012
A11: AARTIDRUGS | B11: EQ | C11: 567.7 | D11: 571 | E11: 556 | F11: 564.8 | G11: 571 | H11: 564.3 | I11: 14560 | J11: 8211333.95 | K11: 2018-12-24 | L11: 2149 | M11: INE767A01016
A12: AARTIIND | B12: EQ | C12: 1450 | D12: 1450 | E12: 1417.6 | F12: 1427.1 | G12: 1420 | H12: 1449.75 | I12: 30717 | J12: 43801956.8 | K12: 2018-12-24 | L12: 5566 | M12: INE769A01020
A13: AARVEEDEN | B13: EQ | C13: 26.15 | D13: 26.8 | E13: 23.4 | F13: 24.25 | G13: 24.25 | H13: 26.1 | I13: 58524 | J13: 1456549.3 | K13: 2018-12-24 | L13: 377 | M13: INE273D01019
A14: AAVAS | B14: EQ | C14: 812.2 | D14: 826.95 | E14: 780.05 | F14: 788.4 | G14: 788 | H14: 823 | I14: 19024 | J14: 15057726.45 | K14: 2018-12-24 | L14: 2112 | M14: INE216P01012
A15: ABAN | B15: EQ | C15: 74.5 | D15: 75.9 | E15: 73.15 | F15: 74.2 | G15: 74 | H15: 74.9 | I15: 449484 | J15: 33336654.2 | K15: 2018-12-24 | L15: 4950 | M15: INE421A01028
A16: ABB | B16: EQ | C16: 1304.3 | D16: 1318 | E16: 1299 | F16: 1302.15 | G16: 1302.4 | H16: 1302.7 | I16: 66103 | J16: 86324616.5 | K16: 2018-12-24 | L16: 5003 | M16: INE117A01022
A17: ABBOTINDIA | B17: EQ | C17: 7498 | D17: 7498 | E17: 7400.1 | F17: 7466.25 | G17: 7465 | H17: 7410 | I17: 3768 | J17: 28089690 | K17: 2018-12-24 | L17: 1085 | M17: INE358A01014
A18: ABCAPITAL | B18: EQ | C18: 98.3 | D18: 98.6 | E18: 96.8 | F18: 97.05 | G18: 97.2 | H18: 98.05 | I18: 1267199 | J18: 123355779.9 | K18: 2018-12-24 | L18: 16829 | M18: INE674K01013
A19: ABFRL | B19: EQ | C19: 206.5 | D19: 211.8 | E19: 205.25 | F19: 206.75 | G19: 207.15 | H19: 205 | I19: 1265722 | J19: 264213758.8 | K19: 2018-12-24 | L19: 17579 | M19: INE647O01011
A20: ACC | B20: EQ | C20: 1479 | D20: 1485.95 | E20: 1439.35 | F20: 1447.65 | G20: 1439.5 | H20: 1490.05 | I20: 602271 | J20: 885075359 | K20: 2018-12-24 | L20: 19669 | M20: INE012A01025
A21: ACCELYA | B21: EQ | C21: 951 | D21: 977.15 | E21: 946 | F21: 960.35 | G21: 960 | H21: 950.35 | I21: 1470 | J21: 1411290.1 | K21: 2018-12-24 | L21: 293 | M21: INE793A01012
A22: ACE | B22: EQ | C22: 92.5 | D22: 94.35 | E22: 87.35 | F22: 89.9 | G22: 89.9 | H22: 93.45 | I22: 173971 | J22: 15691238.05 | K22: 2018-12-24 | L22: 2840 | M22: INE731H01025
A23: ADANIENT | B23: EQ | C23: 159.4 | D23: 160.9 | E23: 156.5 | F23: 158.55 | G23: 158.25 | H23: 159.35 | I23: 3130614 | J23: 496913410.6 | K23: 2018-12-24 | L23: 21137 | M23: INE423A01024
A24: ADANIGAS | B24: EQ | C24: 100.7 | D24: 101.15 | E24: 98.05 | F24: 98.3 | G24: 98.4 | H24: 99.65 | I24: 415118 | J24: 41293431.1 | K24: 2018-12-24 | L24: 3726 | M24: INE399L01023
A25: ADANIGREEN | B25: EQ | C25: 42.5 | D25: 43.2 | E25: 42 | F25: 42.15 | G25: 42.15 | H25: 42.5 | I25: 174059 | J25: 7406792.4 | K25: 2018-12-24 | L25: 1045 | M25: INE364U01010
A26: ADANIPORTS | B26: EQ | C26: 361.25 | D26: 366.75 | E26: 358.3 | F26: 361.1 | G26: 362.65 | H26: 361.1 | I26: 2268806 | J26: 821570124.1 | K26: 2018-12-24 | L26: 35778 | M26: INE742F01042
A27: ADANIPOWER | B27: EQ | C27: 50.85 | D27: 51.4 | E27: 49.4 | F27: 50.8 | G27: 50.8 | H27: 50.35 | I27: 5916350 | J27: 297957426.9 | K27: 2018-12-24 | L27: 13636 | M27: INE814H01011
A28: ADANITRANS | B28: EQ | C28: 207.05 | D28: 209.8 | E28: 199.25 | F28: 200.05 | G28: 200.3 | H28: 208.35 | I28: 132352 | J28: 26981695.95 | K28: 2018-12-24 | L28: 5295 | M28: INE931S01010
A29: ADFFOODS | B29: EQ | C29: 263.1 | D29: 264.9 | E29: 258.05 | F29: 259.55 | G29: 260.8 | H29: 262.7 | I29: 14446 | J29: 3770188.35 | K29: 2018-12-24 | L29: 609 | M29: INE982B01019
A30: ADHUNIK | B30: EQ | C30: 2.2 | D30: 2.25 | E30: 2.15 | F30: 2.2 | G30: 2.25 | H30: 2.2 | I30: 20068 | J30: 44406.5 | K30: 2018-12-24 | L30: 45 | M30: INE400H01019
A31: ADHUNIKIND | B31: EQ | C31: 45.25 | D31: 46.9 | E31: 45 | F31: 46.4 | G31: 46.7 | H31: 45.25 | I31: 6850 | J31: 314631.5 | K31: 2018-12-24 | L31: 105 | M31: INE452L01012
A32: ADLABS | B32: EQ | C32: 11.7 | D32: 11.7 | E32: 11.1 | F32: 11.15 | G32: 11.1 | H32: 11.35 | I32: 64832 | J32: 729852.45 | K32: 2018-12-24 | L32: 235 | M32: INE172N01012
A33: ADORWELD | B33: EQ | C33: 385 | D33: 385.5 | E33: 373.55 | F33: 375.8 | G33: 375 | H33: 386.8 | I33: 9604 | J33: 3631372.45 | K33: 2018-12-24 | L33: 546 | M33: INE045A01017
A34: ADROITINFO | B34: EQ | C34: 18.4 | D34: 18.4 | E34: 18.4 | F34: 18.4 | G34: 18.4 | H34: 18.4 | I34: 102 | J34: 1876.8 | K34: 2018-12-24 | L34: 11 | M34: INE737B01033
A35: ADSL | B35: EQ | C35: 15.05 | D35: 15.05 | E35: 14.3 | F35: 14.4 | G35: 14.35 | H35: 14.2 | I35: 4924 | J35: 71400.3 | K35: 2018-12-24 | L35: 44 | M35: INE102I01027
A36: ADVANIHOTR | B36: EQ | C36: 64.9 | D36: 65.9 | E36: 62 | F36: 62.95 | G36: 63 | H36: 63.95 | I36: 5514 | J36: 347312.85 | K36: 2018-12-24 | L36: 108 | M36: INE199C01026
A37: ADVENZYMES | B37: EQ | C37: 183.3 | D37: 184.4 | E37: 178.7 | F37: 179.25 | G37: 179.9 | H37: 182.05 | I37: 48902 | J37: 8892134.45 | K37: 2018-12-24 | L37: 1058 | M37: INE837H01020
A38: AEGISCHEM | B38: EQ | C38: 186.65 | D38: 190 | E38: 186.15 | F38: 187.85 | G38: 189.5 | H38: 186.65 | I38: 95072 | J38: 17888347.7 | K38: 2018-12-24 | L38: 2611 | M38: INE208C01025
A39: AGARIND | B39: EQ | C39: 226.25 | D39: 238.6 | E39: 212.6 | F39: 225.65 | G39: 225.05 | H39: 228.4 | I39: 7926 | J39: 1800349.85 | K39: 2018-12-24 | L39: 394 | M39: INE204E01012
A40: AGCNET | B40: EQ | C40: 70.95 | D40: 72 | E40: 69.5 | F40: 70.45 | G40: 70.3 | H40: 70.75 | I40: 841 | J40: 59250.05 | K40: 2018-12-24 | L40: 42 | M40: INE676A01019
A41: AGLSL | B41: EQ | C41: 68.6 | D41: 69.85 | E41: 68 | F41: 69 | G41: 69 | H41: 68.25 | I41: 1759 | J41: 120688.05 | K41: 2018-12-24 | L41: 51 | M41: INE517U01013
A42: AGRITECH | B42: BE | C42: 62.25 | D42: 64.7 | E42: 62.25 | F42: 62.75 | G42: 62.65 | H42: 62.75 | I42: 6721 | J42: 425338.35 | K42: 2018-12-24 | L42: 82 | M42: INE449G01018
A43: AHLEAST | B43: EQ | C43: 241.25 | D43: 246.5 | E43: 241 | F43: 243.4 | G43: 242.1 | H43: 243.05 | I43: 998 | J43: 241905.75 | K43: 2018-12-24 | L43: 186 | M43: INE926K01017
A44: AHLUCONT | B44: EQ | C44: 314 | D44: 325 | E44: 303.5 | F44: 304.25 | G44: 303.8 | H44: 319 | I44: 7483 | J44: 2322861.6 | K44: 2018-12-24 | L44: 664 | M44: INE758C01029
A45: AHLWEST | B45: EQ | C45: 299.05 | D45: 299.05 | E45: 299 | F45: 299 | G45: 299 | H45: 300 | I45: 108 | J45: 32293 | K45: 2018-12-24 | L45: 7 | M45: INE915K01010
A46: AIAENG | B46: EQ | C46: 1601.05 | D46: 1640 | E46: 1601.05 | F46: 1630.75 | G46: 1639.2 | H46: 1612.05 | I46: 5686 | J46: 9207475.65 | K46: 2018-12-24 | L46: 948 | M46: INE212H01026
A47: AIFL | B47: EQ | C47: 29.7 | D47: 29.7 | E47: 28.5 | F47: 29.7 | G47: 29.7 | H47: 28.3 | I47: 346197 | J47: 10247235.9 | K47: 2018-12-24 | L47: 633 | M47: INE428O01016
A48: AIONJSW | B48: EQ | C48: 42.75 | D48: 42.75 | E48: 40.05 | F48: 41.2 | G48: 41.35 | H48: 42.6 | I48: 94824 | J48: 3929519.95 | K48: 2018-12-24 | L48: 678 | M48: INE743C01021
A49: AJANTPHARM | B49: EQ | C49: 1134 | D49: 1149 | E49: 1104 | F49: 1132.5 | G49: 1142.65 | H49: 1132.45 | I49: 355529 | J49: 399315412.2 | K49: 2018-12-24 | L49: 15235 | M49: INE031B01049
A50: AJMERA | B50: EQ | C50: 168 | D50: 168 | E50: 159.45 | F50: 160.4 | G50: 159.8 | H50: 167.4 | I50: 59006 | J50: 9564356.95 | K50: 2018-12-24 | L50: 1556 | M50: INE298G01027
A51: AKSHARCHEM | B51: EQ | C51: 438.1 | D51: 455.05 | E51: 438.1 | F51: 452.9 | G51: 454 | H51: 439.15 | I51: 5190 | J51: 2341654.5 | K51: 2018-12-24 | L51: 1604 | M51: INE542B01011
A52: AKSHOPTFBR | B52: EQ | C52: 24.9 | D52: 25 | E52: 24.3 | F52: 24.35 | G52: 24.35 | H52: 24.65 | I52: 414599 | J52: 10204505.55 | K52: 2018-12-24 | L52: 1576 | M52: INE523B01011
A53: AKZOINDIA | B53: EQ | C53: 1650 | D53: 1650 | E53: 1595 | F53: 1600.45 | G53: 1595 | H53: 1634.95 | I53: 6241 | J53: 10084404.2 | K53: 2018-12-24 | L53: 1387 | M53: INE133A01011
A54: ALANKIT | B54: EQ | C54: 23.8 | D54: 24 | E54: 23.25 | F54: 23.7 | G54: 23.9 | H54: 23.65 | I54: 278841 | J54: 6572705.15 | K54: 2018-12-24 | L54: 951 | M54: INE914E01040
A55: ALBERTDAVD | B55: EQ | C55: 420.05 | D55: 425.35 | E55: 416.45 | F55: 417.25 | G55: 417 | H55: 422.15 | I55: 2630 | J55: 1102180.5 | K55: 2018-12-24 | L55: 159 | M55: INE155C01010
A56: ALBK | B56: EQ | C56: 46.45 | D56: 46.55 | E56: 45.2 | F56: 45.8 | G56: 45.8 | H56: 46.65 | I56: 5383002 | J56: 247271672.9 | K56: 2018-12-24 | L56: 11501 | M56: INE428A01015
A57: ALCHEM | B57: BE | C57: 2.2 | D57: 2.2 | E57: 2.2 | F57: 2.2 | G57: 2.2 | H57: 2.1 | I57: 4038 | J57: 8883.6 | K57: 2018-12-24 | L57: 18 | M57: INE964B01033
A58: ALEMBICLTD | B58: EQ | C58: 45.5 | D58: 45.9 | E58: 44.75 | F58: 44.95 | G58: 45.15 | H58: 45.6 | I58: 997953 | J58: 45019366.5 | K58: 2018-12-24 | L58: 1116 | M58: INE426A01027
A59: ALICON | B59: EQ | C59: 637.9 | D59: 638.75 | E59: 625.45 | F59: 628.95 | G59: 628.95 | H59: 630.55 | I59: 1852 | J59: 1166514.2 | K59: 2018-12-24 | L59: 79 | M59: INE062D01024
A60: ALKALI | B60: EQ | C60: 55 | D60: 56 | E60: 53.6 | F60: 54.05 | G60: 54.05 | H60: 54.95 | I60: 2854 | J60: 154903.55 | K60: 2018-12-24 | L60: 57 | M60: INE773I01017
A61: ALKEM | B61: EQ | C61: 1856 | D61: 1870 | E61: 1844.95 | F61: 1855.15 | G61: 1852 | H61: 1852.35 | I61: 9778 | J61: 18152118.25 | K61: 2018-12-24 | L61: 1823 | M61: INE540L01014
A62: ALKYLAMINE | B62: EQ | C62: 740.45 | D62: 742.85 | E62: 716.25 | F62: 718.8 | G62: 718 | H62: 740.45 | I62: 1959 | J62: 1416881.95 | K62: 2018-12-24 | L62: 222 | M62: INE150B01021
A63: ALLCARGO | B63: EQ | C63: 112.15 | D63: 112.15 | E63: 104.6 | F63: 105.25 | G63: 105 | H63: 112.05 | I63: 229323 | J63: 24485602.15 | K63: 2018-12-24 | L63: 10602 | M63: INE418H01029
A64: ALLSEC | B64: EQ | C64: 204.05 | D64: 204.05 | E64: 195 | F64: 197.45 | G64: 199.9 | H64: 204.05 | I64: 6150 | J64: 1233308.4 | K64: 2018-12-24 | L64: 260 | M64: INE835G01018
A65: ALMONDZ | B65: EQ | C65: 22.15 | D65: 22.95 | E65: 22.15 | F65: 22.3 | G65: 22.9 | H65: 22.15 | I65: 1712 | J65: 38099.95 | K65: 2018-12-24 | L65: 21 | M65: INE326B01027
A66: ALOKTEXT | B66: EQ | C66: 3.75 | D66: 3.75 | E66: 3.6 | F66: 3.7 | G66: 3.75 | H66: 3.65 | I66: 1751344 | J66: 6452427.4 | K66: 2018-12-24 | L66: 1368 | M66: INE270A01011
A67: ALPA | B67: EQ | C67: 24.1 | D67: 25.2 | E67: 24.05 | F67: 24.1 | G67: 24.1 | H67: 24.4 | I67: 3433 | J67: 83091.75 | K67: 2018-12-24 | L67: 67 | M67: INE385I01010
A68: ALPHAGEO | B68: EQ | C68: 474.8 | D68: 478.85 | E68: 446.45 | F68: 453.6 | G68: 454.55 | H68: 463.55 | I68: 5846 | J68: 2720571.4 | K68: 2018-12-24 | L68: 826 | M68: INE137C01018
A69: ALPSINDUS | B69: BE | C69: 3.35 | D69: 3.35 | E69: 3.35 | F69: 3.35 | G69: 3.35 | H69: 3.5 | I69: 3 | J69: 10.05 | K69: 2018-12-24 | L69: 3 | M69: INE093B01015
A70: AMARAJABAT | B70: EQ | C70: 752.5 | D70: 753 | E70: 738.3 | F70: 745.7 | G70: 743.6 | H70: 743.25 | I70: 335615 | J70: 249978489.8 | K70: 2018-12-24 | L70: 11202 | M70: INE885A01032
A71: AMBER | B71: EQ | C71: 915.05 | D71: 924 | E71: 903.65 | F71: 920.9 | G71: 922.45 | H71: 926.25 | I71: 7460 | J71: 6859191.8 | K71: 2018-12-24 | L71: 2288 | M71: INE371P01015
A72: AMBIKCO | B72: EQ | C72: 1160.05 | D72: 1164.35 | E72: 1144.6 | F72: 1146.35 | G72: 1145 | H72: 1164.45 | I72: 2172 | J72: 2502472.45 | K72: 2018-12-24 | L72: 238 | M72: INE540G01014
A73: AMBUJACEM | B73: EQ | C73: 216 | D73: 219.6 | E73: 212.55 | F73: 213.25 | G73: 212.9 | H73: 220.7 | I73: 2431010 | J73: 525520829 | K73: 2018-12-24 | L73: 20559 | M73: INE079A01024
A74: AMDIND | B74: EQ | C74: 22.25 | D74: 22.9 | E74: 21.3 | F74: 21.7 | G74: 21.7 | H74: 22.1 | I74: 4218 | J74: 91498.9 | K74: 2018-12-24 | L74: 34 | M74: INE005I01014
A75: AMJLAND | B75: EQ | C75: 20.8 | D75: 21.1 | E75: 20.3 | F75: 20.9 | G75: 21.1 | H75: 20.55 | I75: 4263 | J75: 88916.8 | K75: 2018-12-24 | L75: 68 | M75: INE606A01024
A76: AMRUTANJAN | B76: EQ | C76: 293 | D76: 297.3 | E76: 280.5 | F76: 281.7 | G76: 281.15 | H76: 293.2 | I76: 178304 | J76: 51312757.6 | K76: 2018-12-24 | L76: 6422 | M76: INE098F01031
A77: ANANTRAJ | B77: EQ | C77: 36 | D77: 36.8 | E77: 35.55 | F77: 35.9 | G77: 36.15 | H77: 35.95 | I77: 347088 | J77: 12513362.3 | K77: 2018-12-24 | L77: 1339 | M77: INE242C01024
A78: ANDHRABANK | B78: EQ | C78: 29.4 | D78: 29.65 | E78: 28.95 | F78: 29.3 | G78: 29.3 | H78: 29.45 | I78: 1806274 | J78: 52943368.95 | K78: 2018-12-24 | L78: 3074 | M78: INE434A01013
A79: ANDHRACEMT | B79: EQ | C79: 5.75 | D79: 5.85 | E79: 5.7 | F79: 5.75 | G79: 5.75 | H79: 5.85 | I79: 69377 | J79: 400821.9 | K79: 2018-12-24 | L79: 136 | M79: INE666E01012
A80: ANDHRSUGAR | B80: EQ | C80: 331.9 | D80: 337.05 | E80: 327.1 | F80: 328.85 | G80: 328 | H80: 333.4 | I80: 11527 | J80: 3832554.7 | K80: 2018-12-24 | L80: 477 | M80: INE715B01013
A81: ANGIND | B81: BE | C81: 1.4 | D81: 1.4 | E81: 1.35 | F81: 1.4 | G81: 1.4 | H81: 1.4 | I81: 780 | J81: 1091.45 | K81: 2018-12-24 | L81: 5 | M81: INE017D01010
A82: ANIKINDS | B82: EQ | C82: 23.4 | D82: 23.95 | E82: 23.1 | F82: 23.4 | G82: 23.65 | H82: 23.65 | I82: 2645 | J82: 62089.5 | K82: 2018-12-24 | L82: 47 | M82: INE087B01017
A83: ANKITMETAL | B83: BE | C83: 0.45 | D83: 0.45 | E83: 0.4 | F83: 0.4 | G83: 0.4 | H83: 0.5 | I83: 46754 | J83: 20023.85 | K83: 2018-12-24 | L83: 32 | M83: INE106I01010
A84: ANSALAPI | B84: EQ | C84: 11.35 | D84: 11.4 | E84: 11.15 | F84: 11.2 | G84: 11.2 | H84: 11.35 | I84: 14243 | J84: 160652.25 | K84: 2018-12-24 | L84: 61 | M84: INE436A01026
A85: ANSALHSG | B85: EQ | C85: 11 | D85: 11.3 | E85: 10.9 | F85: 11 | G85: 10.95 | H85: 11.3 | I85: 33234 | J85: 369622.6 | K85: 2018-12-24 | L85: 149 | M85: INE880B01015
A86: ANTGRAPHIC | B86: BE | C86: 0.45 | D86: 0.5 | E86: 0.4 | F86: 0.5 | G86: 0.5 | H86: 0.45 | I86: 172017 | J86: 82787.2 | K86: 2018-12-24 | L86: 48 | M86: INE414B01021
A87: APARINDS | B87: EQ | C87: 634 | D87: 651.5 | E87: 634 | F87: 649.1 | G87: 651.5 | H87: 640.45 | I87: 4535 | J87: 2927758.9 | K87: 2018-12-24 | L87: 385 | M87: INE372A01015
A88: APCL | B88: EQ | C88: 137.25 | D88: 137.25 | E88: 130.35 | F88: 134.65 | G88: 136 | H88: 135.75 | I88: 1980 | J88: 266964.1 | K88: 2018-12-24 | L88: 76 | M88: INE071F01012
A89: APCOTEXIND | B89: EQ | C89: 528 | D89: 531.95 | E89: 520 | F89: 523.25 | G89: 526 | H89: 527.6 | I89: 3524 | J89: 1846133.85 | K89: 2018-12-24 | L89: 186 | M89: INE116A01024
A90: APEX | B90: EQ | C90: 379.5 | D90: 384 | E90: 374.25 | F90: 378.2 | G90: 378.2 | H90: 378.05 | I90: 35233 | J90: 13343195.05 | K90: 2018-12-24 | L90: 1151 | M90: INE346W01013
A91: APLAPOLLO | B91: EQ | C91: 1167 | D91: 1177 | E91: 1120 | F91: 1142.25 | G91: 1120 | H91: 1170.25 | I91: 14346 | J91: 16595913.9 | K91: 2018-12-24 | L91: 882 | M91: INE702C01019
A92: APLLTD | B92: EQ | C92: 580.6 | D92: 590.9 | E92: 570.8 | F92: 573.5 | G92: 577.8 | H92: 579.05 | I92: 24314 | J92: 14061440.4 | K92: 2018-12-24 | L92: 1398 | M92: INE901L01018
A93: APOLLO | B93: EQ | C93: 126 | D93: 126.9 | E93: 118.05 | F93: 119.5 | G93: 118.05 | H93: 126.3 | I93: 56179 | J93: 6844049.8 | K93: 2018-12-24 | L93: 5525 | M93: INE713T01010
A94: APOLLOHOSP | B94: EQ | C94: 1260.65 | D94: 1277.95 | E94: 1233.55 | F94: 1269.35 | G94: 1267.9 | H94: 1252.4 | I94: 382470 | J94: 483034170.8 | K94: 2018-12-24 | L94: 18822 | M94: INE437A01024
A95: APOLLOTYRE | B95: EQ | C95: 230.25 | D95: 233.5 | E95: 225.3 | F95: 229.05 | G95: 229.1 | H95: 233.4 | I95: 4165981 | J95: 953329419.4 | K95: 2018-12-24 | L95: 40245 | M95: INE438A01022
A96: APOLSINHOT | B96: EQ | C96: 1150 | D96: 1253.85 | E96: 1105.6 | F96: 1245.15 | G96: 1250 | H96: 1139.9 | I96: 26937 | J96: 32460778.75 | K96: 2018-12-24 | L96: 2421 | M96: INE451F01024
A97: APTECHT | B97: EQ | C97: 191.45 | D97: 195.5 | E97: 186.75 | F97: 188.15 | G97: 188.4 | H97: 190.35 | I97: 285214 | J97: 54464058.05 | K97: 2018-12-24 | L97: 4486 | M97: INE266F01018
A98: ARCHIDPLY | B98: EQ | C98: 40.35 | D98: 41.3 | E98: 39 | F98: 39.3 | G98: 39.2 | H98: 40.35 | I98: 12487 | J98: 496054.25 | K98: 2018-12-24 | L98: 189 | M98: INE877I01016
A99: ARCHIES | B99: EQ | C99: 33.5 | D99: 33.5 | E99: 31.25 | F99: 31.45 | G99: 31.35 | H99: 33.95 | I99: 219845 | J99: 7046936.8 | K99: 2018-12-24 | L99: 1477 | M99: INE731A01020
A100: ARCOTECH | B100: EQ | C100: 7.5 | D100: 7.55 | E100: 7.25 | F100: 7.35 | G100: 7.4 | H100: 7.55 | I100: 14749 | J100: 108254.55 | K100: 2018-12-24 | L100: 91 | M100: INE574I01035
A101: ARIES | B101: EQ | C101: 101.15 | D101: 101.85 | E101: 98.5 | F101: 100.5 | G101: 100.3 | H101: 100.75 | I101: 14495 | J101: 1458000.4 | K101: 2018-12-24 | L101: 454 | M101: INE298I01015
A102: ARIHANT | B102: EQ | C102: 32.05 | D102: 34.45 | E102: 31.05 | F102: 32.15 | G102: 32.15 | H102: 32.95 | I102: 596 | J102: 19508.8 | K102: 2018-12-24 | L102: 20 | M102: INE413D01011
A103: ARIHANTSUP | B103: EQ | C103: 58.8 | D103: 60.5 | E103: 55 | F103: 56.4 | G103: 55.05 | H103: 58.8 | I103: 25876 | J103: 1486090.15 | K103: 2018-12-24 | L103: 826 | M103: INE643K01018
A104: ARMANFIN | B104: EQ | C104: 382 | D104: 397.7 | E104: 370 | F104: 388.6 | G104: 389.85 | H104: 389.9 | I104: 4089 | J104: 1578167.45 | K104: 2018-12-24 | L104: 111 | M104: INE109C01017
A105: AROGRANITE | B105: EQ | C105: 53.6 | D105: 54.2 | E105: 52.3 | F105: 53.55 | G105: 52.5 | H105: 52.25 | I105: 25422 | J105: 1355242.25 | K105: 2018-12-24 | L105: 437 | M105: INE210C01013
A106: ARROWGREEN | B106: EQ | C106: 111.8 | D106: 112.65 | E106: 109.05 | F106: 112.65 | G106: 112.65 | H106: 107.3 | I106: 17152 | J106: 1928030.9 | K106: 2018-12-24 | L106: 185 | M106: INE570D01018
A107: ARROWTEX | B107: EQ | C107: 25 | D107: 25 | E107: 23.25 | F107: 24 | G107: 24 | H107: 24.2 | I107: 6457 | J107: 154691.45 | K107: 2018-12-24 | L107: 78 | M107: INE933J01015
A108: ARSHIYA | B108: EQ | C108: 33.6 | D108: 35.7 | E108: 32 | F108: 34.35 | G108: 34.2 | H108: 31.1 | I108: 2026538 | J108: 69806620.45 | K108: 2018-12-24 | L108: 10144 | M108: INE968D01022
A109: ARSSINFRA | B109: BE | C109: 29.55 | D109: 29.6 | E109: 28.5 | F109: 29.05 | G109: 29 | H109: 28.2 | I109: 10378 | J109: 305090.9 | K109: 2018-12-24 | L109: 33 | M109: INE267I01010
A110: ARVIND | B110: EQ | C110: 99 | D110: 99.5 | E110: 97.8 | F110: 98.55 | G110: 98.75 | H110: 98.6 | I110: 1894228 | J110: 186606835.3 | K110: 2018-12-24 | L110: 13135 | M110: INE034A01011
A111: ARVSMART | B111: EQ | C111: 137 | D111: 139.65 | E111: 131.6 | F111: 132.2 | G111: 132 | H111: 138.2 | I111: 59482 | J111: 8060776.25 | K111: 2018-12-24 | L111: 1833 | M111: INE034S01021
A112: ASAHIINDIA | B112: EQ | C112: 258 | D112: 258 | E112: 244.6 | F112: 246.4 | G112: 245.25 | H112: 253.2 | I112: 13985 | J112: 3497464.9 | K112: 2018-12-24 | L112: 837 | M112: INE439A01020
A113: ASAHISONG | B113: EQ | C113: 216.55 | D113: 221.6 | E113: 215 | F113: 215.75 | G113: 215 | H113: 218.65 | I113: 1095 | J113: 238831.65 | K113: 2018-12-24 | L113: 92 | M113: INE228I01012
A114: ASAL | B114: EQ | C114: 66 | D114: 66 | E114: 62.5 | F114: 62.85 | G114: 62.55 | H114: 64.45 | I114: 5049 | J114: 320733.2 | K114: 2018-12-24 | L114: 63 | M114: INE900C01027
A115: ASHAPURMIN | B115: EQ | C115: 30.25 | D115: 31.75 | E115: 30.1 | F115: 30.55 | G115: 30.5 | H115: 30.55 | I115: 43785 | J115: 1351377.2 | K115: 2018-12-24 | L115: 398 | M115: INE348A01023
A116: ASHIANA | B116: EQ | C116: 117.95 | D116: 117.95 | E116: 114 | F116: 115.2 | G116: 115 | H116: 116.1 | I116: 197970 | J116: 22860036.35 | K116: 2018-12-24 | L116: 605 | M116: INE365D01021
A117: ASHIMASYN | B117: EQ | C117: 16 | D117: 17.1 | E117: 15.45 | F117: 16.55 | G117: 16.45 | H117: 15.75 | I117: 465216 | J117: 7740953.45 | K117: 2018-12-24 | L117: 2033 | M117: INE440A01010
A118: ASHOKA | B118: EQ | C118: 124.5 | D118: 128.5 | E118: 123.6 | F118: 124.65 | G118: 124.05 | H118: 125.95 | I118: 70389 | J118: 8857829.35 | K118: 2018-12-24 | L118: 2806 | M118: INE442H01029
A119: ASHOKLEY | B119: EQ | C119: 105.45 | D119: 105.45 | E119: 103.75 | F119: 104.6 | G119: 104.35 | H119: 105.35 | I119: 9663127 | J119: 1009525224 | K119: 2018-12-24 | L119: 39009 | M119: INE208A01029
A120: ASIANHOTNR | B120: EQ | C120: 148.15 | D120: 148.5 | E120: 143.6 | F120: 144.25 | G120: 144 | H120: 147 | I120: 803 | J120: 116324.25 | K120: 2018-12-24 | L120: 15 | M120: INE363A01022
A121: ASIANPAINT | B121: EQ | C121: 1388 | D121: 1388.95 | E121: 1351.1 | F121: 1357.05 | G121: 1360 | H121: 1388.2 | I121: 1649577 | J121: 2249427823 | K121: 2018-12-24 | L121: 40150 | M121: INE021A01026
A122: ASIANTILES | B122: EQ | C122: 193 | D122: 193.9 | E122: 188.3 | F122: 190.4 | G122: 190.1 | H122: 192.35 | I122: 42256 | J122: 8056375.75 | K122: 2018-12-24 | L122: 2326 | M122: INE022I01019
A123: ASPINWALL | B123: EQ | C123: 176 | D123: 176 | E123: 173.05 | F123: 176 | G123: 176 | H123: 176 | I123: 129 | J123: 22636.15 | K123: 2018-12-24 | L123: 5 | M123: INE991I01015
A124: ASSAMCO | B124: BE | C124: 2.3 | D124: 2.3 | E124: 2.1 | F124: 2.1 | G124: 2.2 | H124: 2.2 | I124: 365444 | J124: 785030.2 | K124: 2018-12-24 | L124: 273 | M124: INE442A01024
A125: ASTEC | B125: EQ | C125: 527.15 | D125: 536.15 | E125: 527.15 | F125: 531.2 | G125: 533.95 | H125: 536.8 | I125: 9972 | J125: 5304291.35 | K125: 2018-12-24 | L125: 216 | M125: INE563J01010
A126: ASTERDM | B126: EQ | C126: 145.3 | D126: 153.35 | E126: 145.3 | F126: 148.25 | G126: 150 | H126: 147.1 | I126: 135419 | J126: 20336193.2 | K126: 2018-12-24 | L126: 1778 | M126: INE914M01019
A127: ASTRAL | B127: EQ | C127: 1087 | D127: 1087 | E127: 1062 | F127: 1074.15 | G127: 1075 | H127: 1087 | I127: 26761 | J127: 28654673.1 | K127: 2018-12-24 | L127: 4215 | M127: INE006I01046
A128: ASTRAMICRO | B128: EQ | C128: 77.25 | D128: 79.05 | E128: 77.2 | F128: 77.65 | G128: 78.3 | H128: 77.8 | I128: 124070 | J128: 9670000.75 | K128: 2018-12-24 | L128: 941 | M128: INE386C01029
A129: ASTRAZEN | B129: EQ | C129: 1482 | D129: 1508.85 | E129: 1460 | F129: 1470.3 | G129: 1470 | H129: 1487.6 | I129: 4657 | J129: 6890487.7 | K129: 2018-12-24 | L129: 654 | M129: INE203A01020
A130: ASTRON | B130: EQ | C130: 110.9 | D130: 110.9 | E130: 107.2 | F130: 108.1 | G130: 108.45 | H130: 108.9 | I130: 25257 | J130: 2744312.3 | K130: 2018-12-24 | L130: 681 | M130: INE646X01014
A131: ATFL | B131: EQ | C131: 585.05 | D131: 589.5 | E131: 566 | F131: 572.95 | G131: 567.15 | H131: 586.6 | I131: 1651 | J131: 954617.35 | K131: 2018-12-24 | L131: 284 | M131: INE209A01019
A132: ATLANTA | B132: EQ | C132: 23.2 | D132: 23.4 | E132: 22.15 | F132: 22.3 | G132: 22.45 | H132: 23.2 | I132: 109893 | J132: 2495052 | K132: 2018-12-24 | L132: 2995 | M132: INE285H01022
A133: ATLASCYCLE | B133: BE | C133: 81 | D133: 81 | E133: 78.2 | F133: 80.35 | G133: 79.5 | H133: 80 | I133: 1911 | J133: 152046.25 | K133: 2018-12-24 | L133: 34 | M133: INE446A01025
A134: ATUL | B134: EQ | C134: 3450 | D134: 3484.2 | E134: 3370 | F134: 3375.35 | G134: 3370 | H134: 3456.75 | I134: 9776 | J134: 33436514.6 | K134: 2018-12-24 | L134: 1630 | M134: INE100A01010
A135: ATULAUTO | B135: EQ | C135: 291.05 | D135: 295.55 | E135: 286 | F135: 288.75 | G135: 291 | H135: 292.65 | I135: 8039 | J135: 2324976.05 | K135: 2018-12-24 | L135: 808 | M135: INE951D01028
A136: AUBANK | B136: EQ | C136: 641.75 | D136: 643.65 | E136: 601.1 | F136: 606.45 | G136: 604 | H136: 636.85 | I136: 322978 | J136: 198245533.9 | K136: 2018-12-24 | L136: 25906 | M136: INE949L01017
A137: AURIONPRO | B137: EQ | C137: 129.55 | D137: 137 | E137: 129.55 | F137: 133.6 | G137: 133.6 | H137: 128.3 | I137: 54071 | J137: 7133093.75 | K137: 2018-12-24 | L137: 874 | M137: INE132H01018
A138: AUROPHARMA | B138: EQ | C138: 720.65 | D138: 738.65 | E138: 712.55 | F138: 715.4 | G138: 714.95 | H138: 720.65 | I138: 3807600 | J138: 2758085066 | K138: 2018-12-24 | L138: 75408 | M138: INE406A01037
A139: AUSOMENT | B139: EQ | C139: 42.2 | D139: 42.9 | E139: 41.35 | F139: 41.65 | G139: 41.35 | H139: 42.2 | I139: 2451 | J139: 103484.6 | K139: 2018-12-24 | L139: 118 | M139: INE218C01016
A140: AUTOAXLES | B140: EQ | C140: 1340 | D140: 1364 | E140: 1321 | F140: 1348.8 | G140: 1345 | H140: 1338.4 | I140: 13868 | J140: 18566892.05 | K140: 2018-12-24 | L140: 1451 | M140: INE449A01011
A141: AUTOIND | B141: EQ | C141: 64.75 | D141: 66.3 | E141: 63.15 | F141: 63.95 | G141: 64.1 | H141: 63.15 | I141: 15936 | J141: 1021288.2 | K141: 2018-12-24 | L141: 229 | M141: INE718H01014
A142: AUTOLITIND | B142: EQ | C142: 40 | D142: 41 | E142: 39.65 | F142: 40.05 | G142: 40.2 | H142: 40 | I142: 11432 | J142: 462069.5 | K142: 2018-12-24 | L142: 58 | M142: INE448A01013
A143: AVADHSUGAR | B143: EQ | C143: 379.25 | D143: 388.7 | E143: 375 | F143: 377.45 | G143: 378.1 | H143: 377.35 | I143: 11024 | J143: 4208177 | K143: 2018-12-24 | L143: 622 | M143: INE349W01017
A144: AVANTIFEED | B144: EQ | C144: 393.8 | D144: 393.8 | E144: 375.3 | F144: 377.95 | G144: 378 | H144: 392.05 | I144: 273398 | J144: 104644949.7 | K144: 2018-12-24 | L144: 10591 | M144: INE871C01038
A145: AVTNPL | B145: EQ | C145: 26.95 | D145: 27.3 | E145: 26.35 | F145: 26.6 | G145: 26.55 | H145: 26.7 | I145: 12165 | J145: 324927.4 | K145: 2018-12-24 | L145: 127 | M145: INE488D01021
A146: AXISBANK | B146: EQ | C146: 626 | D146: 627.15 | E146: 613.5 | F146: 615 | G146: 614.2 | H146: 620.85 | I146: 6191605 | J146: 3839729714 | K146: 2018-12-24 | L146: 87541 | M146: INE238A01034
A147: AXISCADES | B147: EQ | C147: 84 | D147: 84.9 | E147: 82.7 | F147: 82.95 | G147: 83 | H147: 83.15 | I147: 35277 | J147: 2948883.25 | K147: 2018-12-24 | L147: 549 | M147: INE555B01013
A148: AXISGOLD | B148: EQ | C148: 2747.65 | D148: 2776.9 | E148: 2736.5 | F148: 2754 | G148: 2754 | H148: 2747.65 | I148: 159 | J148: 438416.55 | K148: 2018-12-24 | L148: 40 | M148: INF846K01347
A149: AXISNIFTY | B149: EQ | C149: 1095 | D149: 1097.04 | E149: 1086.63 | F149: 1097.04 | G149: 1097.04 | H149: 1099.24 | I149: 147 | J149: 160094.44 | K149: 2018-12-24 | L149: 10 | M149: INF846K01ZL0
A150: AYMSYNTEX | B150: EQ | C150: 41.05 | D150: 41.95 | E150: 40.3 | F150: 40.9 | G150: 40.5 | H150: 41.2 | I150: 4881 | J150: 198926.8 | K150: 2018-12-24 | L150: 54 | M150: INE193B01039
A151: BAFNAPHARM | B151: EQ | C151: 11.6 | D151: 11.8 | E151: 11.3 | F151: 11.4 | G151: 11.55 | H151: 11.4 | I151: 5867 | J151: 67881.45 | K151: 2018-12-24 | L151: 82 | M151: INE878I01014
A152: BAGFILMS | B152: EQ | C152: 4.85 | D152: 4.95 | E152: 4.7 | F152: 4.8 | G152: 4.9 | H152: 4.8 | I152: 122145 | J152: 589530.4 | K152: 2018-12-24 | L152: 264 | M152: INE116D01028
A153: BAJAJ-AUTO | B153: EQ | C153: 2825.5 | D153: 2832.7 | E153: 2715.85 | F153: 2724.65 | G153: 2728 | H153: 2808.45 | I153: 348337 | J153: 956559297 | K153: 2018-12-24 | L153: 30356 | M153: INE917I01010
A154: BAJAJCORP | B154: EQ | C154: 365.85 | D154: 365.85 | E154: 358 | F154: 359.1 | G154: 359 | H154: 361.1 | I154: 14932 | J154: 5392330.85 | K154: 2018-12-24 | L154: 1441 | M154: INE933K01021
A155: BAJAJELEC | B155: EQ | C155: 508.4 | D155: 512 | E155: 500 | F155: 503.35 | G155: 505 | H155: 506.5 | I155: 85639 | J155: 43283375.65 | K155: 2018-12-24 | L155: 3255 | M155: INE193E01025
A156: BAJAJFINSV | B156: EQ | C156: 6360.75 | D156: 6393.95 | E156: 6260 | F156: 6274.45 | G156: 6280 | H156: 6360.1 | I156: 132247 | J156: 834250331.9 | K156: 2018-12-24 | L156: 16718 | M156: INE918I01018
A157: BAJAJHIND | B157: EQ | C157: 9 | D157: 9.15 | E157: 8.85 | F157: 8.9 | G157: 8.85 | H157: 8.95 | I157: 1686319 | J157: 15194914.45 | K157: 2018-12-24 | L157: 2283 | M157: INE306A01021
A158: BAJAJHLDNG | B158: EQ | C158: 2956.4 | D158: 2965 | E158: 2920 | F158: 2937.85 | G158: 2932 | H158: 2940.3 | I158: 48668 | J158: 143078143.8 | K158: 2018-12-24 | L158: 725 | M158: INE118A01012
A159: BAJFINANCE | B159: EQ | C159: 2594 | D159: 2604.85 | E159: 2553 | F159: 2564.9 | G159: 2566.2 | H159: 2591.25 | I159: 1050017 | J159: 2697442198 | K159: 2018-12-24 | L159: 38810 | M159: INE296A01024
A160: BALAJITELE | B160: EQ | C160: 97.7 | D160: 97.7 | E160: 90.05 | F160: 90.65 | G160: 90.45 | H160: 89.65 | I160: 158403 | J160: 14606430.85 | K160: 2018-12-24 | L160: 1237 | M160: INE794B01026
A161: BALAMINES | B161: EQ | C161: 450.55 | D161: 455.4 | E161: 448 | F161: 451.1 | G161: 450 | H161: 452.05 | I161: 3654 | J161: 1646642.65 | K161: 2018-12-24 | L161: 466 | M161: INE050E01027
A162: BALKRISHNA | B162: EQ | C162: 49.25 | D162: 51.9 | E162: 49.25 | F162: 49.85 | G162: 50 | H162: 50.2 | I162: 5668 | J162: 282781.75 | K162: 2018-12-24 | L162: 143 | M162: INE875R01011
A163: BALKRISIND | B163: EQ | C163: 920.25 | D163: 926.85 | E163: 903.1 | F163: 911.2 | G163: 906.5 | H163: 928.8 | I163: 1082120 | J163: 986592948.1 | K163: 2018-12-24 | L163: 30051 | M163: INE787D01026
A164: BALLARPUR | B164: EQ | C164: 5.3 | D164: 5.55 | E164: 5.15 | F164: 5.5 | G164: 5.55 | H164: 5.3 | I164: 410143 | J164: 2206253.2 | K164: 2018-12-24 | L164: 469 | M164: INE294A01037
A165: BALMLAWRIE | B165: EQ | C165: 199 | D165: 200 | E165: 195.5 | F165: 196.35 | G165: 196.25 | H165: 200.65 | I165: 28207 | J165: 5571742.2 | K165: 2018-12-24 | L165: 818 | M165: INE164A01016
A166: BALPHARMA | B166: EQ | C166: 80.1 | D166: 82.7 | E166: 80 | F166: 80.4 | G166: 80.1 | H166: 80.15 | I166: 26367 | J166: 2149664.75 | K166: 2018-12-24 | L166: 512 | M166: INE083D01012
A167: BALRAMCHIN | B167: EQ | C167: 102 | D167: 104.3 | E167: 100.5 | F167: 102.3 | G167: 101.8 | H167: 100.7 | I167: 2570666 | J167: 264368312.9 | K167: 2018-12-24 | L167: 12618 | M167: INE119A01028
A168: BANARBEADS | B168: EQ | C168: 48 | D168: 49 | E168: 47.55 | F168: 47.7 | G168: 47.55 | H168: 47.65 | I168: 781 | J168: 37809.45 | K168: 2018-12-24 | L168: 12 | M168: INE655B01011
A169: BANARISUG | B169: EQ | C169: 1502.2 | D169: 1536.7 | E169: 1500 | F169: 1504.15 | G169: 1500 | H169: 1511.8 | I169: 216 | J169: 326120.75 | K169: 2018-12-24 | L169: 28 | M169: INE459A01010
A170: BANCOINDIA | B170: EQ | C170: 181.4 | D170: 199 | E170: 180.5 | F170: 184.7 | G170: 185.35 | H170: 179.95 | I170: 489399 | J170: 92882547.45 | K170: 2018-12-24 | L170: 7636 | M170: INE213C01025
A171: BANDHANBNK | B171: EQ | C171: 529.5 | D171: 536.9 | E171: 506 | F171: 524.25 | G171: 524.1 | H171: 526.8 | I171: 1377036 | J171: 718663471.2 | K171: 2018-12-24 | L171: 55885 | M171: INE545U01014
A172: BANG | B172: EQ | C172: 59.25 | D172: 60.5 | E172: 55.8 | F172: 58.05 | G172: 57 | H172: 58.95 | I172: 186663 | J172: 10691611.75 | K172: 2018-12-24 | L172: 1817 | M172: INE863I01016
A173: BANKBARODA | B173: EQ | C173: 116 | D173: 116.8 | E173: 114.6 | F173: 115.4 | G173: 115.25 | H173: 115.1 | I173: 10567495 | J173: 1222011191 | K173: 2018-12-24 | L173: 31266 | M173: INE028A01039
A174: BANKBEES | B174: EQ | C174: 2740 | D174: 2743.9 | E174: 2721.95 | F174: 2727.37 | G174: 2729 | H174: 2738.58 | I174: 123967 | J174: 339393311 | K174: 2018-12-24 | L174: 263 | M174: INF732E01078
A175: BANKINDIA | B175: EQ | C175: 98.45 | D175: 101.9 | E175: 96.7 | F175: 100.9 | G175: 100.75 | H175: 97.9 | I175: 16027081 | J175: 1599169591 | K175: 2018-12-24 | L175: 46357 | M175: INE084A01016
A176: BANSWRAS | B176: EQ | C176: 84.4 | D176: 84.4 | E176: 78.3 | F176: 80.5 | G176: 78.3 | H176: 81.4 | I176: 2381 | J176: 192005.05 | K176: 2018-12-24 | L176: 38 | M176: INE629D01012
A177: BARTRONICS | B177: EQ | C177: 7.3 | D177: 7.4 | E177: 7.25 | F177: 7.25 | G177: 7.25 | H177: 7.3 | I177: 17245 | J177: 125349.6 | K177: 2018-12-24 | L177: 42 | M177: INE855F01034
A178: BASF | B178: EQ | C178: 1564 | D178: 1600 | E178: 1564 | F178: 1586.5 | G178: 1573.9 | H178: 1595.55 | I178: 6589 | J178: 10408109.9 | K178: 2018-12-24 | L178: 723 | M178: INE373A01013
A179: BASML | B179: EQ | C179: 218 | D179: 218 | E179: 206.05 | F179: 206.95 | G179: 206.05 | H179: 210.1 | I179: 197 | J179: 41114.65 | K179: 2018-12-24 | L179: 13 | M179: INE186H01014
A180: BATAINDIA | B180: EQ | C180: 1124 | D180: 1128.85 | E180: 1101.45 | F180: 1109 | G180: 1111.65 | H180: 1118.7 | I180: 1159490 | J180: 1290184782 | K180: 2018-12-24 | L180: 31591 | M180: INE176A01028
A181: BAYERCROP | B181: EQ | C181: 4230.95 | D181: 4231 | E181: 4100 | F181: 4217.9 | G181: 4211 | H181: 4231.15 | I181: 4707 | J181: 19667457.25 | K181: 2018-12-24 | L181: 1593 | M181: INE462A01022
A182: BBL | B182: EQ | C182: 1175 | D182: 1175 | E182: 1124 | F182: 1129.15 | G182: 1135.05 | H182: 1152.75 | I182: 4523 | J182: 5148496.65 | K182: 2018-12-24 | L182: 552 | M182: INE464A01028
A183: BBTC | B183: EQ | C183: 1308.9 | D183: 1317 | E183: 1271.25 | F183: 1277.85 | G183: 1280 | H183: 1305.3 | I183: 54465 | J183: 70442825.25 | K183: 2018-12-24 | L183: 3884 | M183: INE050A01025
A184: BCG | B184: EQ | C184: 2.95 | D184: 3 | E184: 2.8 | F184: 2.8 | G184: 2.85 | H184: 2.9 | I184: 662219 | J184: 1904747.15 | K184: 2018-12-24 | L184: 337 | M184: INE425B01027
A185: BDL | B185: EQ | C185: 285 | D185: 285 | E185: 277.05 | F185: 278.45 | G185: 277.15 | H185: 284.7 | I185: 12840 | J185: 3584843.6 | K185: 2018-12-24 | L185: 881 | M185: INE171Z01018
A186: BEARDSELL | B186: EQ | C186: 23.5 | D186: 24.4 | E186: 23.15 | F186: 24.35 | G186: 24.35 | H186: 24 | I186: 8250 | J186: 197252.4 | K186: 2018-12-24 | L186: 44 | M186: INE520H01022
A187: BEDMUTHA | B187: BE | C187: 20.15 | D187: 21 | E187: 19.55 | F187: 20.1 | G187: 20.15 | H187: 20.55 | I187: 14721 | J187: 292185.4 | K187: 2018-12-24 | L187: 63 | M187: INE844K01012
A188: BEL | B188: EQ | C188: 88.4 | D188: 89.35 | E188: 87.2 | F188: 87.95 | G188: 87.9 | H188: 88.4 | I188: 11044751 | J188: 973898823.6 | K188: 2018-12-24 | L188: 38361 | M188: INE263A01024
A189: BEML | B189: EQ | C189: 890.1 | D189: 918.8 | E189: 864.2 | F189: 869.85 | G189: 871.5 | H189: 887.45 | I189: 7022369 | J189: 6237257131 | K189: 2018-12-24 | L189: 120040 | M189: INE258A01016
A190: BEPL | B190: EQ | C190: 88.9 | D190: 96.7 | E190: 87.05 | F190: 91.5 | G190: 91.3 | H190: 88.05 | I190: 1557446 | J190: 144469878.5 | K190: 2018-12-24 | L190: 12146 | M190: INE922A01025
A191: BERGEPAINT | B191: EQ | C191: 332.8 | D191: 332.8 | E191: 321.25 | F191: 323.5 | G191: 323.6 | H191: 330.65 | I191: 1138787 | J191: 371644192.8 | K191: 2018-12-24 | L191: 13229 | M191: INE463A01038
A192: BFINVEST | B192: EQ | C192: 244.55 | D192: 244.7 | E192: 235 | F192: 235.6 | G192: 235.6 | H192: 242.95 | I192: 41566 | J192: 9911145.15 | K192: 2018-12-24 | L192: 1450 | M192: INE878K01010
A193: BFUTILITIE | B193: EQ | C193: 209.75 | D193: 210.2 | E193: 203.3 | F193: 204.65 | G193: 204.5 | H193: 208.9 | I193: 137224 | J193: 28243718.45 | K193: 2018-12-24 | L193: 2993 | M193: INE243D01012
A194: BGLOBAL | B194: BE | C194: 2.9 | D194: 3 | E194: 2.8 | F194: 3 | G194: 3 | H194: 2.9 | I194: 13454 | J194: 40269.7 | K194: 2018-12-24 | L194: 21 | M194: INE224M01013
A195: BGRENERGY | B195: EQ | C195: 61.25 | D195: 61.9 | E195: 59.2 | F195: 59.5 | G195: 59.25 | H195: 61.15 | I195: 62805 | J195: 3791748.4 | K195: 2018-12-24 | L195: 883 | M195: INE661I01014
A196: BHAGERIA | B196: EQ | C196: 297.85 | D196: 297.85 | E196: 281.4 | F196: 285.4 | G196: 284 | H196: 292.5 | I196: 30356 | J196: 8794140.35 | K196: 2018-12-24 | L196: 676 | M196: INE354C01027
A197: BHAGYANGR | B197: EQ | C197: 30.55 | D197: 30.55 | E197: 28.85 | F197: 29.3 | G197: 29.7 | H197: 29.25 | I197: 4507 | J197: 132180.75 | K197: 2018-12-24 | L197: 52 | M197: INE458B01036
A198: BHAGYAPROP | B198: EQ | C198: 29 | D198: 29 | E198: 27.5 | F198: 28 | G198: 28 | H198: 27.45 | I198: 5565 | J198: 155802.6 | K198: 2018-12-24 | L198: 33 | M198: INE363W01018
A199: BHANDARI | B199: EQ | C199: 2.15 | D199: 2.3 | E199: 2.1 | F199: 2.1 | G199: 2.1 | H199: 2.15 | I199: 583019 | J199: 1292474.4 | K199: 2018-12-24 | L199: 297 | M199: INE474E01029
A200: BHARATFIN | B200: EQ | C200: 995.05 | D200: 1006.2 | E200: 979.4 | F200: 983.85 | G200: 981.65 | H200: 999 | I200: 1003045 | J200: 990863030 | K200: 2018-12-24 | L200: 19089 | M200: INE180K01011
... 1433 more rows

Sheet Sheet1 (hidden)
